Workbook

Sheet Info
A1: A Toolkit for Informality Scenario Analysis, Version 2
A2: This file contains data and predictions on labor informality and related parameters for over 100 countries.
A3: Please refer to "A Toolkit for Informality Scenario Analysis: a user guide"(Loayza and Meza-Cuadra, 2017) for documentation and to "Informality in the Process of Development and Growth" (Loayza, 2016) for an extensive description of the model, both available at http://www.worldbank.org/en/country/malaysia/brief/research-papers-and-books
A4: Please cite this data as follows:
A5: Loayza, Norman and Claudia Meza-Cuadra. 2018. “A Toolkit for Informality Scenario Analysis.” Washington, DC: The World Bank. http://www.worldbank.org/informality
A6: Additionally, when using these data (for whatever purpose), please also cite the following paper:
A7: Loayza, Norman. 2016. “Informality in the Process of Development and Growth.” The World Economy 39 (12): 1856-1916. https://doi.org/10.1111/twec.12480
A11: Select analysis method to use: | B11: Menu (recommended) | E11: Advanced (full set of options)
A28: `

Sheet Variable Definitions
A1: Tab: Historical Data
A2: Identifier variables
A3: country | B3: Country name
A4: countrycode | B4: 3-letter ISO country code
A5: year | B5: Year
A7: Historical variables
A8: laborforce | B8: Labor force
A9: employment | B9: Total employment
A10: unemployment | B10: Unemployment rate (% of labor force)
A11: capital | B11: Capital stock (thousand 2010 US$)
A12: tfp1 | B12: Total Factor Productivity estimated using constant capital share of 0.5 for all countries
A13: labsh | B13: PWT estimates of country-specific of labour compensation in GDP at current national prices, 0.5 if missing
A14: GDP | B14: Real GDP at constant 2010 national prices (thousand 2010 US$)
A15: growthk | B15: Annual growth rate of capital (logs)
A16: tfpgr | B16: Annual growth rate of TFP (logs)
A17: growthlab | B17: Annual growth rate of laborforce (logs)
A18: rud_informal | B18: Estimates of employment in the rudimentary informal sector (% of employment)
A19: mod_informal | B19: Estimates of employment in the modern informal sector (% of employment)
A20: informal | B20: Sum of rud_informal and mod_informal
A21: formal | B21: Estimates of total formal employment (% of employment)
A23: Tab: Initial Conditions and Settings
A24: Table 1: Time frame for Initial Conditions Based on Historical Data | B24: Time frame over which initial conditions are averaged for each variable. Note: Informality estimates are generated using 2012-2016 data.
A25: Table 2: Initial Parameter Values and Settings for Projections (Constant across countries) | B25: Values for parameters that are constant across countries and settings for projections
A26: Table 3
A27: Initial Conditions Based on Historical Data
A28: Region | B28: 3-letter region code
A29: Country Code | B29: 3-letter ISO country code
A30: Country | B30: Country name
A31: Labor Force (thousands) | B31: Average of laborforce over chosen period
A32: Employment (thousands) | B32: Average of employment over chosen period
A33: Capital (2010 US dollars, thousands) | B33: Average of capital over chosen period
A34: Growth Rate of Capital | B34: Average of growthk over chosen period
A35: GDP (2010 US dollars, thousands) | B35: Average of gdp over chosen period
A36: K/GDP | B36: Average of capital / Average of gdp over chosen period
A37: Formal Employment | B37: Estimated employment in the formal sector (% of labor force)
A38: Informal Employment (rudimentary, type 1) | B38: Estimated employment in the modern informal sector (% of labor force)
A39: Informal Employment (modern, type 2) | B39: Estimated employment in the rudimentary informal sector (% of labor force)
A40: Formal Employment2 | B40: Estimated employment in the formal sector (% of employment)
A41: Informal Employment (rudimentary, type 1)2 | B41: Estimated employment in the modern informal sector (% of employment)
A42: Informal Employment (modern, type 2)2 | B42: Estimated employment in the rudimentary informal sector (% of employment)
A43: Variables estimated from the model available using shares of employment and shares of labor force
A44: Lf/L | B44: Formal employment as a share of employment in the modern economy (formal + modern informal)
A45: Li/L | B45: Informal employment as a share of employment in the modern economy (formal + modern informal)
A46: bA/W | B46: Ratio of productivity in the rudimentary economy to minimum wage
A47: We/W | B47: Ratio of expected wage in the modern economy to the minimum wage
A48: K/L | B48: Ratio of capital to labor in the modern economy
A49: Wi/W (pi) | B49: Ratio between wage in the informal sector and the minimum wage
A50: A/W | B50: Ratio between productivity in the formal sector and the minimum wage
A51: A | B51: Productivity in the formal sector
A52: Minimum wage, W | B52: Minimum wage (2010 US$)
A53: Ratio between Productivities of the rudimentary economy and the formal sector, (b0) | B53: Ratio between Productivities of the rudimentary economy and the formal sector, (b0)
A54: Outliers
A55: OPEC members | B55: 0/1: country is member of Organization of the Petroleum Exporting Countries (OPEC) (1), otherwise (0)
A56: Questionable data | B56: 0/1: data from country is questionable (1), othewise (0)
A57: Pension/GDP outliers | B57: 0/1: average of pensionrate/gdp from 2012-2015 with respect to other countries is an outlier (1), otherwise (0)
A58: K/GDP outliers | B58: 0/1: average of capital/gdp from 2012-2015 with respect to other countries is an outlier (1), otherwise (0)
A59: GDP/TFP outlier | B59: 0/1: average of gdp /tfp from 2012-2015 with respect to other countries is an outlier (1), otherwise (0)
A60: Subgroups
A61: Total | B61: 0/1/2/3: country is an outlier in no categories (0), one category (1), two categories (2), three categories (3). Country is excluded from region averages if (2) or (3)
A62: Population < 1 million | B62: 0/1: average of country population from 2012-2015 was smaller than 1 million (1), otherwise (0). Country is excluded from region averages if (1)
A63: OECD | B63: 0/1: country is currently a member of the Organization for Economic Co-operation and Development (OECD) (1), otherwise (0)
A64: Settings for projections
A65: Growth rate of TFP | B65: average of growthtfp over chosen period
A66: delta + rho (using shares of labor force) | B66: Subjective rate of time preference plus the rate of capital depreciation using constant alpha | C66: Using eq. 30
A67: delta + rho (using shares of employment) | B67: Subjective rate of time preference plus the rate of capital depreciation using country-specific capital share | C67: Using eq. 30
A68: Historical Growth rate of Labor Force (used for projections year = 1) | B68: average of growthlab over chosen period
A70: Tabs: Projections (% of employment) and (% of labor force) | B70: % of employment uses estimates of informality as a share of employment; country-specific uses estimates of informality as a share of the labor force
A71: country | B71: Country name
A72: countrycode | B72: 3-letter ISO country code
A73: year | B73: Year
A74: Initial Year Index | B74: 0/…/n: Initial year (0)
A75: codeyear | B75: Combination of 3-letter ISO country code & Year
A76: laborforce | B76: Labor force projections from UN (thousands)
A77: employmentest | B77: Employment projections using Employment (thousands) for initial year and laborforce for growth rates
A78: laborforceest | B78: Labor force projections using Labor Force (thousands) for initial year and laborforce for growth rates
A79: population | B79: Population projections from UN (thousands)
A80: alpha | B80: Capital share
A81: a | B81: Ratio between Productivities of the modern informal and formal sectors using user-determined growth rates, between 0 and 1
A82: b | B82: Ratio between Productivities of the rudimentary economy and the formal sector using user-determined growth rates, greater than 0
A83: miu | B83: Cost of Living Adjustment from Rudimentary Economy using user-determined growth rates, greater †han 1
A84: psi | B84: Ratio between capital rental rate for modern informal and formal firms using user-determined growth rates, greater than 1
A85: pi | B85: Ratio between Wages in the modern informal and formal sectors using constant alpha
A86: Ahistorical | B86: Projections of productivity of the formal sector using average growth of TFP over chosen historical period
A87: Aalt | B87: Projections of productivity of the formal sector using user set A growth and historical otherwise
A88: Variables available with 3 suffixes: Basic, Baseline and Alternative
A89: Suffix definitions
A90: populist | B90: Minimum wages grow slower than labor productivity (difference chosen by user in the Menu or Initial Conditions and Settings tab)
A91: baseline | B91: Minimum wages grow at the same rate as labor productivity
A92: reformist | B92: Minimum wages grow faster than labor productivity (difference chosen by user in the Menu or Initial Conditions and Settings tab)
A93: W | B93: Projected minimum wage | H93: Wpopulist
A94: growthK | B94: Projected growth of capital | H94: growthKrudimentary
A95: K | B95: Projected capital stock (thousands) | H95: Kbasic
A96: L | B96: Projected modern labor force (formal labor + modern informal labor) (thousands) | H96: Lbasic
A97: Li | B97: Projected modern informal labor (thousands) | H97: Libasic
A98: Lf | B98: Projected formal labor (thousands) | H98: Lfbasic
A99: Lr | B99: Projected rudimentary informal labor (thousands) | H99: Lrbasic
A100: Formalshare | B100: Projected formal labor (% of labor force) | H100: Formalsharepopulist
A101: Informalshare | B101: Projected modern informal labor (% of labor force) | H101: Informalsharepopulist
A102: Rudimentaryshare | B102: Projected formal labor (% of labor force) | H102: Rudimentarysharepopulist
A103: Variables for caclulating projected production and GDP growth
A104: agrowth | B104: Growth rate of a (logs) | H104: agrowth
A105: bgrowth | B105: Growth rate of b (logs) | H105: bgrowth
A106: Kformal | B106: Formal sector capital (thousands) | H106: Kformalbasic
A107: Kfgrowth | B107: Growth rate of Kformal (logs) | H107: Kfgrowthbasic
A108: Kinformal | B108: Modern informal sector capital (thousands) | H108: Kinformalbasic
A109: Kigrowth | B109: Growth rate of Kinformal (logs) | H109: Kigrowthbasic
A110: Lfgrowth | B110: Growth rate of Lf (logs) | H110: Lfgrowthbasic
A111: Ligrowth | B111: Growth rate of Li (logs) | H111: Ligrowthbasic
A112: Lrgrowth | B112: Growth rate of Lr (logs) | H112: Lrgrowthbasic
A113: Yfgrowth | B113: Growth rate of formal sector production (logs) | H113: Yfgrowthbasic
A114: Yigrowth | B114: Growth rate of modern informal sector production (logs) | H114: Yigrowthbasic
A115: Yrgrowth | B115: Growth rate of rudimentary sector production (logs) | H115: Yrgrowthbasic
A116: Yformal | B116: Formal sector production (thousands) | H116: Yformalbasic
A117: Yinformal | B117: Modern informal sector production (thousands) | H117: Yinformalbasic
A118: Yrud | B118: Rudimentary sector production (thousands) | H118: Yrudbasic
A119: Ytotal | B119: Total production, sum of Yformal Yinformal and Yrud (thousands) | H119: Ytotalbasic
A120: Ygrowthtotal | B120: Growth rate of total production (logs) | H120: Ygrowthtotalpopulist
A121: Yformalshare | B121: Formal sector share of total production (%) | H121: Yformalsharepopulist
A122: Yinformalshare | B122: Informal sector share of total production (%) | H122: Yinformalsharepopulist
A123: Yrudimentaryshare | B123: Rudimentary sector share of total production (%) | H123: Yrudsharepopulist
A124: Ypercapita | B124: Ytotal / population
A125: Ypercapitagrowth | B125: Growth rate of Ypercapita (logs)
A127: Tab: Menu | B127: Select options for scenario analysis
A128: Basic Options
A129: Country or Region | B129: Country or region name
A130: Absolute % difference in growth rates of labor cost and productivity under reformist or populist scenario (default is 0.5%) | B130: Difference in growth rates of minimum wage and formal sector productivity in populist and reformist scenarios
A131: Project Informal Labor as a % of Employment or Labor Force | B131: Use estimates of informality as a share of employment or as a share of the labor force
A132: Natural rate of unemployment (default is 5%) | B132: Percent of unemployment allocated to the formal sector (0-100%)
A133: Growth rate of A (default is historical growth rate for each country) | B133: from +/- 0 to 100%
A135: Other Parameter Growth Settings | B135: Choose growth rates for other model parameters (defaults are strongly recommended)
A136: Use default settings for persistent informality in developing countries | B136: Settings chosen to generate persistent informality under the baseline scenario
A137: Use default settings for persistent formality in developed countries | B137: Settings chosen to generate persistent formality under the baseline scenario
A138: Changing cost of living in modern economy | B138: 0 to +/- 100%
A139: Changing productivity of the modern informal economy relative to the formal sector | B139: 0 to +/- 100%
A140: Changing productivity of the rudimentary sector relative to the formal sector | B140: 0 to +/- 100%
A141: Changing relative cost of capital in the modern informal economy | B141: 0 to +/- 100%
A150: A Toolkit for Informality Scenario Analysis
A151: Norman Loayza and Claudia Meza-Cuadra
A152: Version 2. August 27, 2018

Sheet Historical Data
A1: country | B1: countrycode | C1: year | E1: laborforce | F1: employment | G1: unemprate | I1: k | J1: tfp1 | K1: labsh | M1: GDP | O1: . | Q1: growthk | R1: tfpgr | S1: growthlab | W1: rud_informal | X1: mod_informal | Y1: informal | Z1: Formal
A2: Aruba | B2: ABW | C2: 1990 | E2: . | F2: . | G2: . | I2: 3277101.75 | J2: . | K2: 0.5 | M2: . | O2: . | Q2: =IFERROR(IF($C2=MIN($C$2:$C$50),".",LN(I2)-LN(I1)),".") -> . | R2: . | S2: =IFERROR(IF($C2=MIN($C$2:$C$50),".",LN(E2)-LN(E1)),".") -> . | W2: . | X2: . | Y2: . | Z2: =IFERROR(1-Y2,".") -> .
A3: Aruba | B3: ABW | C3: 1991 | E3: . | F3: . | G3: . | I3: 3636779 | J3: . | K3: 0.5 | M3: . | O3: . | Q3: 0.1041389808 | R3: . | S3: . | W3: . | X3: . | Y3: . | Z3: =IFERROR(1-Y3,".") -> .
A4: Aruba | B4: ABW | C4: 1992 | E4: . | F4: . | G4: . | I4: 4001004.5 | J4: . | K4: 0.5 | M4: . | O4: . | Q4: 0.0954470548 | R4: . | S4: . | W4: . | X4: . | Y4: . | Z4: .
A5: Aruba | B5: ABW | C5: 1993 | E5: . | F5: . | G5: . | I5: 4396769 | J5: . | K5: 0.5 | M5: . | O5: . | Q5: 0.09432449841 | R5: . | S5: . | W5: . | X5: . | Y5: . | Z5: .
A6: Aruba | B6: ABW | C6: 1994 | E6: . | F6: . | G6: . | I6: 4837725 | J6: . | K6: 0.5 | M6: . | O6: . | Q6: 0.0955746159 | R6: . | S6: . | W6: . | X6: . | Y6: . | Z6: .
A7: Aruba | B7: ABW | C7: 1995 | E7: . | F7: . | G7: . | I7: 5215398.5 | J7: . | K7: 0.5 | M7: . | O7: . | Q7: 0.07517093082 | R7: . | S7: . | W7: . | X7: . | Y7: . | Z7: .
A8: Aruba | B8: ABW | C8: 1996 | E8: . | F8: . | G8: . | I8: 5660786 | J8: . | K8: 0.5 | M8: . | O8: . | Q8: 0.08194725211 | R8: . | S8: . | W8: . | X8: . | Y8: . | Z8: .
A9: Aruba | B9: ABW | C9: 1997 | E9: . | F9: . | G9: . | I9: 6165530.5 | J9: . | K9: 0.5 | M9: . | O9: . | Q9: 0.08541143137 | R9: . | S9: . | W9: . | X9: . | Y9: . | Z9: .
A10: Aruba | B10: ABW | C10: 1998 | E10: . | F10: . | G10: . | I10: 6639118 | J10: . | K10: 0.5 | M10: . | O10: . | Q10: 0.07400494014 | R10: . | S10: . | W10: . | X10: . | Y10: . | Z10: .
A11: Aruba | B11: ABW | C11: 1999 | E11: . | F11: . | G11: . | I11: 6968445 | J11: . | K11: 0.5 | M11: . | O11: . | Q11: 0.04841297755 | R11: . | S11: . | W11: . | X11: . | Y11: . | Z11: .
A12: Aruba | B12: ABW | C12: 2000 | E12: . | F12: . | G12: . | I12: 7229274.5 | J12: . | K12: 0.5 | M12: . | O12: . | Q12: 0.03674658447 | R12: . | S12: . | W12: . | X12: . | Y12: . | Z12: .
A13: Aruba | B13: ABW | C13: 2001 | E13: . | F13: . | G13: . | I13: 7439742.5 | J13: . | K13: 0.5 | M13: . | O13: . | Q13: 0.02869755268 | R13: . | S13: . | W13: . | X13: . | Y13: . | Z13: .
A14: Aruba | B14: ABW | C14: 2002 | E14: . | F14: . | G14: . | I14: 7697252 | J14: . | K14: 0.5 | M14: . | O14: . | Q14: 0.03402714401 | R14: . | S14: . | W14: . | X14: . | Y14: . | Z14: .
A15: Aruba | B15: ABW | C15: 2003 | E15: . | F15: . | G15: . | I15: 7994419.5 | J15: . | K15: 0.5 | M15: . | O15: . | Q15: 0.03788035373 | R15: . | S15: . | W15: . | X15: . | Y15: . | Z15: .
A16: Aruba | B16: ABW | C16: 2004 | E16: . | F16: . | G16: . | I16: 8305719 | J16: . | K16: 0.5 | M16: . | O16: . | Q16: 0.0382005779 | R16: . | S16: . | W16: . | X16: . | Y16: . | Z16: .
A17: Aruba | B17: ABW | C17: 2005 | E17: . | F17: . | G17: . | I17: 8711217 | J17: . | K17: 0.5 | M17: . | O17: . | Q17: 0.04766719189 | R17: . | S17: . | W17: . | X17: . | Y17: . | Z17: .
A18: Aruba | B18: ABW | C18: 2006 | E18: . | F18: . | G18: . | I18: 9142546 | J18: . | K18: 0.5 | M18: . | O18: . | Q18: 0.04832739692 | R18: . | S18: . | W18: . | X18: . | Y18: . | Z18: .
A19: Aruba | B19: ABW | C19: 2007 | E19: . | F19: . | G19: . | I19: 9577407 | J19: . | K19: 0.5 | M19: . | O19: . | Q19: 0.04646798481 | R19: . | S19: . | W19: . | X19: . | Y19: . | Z19: .
A20: Aruba | B20: ABW | C20: 2008 | E20: . | F20: . | G20: . | I20: 10009625 | J20: . | K20: 0.5 | M20: . | O20: . | Q20: 0.0441402428 | R20: . | S20: . | W20: . | X20: . | Y20: . | Z20: .
A21: Aruba | B21: ABW | C21: 2009 | E21: . | F21: . | G21: . | I21: 10440645 | J21: . | K21: 0.5 | M21: . | O21: . | Q21: 0.04215923207 | R21: . | S21: . | W21: . | X21: . | Y21: . | Z21: .
A22: Aruba | B22: ABW | C22: 2010 | E22: . | F22: . | G22: . | I22: 10716974 | J22: . | K22: 0.5 | M22: . | O22: . | Q22: 0.02612247752 | R22: . | S22: . | W22: . | X22: . | Y22: . | Z22: .
A23: Aruba | B23: ABW | C23: 2011 | E23: . | F23: . | G23: . | I23: 10906486 | J23: . | K23: 0.5 | M23: . | O23: . | Q23: 0.01752881846 | R23: . | S23: . | W23: . | X23: . | Y23: . | Z23: .
A24: Aruba | B24: ABW | C24: 2012 | E24: . | F24: . | G24: . | I24: 11036489 | J24: . | K24: 0.5 | M24: . | O24: . | Q24: 0.01184930677 | R24: . | S24: . | W24: . | X24: . | Y24: . | Z24: .
A25: Aruba | B25: ABW | C25: 2013 | E25: . | F25: . | G25: . | I25: 11116556 | J25: . | K25: 0.5 | M25: . | O25: . | Q25: 0.007228563716 | R25: . | S25: . | W25: . | X25: . | Y25: . | Z25: .
A26: Aruba | B26: ABW | C26: 2014 | E26: . | F26: . | G26: . | I26: 11160044 | J26: . | K26: 0.5 | M26: . | O26: . | Q26: 0.003904370976 | R26: . | S26: . | W26: . | X26: . | Y26: . | Z26: .
A27: Aruba | B27: ABW | C27: 2015 | E27: . | F27: . | G27: . | I27: . | J27: . | K27: 0.5 | M27: . | O27: . | Q27: . | R27: . | S27: . | W27: . | X27: . | Y27: . | Z27: .
A28: Aruba | B28: ABW | C28: 2016 | E28: . | F28: . | G28: . | I28: . | J28: . | K28: 0.5 | M28: . | O28: . | Q28: . | R28: . | S28: . | W28: . | X28: . | Y28: . | Z28: .
A29: Afghanistan | B29: AFG | C29: 1990 | E29: 3271 | F29: . | G29: . | I29: . | J29: . | K29: 0.5 | M29: . | O29: . | Q29: . | R29: . | S29: . | W29: 0.6862826943 | X29: 0.2168850303 | Y29: 0.9031677246 | Z29: 0.09683227539
A30: Afghanistan | B30: AFG | C30: 1991 | E30: 3481 | F30: 3062 | G30: 0.1199999973 | I30: . | J30: . | K30: 0.5 | M30: . | O30: . | Q30: . | R30: . | S30: 0.06222386027 | W30: 0.6862826943 | X30: 0.2168850303 | Y30: 0.9031677246 | Z30: 0.09683227539
A31: Afghanistan | B31: AFG | C31: 1992 | E31: 3759 | F31: 3359 | G31: 0.1070000008 | I31: . | J31: . | K31: 0.5 | M31: . | O31: . | Q31: . | R31: . | S31: 0.07683335575 | W31: 0.6862826943 | X31: 0.2168850303 | Y31: 0.9031677246 | Z31: 0.09683227539
A32: Afghanistan | B32: AFG | C32: 1993 | E32: 4068 | F32: 3565 | G32: 0.123999998 | I32: . | J32: . | K32: 0.5 | M32: . | O32: . | Q32: . | R32: . | S32: 0.0789985136 | W32: 0.6862826943 | X32: 0.2168850303 | Y32: 0.9031677246 | Z32: 0.09683227539
A33: Afghanistan | B33: AFG | C33: 1994 | E33: 4366 | F33: 3829 | G33: 0.1230000034 | I33: . | J33: . | K33: 0.5 | M33: . | O33: . | Q33: . | R33: . | S33: 0.07069577994 | W33: 0.6862826943 | X33: 0.2168850303 | Y33: 0.9031677246 | Z33: 0.09683227539
A34: Afghanistan | B34: AFG | C34: 1995 | E34: 4631 | F34: 4228 | G34: 0.0869999975 | I34: . | J34: . | K34: 0.5 | M34: . | O34: . | Q34: . | R34: . | S34: 0.05892556937 | W34: 0.6862826943 | X34: 0.2168850303 | Y34: 0.9031677246 | Z34: 0.09683227539
A35: Afghanistan | B35: AFG | C35: 1996 | E35: 4802 | F35: 4267 | G35: 0.1110000014 | I35: . | J35: . | K35: 0.5 | M35: . | O35: . | Q35: . | R35: . | S35: 0.0362596703 | W35: 0.6862826943 | X35: 0.2168850303 | Y35: 0.9031677246 | Z35: 0.09683227539
A36: Afghanistan | B36: AFG | C36: 1997 | E36: 4925 | F36: 4378 | G36: 0.1110000014 | I36: . | J36: . | K36: 0.5 | M36: . | O36: . | Q36: . | R36: . | S36: 0.02529177682 | W36: 0.6862826943 | X36: 0.2168850303 | Y36: 0.9031677246 | Z36: 0.09683227539
A37: Afghanistan | B37: AFG | C37: 1998 | E37: 5032 | F37: 4478 | G37: 0.1099999994 | I37: . | J37: . | K37: 0.5 | M37: . | O37: . | Q37: . | R37: . | S37: 0.02149324477 | W37: 0.6862826943 | X37: 0.2168850303 | Y37: 0.9031677246 | Z37: 0.09683227539
A38: Afghanistan | B38: AFG | C38: 1999 | E38: 5163 | F38: 4591 | G38: 0.1110000014 | I38: . | J38: . | K38: 0.5 | M38: . | O38: . | Q38: . | R38: . | S38: 0.0257002865 | W38: 0.6862826943 | X38: 0.2168850303 | Y38: 0.9031677246 | Z38: 0.09683227539
A39: Afghanistan | B39: AFG | C39: 2000 | E39: 5337 | F39: 4740 | G39: 0.111999996 | I39: . | J39: . | K39: 0.5 | M39: . | O39: . | Q39: . | R39: . | S39: 0.03314589145 | W39: 0.6862826943 | X39: 0.2168850303 | Y39: 0.9031677246 | Z39: 0.09683227539
A40: Afghanistan | B40: AFG | C40: 2001 | E40: 5607 | F40: 4957 | G40: 0.1160000041 | I40: . | J40: . | K40: 0.5 | M40: . | O40: . | Q40: . | R40: . | S40: 0.04935211979 | W40: 0.6862826943 | X40: 0.2168850303 | Y40: 0.9031677246 | Z40: 0.09683227539
A41: Afghanistan | B41: AFG | C41: 2002 | E41: 5935 | F41: 5419 | G41: 0.0869999975 | I41: . | J41: . | K41: 0.5 | M41: 8013233.122 | O41: . | Q41: . | R41: . | S41: 0.05685121092 | W41: 0.6862826943 | X41: 0.2168850303 | Y41: 0.9031677246 | Z41: 0.09683227539
A42: Afghanistan | B42: AFG | C42: 2003 | E42: 6293 | F42: 5736 | G42: 0.0889999941 | I42: . | J42: . | K42: 0.5 | M42: 8689883.606 | O42: . | Q42: . | R42: . | S42: 0.05857087648 | W42: 0.6862826943 | X42: 0.2168850303 | Y42: 0.9031677246 | Z42: 0.09683227539
A43: Afghanistan | B43: AFG | C43: 2004 | E43: 6645 | F43: 5980 | G43: 0.1000000015 | I43: . | J43: . | K43: 0.5 | M43: 8781610.175 | O43: . | Q43: . | R43: . | S43: 0.05442678762 | W43: 0.6862826943 | X43: 0.2168850303 | Y43: 0.9031677246 | Z43: 0.09683227539
A44: Afghanistan | B44: AFG | C44: 2005 | E44: 6969 | F44: 6379 | G44: 0.08500000089 | I44: . | J44: . | K44: 0.5 | M44: 9762978.844 | O44: . | Q44: . | R44: . | S44: 0.04760705029 | W44: 0.6862826943 | X44: 0.2168850303 | Y44: 0.9031677246 | Z44: 0.09683227539
A45: Afghanistan | B45: AFG | C45: 2006 | E45: 7134 | F45: 6488 | G45: 0.0910000056 | I45: . | J45: . | K45: 0.5 | M45: 10305228.13 | O45: . | Q45: . | R45: . | S45: 0.02340034448 | W45: 0.6862826943 | X45: 0.2168850303 | Y45: 0.9031677246 | Z45: 0.09683227539
A46: Afghanistan | B46: AFG | C46: 2007 | E46: 7265 | F46: 6698 | G46: 0.07800000161 | I46: . | J46: . | K46: 0.5 | M46: 11721187.59 | O46: . | Q46: . | R46: . | S46: 0.01819621009 | W46: 0.6862826943 | X46: 0.2168850303 | Y46: 0.9031677246 | Z46: 0.09683227539
A47: Afghanistan | B47: AFG | C47: 2008 | E47: 7391 | F47: 6744 | G47: 0.08799999952 | I47: . | J47: . | K47: 0.5 | M47: 12144482.86 | O47: . | Q47: . | R47: . | S47: 0.01719474678 | W47: 0.6862826943 | X47: 0.2168850303 | Y47: 0.9031677246 | Z47: 0.09683227539
A48: Afghanistan | B48: AFG | C48: 2009 | E48: 7550 | F48: 7044 | G48: 0.06700000167 | I48: . | J48: . | K48: 0.5 | M48: 14697331.94 | O48: . | Q48: . | R48: . | S48: 0.02128451946 | W48: 0.6862826943 | X48: 0.2168850303 | Y48: 0.9031677246 | Z48: 0.09683227539
A49: Afghanistan | B49: AFG | C49: 2010 | E49: 7767 | F49: 7159 | G49: 0.07800000161 | I49: . | J49: . | K49: 0.5 | M49: 15936800.64 | O49: . | Q49: . | R49: . | S49: 0.02833642618 | W49: 0.6862826943 | X49: 0.2168850303 | Y49: 0.9031677246 | Z49: 0.09683227539
A50: Afghanistan | B50: AFG | C50: 2011 | E50: 8127 | F50: 7458 | G50: 0.08199999481 | I50: . | J50: . | K50: 0.5 | M50: 16911126.45 | O50: . | Q50: . | R50: . | S50: 0.04530786233 | W50: 0.6862826943 | X50: 0.2168850303 | Y50: 0.9031677246 | Z50: 0.09683227539
A51: Afghanistan | B51: AFG | C51: 2012 | E51: 8561 | F51: 7881 | G51: 0.07900000364 | I51: . | J51: . | K51: 0.5 | M51: 19352203.81 | O51: . | Q51: . | R51: . | S51: 0.05202515399 | W51: 0.6862826943 | X51: 0.2168850303 | Y51: 0.9031677246 | Z51: 0.09683227539
A52: Afghanistan | B52: AFG | C52: 2013 | E52: 9051 | F52: 8286 | G52: 0.08500000089 | I52: . | J52: . | K52: 0.5 | M52: 19731337.26 | O52: . | Q52: . | R52: . | S52: 0.05565824308 | W52: 0.6862826943 | X52: 0.2168850303 | Y52: 0.9031677246 | Z52: 0.09683227539
A53: Afghanistan | B53: AFG | C53: 2014 | E53: 9568 | F53: 8735 | G53: 0.0869999975 | I53: . | J53: . | K53: 0.5 | M53: 19990317.16 | O53: . | Q53: . | R53: . | S53: 0.05554894836 | W53: 0.6862826943 | X53: 0.2168850303 | Y53: 0.9031677246 | Z53: 0.09683227539
A54: Afghanistan | B54: AFG | C54: 2015 | E54: 10088 | F54: 9193 | G54: 0.0889999941 | I54: . | J54: . | K54: 0.5 | M54: 20212720.94 | O54: . | Q54: . | R54: . | S54: 0.05292240145 | W54: 0.6862826943 | X54: 0.2168850303 | Y54: 0.9031677246 | Z54: 0.09683227539
A55: Afghanistan | B55: AFG | C55: 2016 | E55: 10552 | F55: 9619 | G55: 0.08799999952 | I55: . | J55: . | K55: 0.5 | M55: 20663923.8 | O55: . | Q55: . | R55: . | S55: 0.04496881675 | W55: 0.6862826943 | X55: 0.2168850303 | Y55: 0.9031677246 | Z55: 0.09683227539
A56: Angola | B56: AGO | C56: 1990 | E56: 4926 | F56: . | G56: . | I56: 42239968 | J56: . | K56: 0.5 | M56: . | O56: . | Q56: . | R56: . | S56: . | W56: 0.6562298536 | X56: 0.2847701907 | Y56: 0.9409999847 | Z56: 0.05900001526
A57: Angola | B57: AGO | C57: 1991 | E57: 5071 | F57: 3872 | G57: 0.2370000035 | I57: 44666840 | J57: . | K57: 0.5 | M57: . | O57: . | Q57: 0.05586451005 | R57: . | S57: 0.02901073711 | W57: 0.6562298536 | X57: 0.2847701907 | Y57: 0.9409999847 | Z57: 0.05900001526
A58: Angola | B58: AGO | C58: 1992 | E58: 5238 | F58: 4000 | G58: 0.2360000014 | I58: 49532424 | J58: . | K58: 0.5 | M58: . | O58: . | Q58: 0.1033960936 | R58: . | S58: 0.03240170927 | W58: 0.6562298536 | X58: 0.2847701907 | Y58: 0.9409999847 | Z58: 0.05900001526
A59: Angola | B59: AGO | C59: 1993 | E59: 5422 | F59: 4140 | G59: 0.2360000014 | I59: 52739372 | J59: . | K59: 0.5 | M59: . | O59: . | Q59: 0.06273478794 | R59: . | S59: 0.03452500499 | W59: 0.6562298536 | X59: 0.2847701907 | Y59: 0.9409999847 | Z59: 0.05900001526
A60: Angola | B60: AGO | C60: 1994 | E60: 5606 | F60: 4274 | G60: 0.2379999906 | I60: 55740908 | J60: . | K60: 0.5 | M60: . | O60: . | Q60: 0.05535203845 | R60: . | S60: 0.03337270167 | W60: 0.6562298536 | X60: 0.2847701907 | Y60: 0.9409999847 | Z60: 0.05900001526
A61: Angola | B61: AGO | C61: 1995 | E61: 5790 | F61: 4405 | G61: 0.2389999926 | I61: 59895052 | J61: . | K61: 0.5 | M61: . | O61: . | Q61: 0.07187958553 | R61: . | S61: 0.03229483884 | W61: 0.6562298536 | X61: 0.2847701907 | Y61: 0.9409999847 | Z61: 0.05900001526
A62: Angola | B62: AGO | C62: 1996 | E62: 5956 | F62: 4529 | G62: 0.2399999946 | I62: 67019380 | J62: . | K62: 0.5 | M62: . | O62: . | Q62: 0.1123879339 | R62: . | S62: 0.02826682324 | W62: 0.6562298536 | X62: 0.2847701907 | Y62: 0.9409999847 | Z62: 0.05900001526
A63: Angola | B63: AGO | C63: 1997 | E63: 6126 | F63: 4663 | G63: 0.2389999926 | I63: 71710992 | J63: . | K63: 0.5 | M63: . | O63: . | Q63: 0.06766221 | R63: . | S63: 0.02814289359 | W63: 0.6562298536 | X63: 0.2847701907 | Y63: 0.9409999847 | Z63: 0.05900001526
A64: Angola | B64: AGO | C64: 1998 | E64: 6304 | F64: 4801 | G64: 0.2379999906 | I64: 79031928 | J64: . | K64: 0.5 | M64: . | O64: . | Q64: 0.09720788142 | R64: . | S64: 0.02864234414 | W64: 0.6562298536 | X64: 0.2847701907 | Y64: 0.9409999847 | Z64: 0.05900001526
A65: Angola | B65: AGO | C65: 1999 | E65: 6498 | F65: 4953 | G65: 0.2379999906 | I65: 84119968 | J65: . | K65: 0.5 | M65: . | O65: . | Q65: 0.06239204771 | R65: . | S65: 0.03031008469 | W65: 0.6562298536 | X65: 0.2847701907 | Y65: 0.9409999847 | Z65: 0.05900001526
A66: Angola | B66: AGO | C66: 2000 | E66: 6712 | F66: 5119 | G66: 0.2370000035 | I66: 85389640 | J66: . | K66: 0.5 | M66: . | O66: . | Q66: =IFERROR(IF($C66=MIN($C$2:$C$50),".",LN(I66)-LN(I65)),".") -> 0.01498081153 | R66: . | S66: =IFERROR(IF($C66=MIN($C$2:$C$50),".",LN(E66)-LN(E65)),".") -> 0.03240253192 | W66: 0.6562298536 | X66: 0.2847701907 | Y66: 0.9409999847 | Z66: 0.05900001526
A67: Angola | B67: AGO | C67: 2001 | E67: 6935 | F67: 5289 | G67: 0.2370000035 | I67: 86229888 | J67: . | K67: 0.5 | M67: . | O67: . | Q67: 0.009792064151 | R67: . | S67: 0.0326840846 | W67: 0.6562298536 | X67: 0.2847701907 | Y67: 0.9409999847 | Z67: =IFERROR(1-Y67,".") -> 0.05900001526
A68: Angola | B68: AGO | C68: 2002 | E68: 7182 | F68: 5473 | G68: 0.2379999906 | I68: 87351880 | J68: . | K68: 0.5 | M68: . | O68: . | Q68: 0.01292771285 | R68: . | S68: 0.03499684204 | W68: 0.6562298536 | X68: 0.2847701907 | Y68: 0.9409999847 | Z68: 0.05900001526
A69: Angola | B69: AGO | C69: 2003 | E69: 7446 | F69: 5687 | G69: 0.2360000014 | I69: 89758296 | J69: . | K69: 0.5 | M69: . | O69: . | Q69: 0.02717589868 | R69: . | S69: 0.03609907965 | W69: 0.6562298536 | X69: 0.2847701907 | Y69: 0.9409999847 | Z69: 0.05900001526
A70: Angola | B70: AGO | C70: 2004 | E70: 7723 | F70: 5898 | G70: 0.2360000014 | I70: 93079832 | J70: . | K70: 0.5 | M70: . | O70: . | Q70: 0.0363370759 | R70: . | S70: 0.03652591414 | W70: 0.6562298536 | X70: 0.2847701907 | Y70: 0.9409999847 | Z70: 0.05900001526
A71: Angola | B71: AGO | C71: 2005 | E71: 8011 | F71: 6300 | G71: 0.2140000015 | I71: 97111480 | J71: . | K71: 0.5 | M71: . | O71: . | Q71: 0.04240206341 | R71: . | S71: 0.03661270765 | W71: 0.6562298536 | X71: 0.2847701907 | Y71: 0.9409999847 | Z71: 0.05900001526
A72: Angola | B72: AGO | C72: 2006 | E72: 8294 | F72: 6711 | G72: 0.1909999996 | I72: 101310680 | J72: . | K72: 0.5 | M72: . | O72: . | Q72: 0.04233223818 | R72: . | S72: 0.03471676459 | W72: 0.6562298536 | X72: 0.2847701907 | Y72: 0.9409999847 | Z72: 0.05900001526
A73: Angola | B73: AGO | C73: 2007 | E73: 8591 | F73: 7147 | G73: 0.1679999977 | I73: 106322640 | J73: . | K73: 0.5 | M73: . | O73: . | Q73: 0.04828640968 | R73: . | S73: 0.03518278183 | W73: 0.6562298536 | X73: 0.2847701907 | Y73: 0.9409999847 | Z73: 0.05900001526
A74: Angola | B74: AGO | C74: 2008 | E74: 8903 | F74: 7612 | G74: 0.1449999958 | I74: 113530304 | J74: . | K74: 0.5 | M74: . | O74: . | Q74: 0.06559155208 | R74: . | S74: 0.03567315494 | W74: 0.6562298536 | X74: 0.2847701907 | Y74: 0.9409999847 | Z74: 0.05900001526
A75: Angola | B75: AGO | C75: 2009 | E75: 9234 | F75: 8113 | G75: 0.1210000068 | I75: 122075928 | J75: . | K75: 0.5 | M75: . | O75: . | Q75: 0.07257341492 | R75: . | S75: 0.03650402549 | W75: 0.6562298536 | X75: 0.2847701907 | Y75: 0.9409999847 | Z75: 0.05900001526
A76: Angola | B76: AGO | C76: 2010 | E76: 9578 | F76: 8634 | G76: 0.09899999946 | I76: 129095584 | J76: . | K76: 0.5 | M76: . | O76: . | Q76: 0.05590987942 | R76: . | S76: 0.03657647784 | W76: 0.6562298536 | X76: 0.2847701907 | Y76: 0.9409999847 | Z76: 0.05900001526
A77: Angola | B77: AGO | C77: 2011 | E77: 9926 | F77: 9196 | G77: 0.07400000095 | I77: 137743136 | J77: . | K77: 0.5 | M77: . | O77: . | Q77: 0.06483752616 | R77: . | S77: 0.03568877524 | W77: 0.6562298536 | X77: 0.2847701907 | Y77: 0.9409999847 | Z77: 0.05900001526
A78: Angola | B78: AGO | C78: 2012 | E78: 10292 | F78: 9535 | G78: 0.07400000095 | I78: 147082640 | J78: . | K78: 0.5 | M78: . | O78: . | Q78: 0.0656039883 | R78: . | S78: 0.03620931725 | W78: 0.6562298536 | X78: 0.2847701907 | Y78: 0.9409999847 | Z78: 0.05900001526
A79: Angola | B79: AGO | C79: 2013 | E79: 10671 | F79: 9889 | G79: 0.07299999893 | I79: 156628224 | J79: . | K79: 0.5 | M79: . | O79: . | Q79: 0.06288039152 | R79: . | S79: 0.03616288721 | W79: 0.6562298536 | X79: 0.2847701907 | Y79: 0.9409999847 | Z79: 0.05900001526
A80: Angola | B80: AGO | C80: 2014 | E80: 11063 | F80: 10254 | G80: 0.07299999893 | I80: 166705840 | J80: . | K80: 0.5 | M80: . | O80: . | Q80: 0.06235582493 | R80: . | S80: 0.03607642542 | W80: 0.6562298536 | X80: 0.2847701907 | Y80: 0.9409999847 | Z80: 0.05900001526
A81: Angola | B81: AGO | C81: 2015 | E81: 11464 | F81: 10630 | G81: 0.07299999893 | I81: 169872368 | J81: . | K81: 0.5 | M81: . | O81: . | Q81: 0.01881655647 | R81: . | S81: 0.03560548347 | W81: 0.6562298536 | X81: 0.2847701907 | Y81: 0.9409999847 | Z81: 0.05900001526
A82: Angola | B82: AGO | C82: 2016 | E82: 11871 | F82: 10954 | G82: 0.07699999958 | I82: 171087792 | J82: . | K82: 0.5 | M82: . | O82: . | Q82: 0.007129449659 | R82: . | S82: 0.03488676055 | W82: 0.6562298536 | X82: 0.2847701907 | Y82: 0.9409999847 | Z82: 0.05900001526
A83: Albania | B83: ALB | C83: 1990 | E83: 1418 | F83: . | G83: . | I83: 15869434 | J83: . | K83: 0.4620000124 | M83: 6177564.328 | O83: . | Q83: . | R83: . | S83: . | W83: 0.5678884387 | X83: 0.0421115607 | Y83: 0.6100000143 | Z83: 0.3899999857
A84: Albania | B84: ALB | C84: 1991 | E84: 1440 | F84: 1118 | G84: 0.22299999 | I84: 15436842 | J84: 33.10988617 | K84: 0.4620000124 | M84: 4349684.961 | O84: . | Q84: -0.02763787913 | R84: . | S84: 0.01539568548 | W84: 0.5678884387 | X84: 0.0421115607 | Y84: 0.6100000143 | Z84: 0.3899999857
A85: Albania | B85: ALB | C85: 1992 | E85: 1424 | F85: 1102 | G85: 0.227000013 | I85: 14961973 | J85: 31.43551254 | K85: 0.4620000124 | M85: 4036507.645 | O85: . | Q85: -0.03124514112 | R85: -0.05189371109 | S85: -0.0111733006 | W85: 0.5678884387 | X85: 0.0421115607 | Y85: 0.6100000143 | Z85: 0.3899999857
A86: Albania | B86: ALB | C86: 1993 | E86: 1389 | F86: 1044 | G86: 0.2479999959 | I86: 14824231 | J86: 35.56148911 | K86: 0.4620000124 | M86: 4424012.38 | O86: . | Q86: -0.009248777177 | R86: 0.1233251095 | S86: -0.02488574922 | W86: 0.5678884387 | X86: 0.0421115607 | Y86: 0.6100000143 | Z86: 0.3899999857
A87: Albania | B87: ALB | C87: 1994 | E87: 1355 | F87: 1022 | G87: 0.2460000068 | I87: 14995199 | J87: 38.70287323 | K87: 0.4620000124 | M87: 4791205.407 | O87: . | Q87: 0.0114670115 | R87: 0.08465051651 | S87: -0.02478260944 | W87: 0.5678884387 | X87: 0.0421115607 | Y87: 0.6100000143 | Z87: 0.3899999857
A88: Albania | B88: ALB | C88: 1995 | E88: 1323 | F88: 1007 | G88: 0.2389999926 | I88: 15247789 | J88: 43.80831146 | K88: 0.4620000124 | M88: 5428435.726 | O88: . | Q88: 0.01670442573 | R88: 0.1239097118 | S88: -0.0238995692 | W88: 0.5678884387 | X88: 0.0421115607 | Y88: 0.6100000143 | Z88: 0.3899999857
A89: Albania | B89: ALB | C89: 1996 | E89: 1322 | F89: 1012 | G89: 0.2339999974 | I89: 15777158 | J89: 46.86998749 | K89: 0.4620000124 | M89: 5922423.377 | O89: . | Q89: 0.03412868887 | R89: 0.06755399704 | S89: -0.0007561437033 | W89: 0.5678884387 | X89: 0.0421115607 | Y89: 0.6100000143 | Z89: 0.3899999857
A90: Albania | B90: ALB | C90: 1997 | E90: 1345 | F90: 1033 | G90: 0.2320000082 | I90: 16087188 | J90: 40.96281052 | K90: 0.4620000124 | M90: 5280559.676 | O90: . | Q90: 0.01945998099 | R90: -0.1347129345 | S90: 0.01724827162 | W90: 0.5678884387 | X90: 0.0421115607 | Y90: 0.6100000143 | Z90: 0.3899999857
A91: Albania | B91: ALB | C91: 1998 | E91: 1353 | F91: 1041 | G91: 0.2300000042 | I91: 16473027 | J91: 43.95716095 | K91: 0.4620000124 | M91: 5756277.51 | O91: . | Q91: 0.02370113721 | R91: 0.07055091858 | S91: 0.005930336135 | W91: 0.5678884387 | X91: 0.0421115607 | Y91: 0.6100000143 | Z91: 0.3899999857
A92: Albania | B92: ALB | C92: 1999 | E92: 1358 | F92: 1041 | G92: 0.2329999954 | I92: 17150478 | J92: 48.89659882 | K92: 0.4620000124 | M92: 6533442.517 | O92: . | Q92: 0.04030172893 | R92: 0.106492281 | S92: 0.003688679948 | W92: 0.5678884387 | X92: 0.0421115607 | Y92: 0.6100000143 | Z92: 0.3899999857
A93: Albania | B93: ALB | C93: 2000 | E93: 1365 | F93: 1055 | G93: 0.227000013 | I93: 18310184 | J93: 50.1415863 | K93: 0.4620000124 | M93: 6969002.335 | O93: . | Q93: 0.06543136285 | R93: 0.0251429081 | S93: 0.0051413995 | W93: 0.5678884387 | X93: 0.0421115607 | Y93: 0.6100000143 | Z93: 0.3899999857
A94: Albania | B94: ALB | C94: 2001 | E94: 1366 | F94: 1056 | G94: 0.227000013 | I94: 19877664 | J94: 51.92060089 | K94: 0.4620000124 | M94: 7522364.217 | O94: . | Q94: 0.0821392815 | R94: 0.0348649025 | S94: 0.0007323325117 | W94: 0.5678884387 | X94: 0.0421115607 | Y94: 0.6100000143 | Z94: 0.3899999857
A95: Albania | B95: ALB | C95: 2002 | E95: 1368 | F95: 1074 | G95: 0.2150000036 | I95: 21485872 | J95: 51.61479187 | K95: 0.4620000124 | M95: 7840663.356 | O95: . | Q95: 0.07779891357 | R95: -0.005907297134 | S95: =IFERROR(IF($C95=MIN($C$2:$C$50),".",LN(E95)-LN(E94)),".") -> 0.001463058052 | W95: 0.5678884387 | X95: 0.0421115607 | Y95: 0.6100000143 | Z95: 0.3899999857
A96: Albania | B96: ALB | C96: 2003 | E96: 1351 | F96: 1079 | G96: 0.202000007 | I96: 23461188 | J96: 52.12474442 | K96: 0.4620000124 | M96: 8293343.315 | O96: . | Q96: 0.08795187847 | R96: 0.009831428528 | S96: -0.01250476022 | W96: 0.5678884387 | X96: 0.0421115607 | Y96: 0.6100000143 | Z96: 0.3899999857
A97: Albania | B97: ALB | C97: 2004 | E97: 1332 | F97: 1081 | G97: 0.1879999936 | I97: 25434470 | J97: 52.87126541 | K97: 0.4620000124 | M97: 8766856.445 | O97: . | Q97: 0.0807578593 | R97: 0.01422023773 | S97: -0.01416348686 | W97: 0.5678884387 | X97: 0.0421115607 | Y97: 0.6100000143 | Z97: 0.3899999857
A98: Albania | B98: ALB | C98: 2005 | E98: 1311 | F98: 1082 | G98: 0.174999997 | I98: 27470106 | J98: 53.76016998 | K98: 0.4620000124 | M98: 9268392.518 | O98: . | Q98: 0.07699301823 | R98: 0.01667284966 | S98: -0.01589136734 | W98: 0.5678884387 | X98: 0.0421115607 | Y98: 0.6100000143 | Z98: 0.3899999857
A99: Albania | B99: ALB | C99: 2006 | E99: 1293 | F99: 1086 | G99: 0.1599999964 | I99: 29820796 | J99: 54.29980469 | K99: 0.4620000124 | M99: 9771760.096 | O99: . | Q99: 0.08210764362 | R99: 0.009987831116 | S99: -0.01382510499 | W99: 0.5678884387 | X99: 0.0421115607 | Y99: 0.6100000143 | Z99: 0.3899999857
A100: Albania | B100: ALB | C100: 2007 | E100: 1273 | F100: 1101 | G100: 0.1350000054 | I100: 32265614 | J100: 54.90415573 | K100: 0.4620000124 | M100: 10348293.94 | O100: . | Q100: 0.07879607864 | R100: 0.01106834412 | S100: -0.01558878021 | W100: 0.5678884387 | X100: 0.0421115607 | Y100: 0.6100000143 | Z100: 0.3899999857
A101: Albania | B101: ALB | C101: 2008 | E101: 1253 | F101: 1090 | G101: 0.1309999973 | I101: 34801660 | J101: 57.13276291 | K101: 0.4620000124 | M101: 11127520.47 | O101: . | Q101: 0.07566300568 | R101: 0.03978872299 | S101: -0.01583564366 | W101: 0.5678884387 | X101: 0.0421115607 | Y101: 0.6100000143 | Z101: 0.3899999857
A102: Albania | B102: ALB | C102: 2009 | E102: 1241 | F102: 1071 | G102: 0.1379999965 | I102: 37291940 | J102: 57.5448761 | K102: 0.4620000124 | M102: 11500292.41 | O102: . | Q102: 0.06911213072 | R102: 0.007187366486 | S102: -0.009623169691 | W102: 0.5678884387 | X102: 0.0421115607 | Y102: 0.6100000143 | Z102: 0.3899999857
A103: Albania | B103: ALB | C103: 2010 | E103: 1237 | F103: 1062 | G103: 0.1420000046 | I103: 39415168 | J103: 58.29556274 | K103: 0.4620000124 | M103: 11926953.26 | O103: . | Q103: 0.05537349933 | R103: 0.0129609108 | S103: -0.003228412812 | W103: 0.5678884387 | X103: 0.0421115607 | Y103: 0.6100000143 | Z103: 0.3899999857
A104: Albania | B104: ALB | C104: 2011 | E104: 1281 | F104: 1102 | G104: 0.1400000006 | I104: 41686644 | J104: 57.06581116 | K104: 0.4620000124 | M104: 12231090.57 | O104: . | Q104: 0.05603007289 | R104: -0.02132081985 | S104: 0.0349519295 | W104: 0.5678884387 | X104: 0.0421115607 | Y104: 0.6100000143 | Z104: 0.3899999857
A105: Albania | B105: ALB | C105: 2012 | E105: 1334 | F105: 1155 | G105: 0.1340000033 | I105: 43561540 | J105: 55.30266953 | K105: 0.4620000124 | M105: 12404772.05 | O105: . | Q105: 0.04399386124 | R105: -0.03138399124 | S105: 0.04054092458 | W105: 0.5678884387 | X105: 0.0421115607 | Y105: 0.6100000143 | Z105: 0.3899999857
A106: Albania | B106: ALB | C106: 2013 | E106: 1259 | F106: 1062 | G106: 0.1560000032 | I106: 45460456 | J106: 57.08260345 | K106: 0.4620000124 | M106: 12542465.02 | O106: . | Q106: 0.0426681982 | R106: 0.03167819977 | S106: -0.05786419243 | W106: 0.5678884387 | X106: 0.0421115607 | Y106: 0.6100000143 | Z106: 0.3899999857
A107: Albania | B107: ALB | C107: 2014 | E107: 1290 | F107: 1064 | G107: 0.174999997 | I107: 46664744 | J107: 57.30142593 | K107: 0.4620000124 | M107: 12768229.39 | O107: . | Q107: 0.02614608392 | R107: 0.003826141357 | S107: 0.02432446331 | W107: 0.5678884387 | X107: 0.0421115607 | Y107: 0.6100000143 | Z107: 0.3899999857
A108: Albania | B108: ALB | C108: 2015 | E108: 1353 | F108: 1122 | G108: 0.1710000038 | I108: 48120116 | J108: 56.37363052 | K108: 0.4620000124 | M108: 13098926.53 | O108: . | Q108: 0.03071136865 | R108: -0.01632404327 | S108: 0.04768213082 | W108: 0.5678884387 | X108: 0.0421115607 | Y108: 0.6100000143 | Z108: 0.3899999857
A109: Albania | B109: ALB | C109: 2016 | E109: 1355 | F109: 1149 | G109: 0.1519999951 | I109: 49726688 | J109: 56.69612503 | K109: 0.4620000124 | M109: 13552149.39 | O109: . | Q109: 0.03284146913 | R109: 0.005704402924 | S109: 0.001477105143 | W109: 0.5678884387 | X109: 0.0421115607 | Y109: 0.6100000143 | Z109: 0.3899999857
A110: Andorra | B110: AND | C110: 1990 | E110: . | F110: . | G110: . | I110: . | J110: . | K110: 0.5 | M110: . | O110: . | Q110: . | R110: . | S110: . | W110: . | X110: . | Y110: . | Z110: .
A111: Andorra | B111: AND | C111: 1991 | E111: . | F111: . | G111: . | I111: . | J111: . | K111: 0.5 | M111: . | O111: . | Q111: . | R111: . | S111: . | W111: . | X111: . | Y111: . | Z111: .
A112: Andorra | B112: AND | C112: 1992 | E112: . | F112: . | G112: . | I112: . | J112: . | K112: 0.5 | M112: . | O112: . | Q112: . | R112: . | S112: . | W112: . | X112: . | Y112: . | Z112: .
A113: Andorra | B113: AND | C113: 1993 | E113: . | F113: . | G113: . | I113: . | J113: . | K113: 0.5 | M113: . | O113: . | Q113: . | R113: . | S113: . | W113: . | X113: . | Y113: . | Z113: .
A114: Andorra | B114: AND | C114: 1994 | E114: . | F114: . | G114: . | I114: . | J114: . | K114: 0.5 | M114: . | O114: . | Q114: . | R114: . | S114: . | W114: . | X114: . | Y114: . | Z114: .
A115: Andorra | B115: AND | C115: 1995 | E115: . | F115: . | G115: . | I115: . | J115: . | K115: 0.5 | M115: . | O115: . | Q115: . | R115: . | S115: . | W115: . | X115: . | Y115: . | Z115: .
A116: Andorra | B116: AND | C116: 1996 | E116: . | F116: . | G116: . | I116: . | J116: . | K116: 0.5 | M116: . | O116: . | Q116: . | R116: . | S116: . | W116: . | X116: . | Y116: . | Z116: .
A117: Andorra | B117: AND | C117: 1997 | E117: . | F117: . | G117: . | I117: . | J117: . | K117: 0.5 | M117: . | O117: . | Q117: . | R117: . | S117: . | W117: . | X117: . | Y117: . | Z117: .
A118: Andorra | B118: AND | C118: 1998 | E118: . | F118: . | G118: . | I118: . | J118: . | K118: 0.5 | M118: . | O118: . | Q118: . | R118: . | S118: . | W118: . | X118: . | Y118: . | Z118: .
A119: Andorra | B119: AND | C119: 1999 | E119: . | F119: . | G119: . | I119: . | J119: . | K119: 0.5 | M119: . | O119: . | Q119: . | R119: . | S119: . | W119: . | X119: . | Y119: . | Z119: .
A120: Andorra | B120: AND | C120: 2000 | E120: . | F120: . | G120: . | I120: . | J120: . | K120: 0.5 | M120: . | O120: . | Q120: . | R120: . | S120: . | W120: . | X120: . | Y120: . | Z120: .
A121: Andorra | B121: AND | C121: 2001 | E121: . | F121: . | G121: . | I121: . | J121: . | K121: 0.5 | M121: . | O121: . | Q121: . | R121: . | S121: . | W121: . | X121: . | Y121: . | Z121: .
A122: Andorra | B122: AND | C122: 2002 | E122: . | F122: . | G122: . | I122: . | J122: . | K122: 0.5 | M122: . | O122: . | Q122: . | R122: . | S122: . | W122: . | X122: . | Y122: . | Z122: .
A123: Andorra | B123: AND | C123: 2003 | E123: . | F123: . | G123: . | I123: . | J123: . | K123: 0.5 | M123: . | O123: . | Q123: . | R123: . | S123: . | W123: . | X123: . | Y123: . | Z123: .
A124: Andorra | B124: AND | C124: 2004 | E124: . | F124: . | G124: . | I124: . | J124: . | K124: 0.5 | M124: . | O124: . | Q124: . | R124: . | S124: . | W124: . | X124: . | Y124: . | Z124: .
A125: Andorra | B125: AND | C125: 2005 | E125: . | F125: . | G125: . | I125: . | J125: . | K125: 0.5 | M125: . | O125: . | Q125: . | R125: . | S125: . | W125: . | X125: . | Y125: . | Z125: .
A126: Andorra | B126: AND | C126: 2006 | E126: . | F126: . | G126: . | I126: . | J126: . | K126: 0.5 | M126: . | O126: . | Q126: . | R126: . | S126: . | W126: . | X126: . | Y126: . | Z126: .
A127: Andorra | B127: AND | C127: 2007 | E127: . | F127: . | G127: . | I127: . | J127: . | K127: 0.5 | M127: . | O127: . | Q127: . | R127: . | S127: . | W127: . | X127: . | Y127: . | Z127: .
A128: Andorra | B128: AND | C128: 2008 | E128: . | F128: . | G128: . | I128: . | J128: . | K128: 0.5 | M128: . | O128: . | Q128: . | R128: . | S128: . | W128: . | X128: . | Y128: . | Z128: .
A129: Andorra | B129: AND | C129: 2009 | E129: . | F129: . | G129: . | I129: . | J129: . | K129: 0.5 | M129: . | O129: . | Q129: . | R129: . | S129: . | W129: . | X129: . | Y129: . | Z129: .
A130: Andorra | B130: AND | C130: 2010 | E130: . | F130: . | G130: . | I130: . | J130: . | K130: 0.5 | M130: . | O130: . | Q130: =IFERROR(IF($C130=MIN($C$2:$C$50),".",LN(I130)-LN(I129)),".") -> . | R130: . | S130: =IFERROR(IF($C130=MIN($C$2:$C$50),".",LN(E130)-LN(E129)),".") -> . | W130: . | X130: . | Y130: . | Z130: .
A131: Andorra | B131: AND | C131: 2011 | E131: . | F131: . | G131: . | I131: . | J131: . | K131: 0.5 | M131: . | O131: . | Q131: . | R131: . | S131: . | W131: . | X131: . | Y131: . | Z131: =IFERROR(1-Y131,".") -> .
A132: Andorra | B132: AND | C132: 2012 | E132: . | F132: . | G132: . | I132: . | J132: . | K132: 0.5 | M132: . | O132: . | Q132: . | R132: . | S132: . | W132: . | X132: . | Y132: . | Z132: .
A133: Andorra | B133: AND | C133: 2013 | E133: . | F133: . | G133: . | I133: . | J133: . | K133: 0.5 | M133: . | O133: . | Q133: . | R133: . | S133: . | W133: . | X133: . | Y133: . | Z133: .
A134: Andorra | B134: AND | C134: 2014 | E134: . | F134: . | G134: . | I134: . | J134: . | K134: 0.5 | M134: . | O134: . | Q134: . | R134: . | S134: . | W134: . | X134: . | Y134: . | Z134: .
A135: Andorra | B135: AND | C135: 2015 | E135: . | F135: . | G135: . | I135: . | J135: . | K135: 0.5 | M135: . | O135: . | Q135: . | R135: . | S135: . | W135: . | X135: . | Y135: . | Z135: .
A136: Andorra | B136: AND | C136: 2016 | E136: . | F136: . | G136: . | I136: . | J136: . | K136: 0.5 | M136: . | O136: . | Q136: . | R136: . | S136: . | W136: . | X136: . | Y136: . | Z136: .
A137: United Arab Emirates | B137: ARE | C137: 1990 | E137: 940 | F137: . | G137: . | I137: 365251392 | J137: . | K137: 0.5 | M137: 125760629.1 | O137: . | Q137: . | R137: . | S137: . | W137: . | X137: . | Y137: . | Z137: .
A138: United Arab Emirates | B138: ARE | C138: 1991 | E138: 1008 | F138: 989 | G138: 0.01899999939 | I138: 379459808 | J138: 207.0537109 | K138: 0.5 | M138: 126842273.5 | O138: . | Q138: 0.03816282174 | R138: . | S138: 0.06984357337 | W138: . | X138: . | Y138: . | Z138: .
A139: United Arab Emirates | B139: ARE | C139: 1992 | E139: 1084 | F139: 1064 | G139: 0.01899999939 | I139: 397618368 | J139: 201.5344238 | K139: 0.5 | M139: 131085077.7 | O139: . | Q139: 0.04674398744 | R139: -0.02701807022 | S139: 0.07268973337 | W139: . | X139: . | Y139: . | Z139: .
A140: United Arab Emirates | B140: ARE | C140: 1993 | E140: 1168 | F140: 1146 | G140: 0.01899999939 | I140: 404720640 | J140: 194.9065247 | K140: 0.5 | M140: 132738310.8 | O140: . | Q140: 0.01770438042 | R140: -0.03344011307 | S140: 0.07463498139 | W140: . | X140: . | Y140: . | Z140: .
A141: United Arab Emirates | B141: ARE | C141: 1994 | E141: 1253 | F141: 1230 | G141: 0.01799999923 | I141: 415068672 | J141: 198.5847321 | K141: 0.5 | M141: 141892141.9 | O141: . | Q141: 0.02524692992 | R141: 0.0186958313 | S141: 0.07024779151 | W141: . | X141: . | Y141: . | Z141: .
A142: United Arab Emirates | B142: ARE | C142: 1995 | E142: 1339 | F142: 1315 | G142: 0.01799999923 | I142: 426879840 | J142: 202.0494995 | K142: 0.5 | M142: 151381727.2 | O142: . | Q142: 0.02805858723 | R142: 0.01729679108 | S142: 0.0663823908 | W142: . | X142: . | Y142: . | Z142: .
A143: United Arab Emirates | B143: ARE | C143: 1996 | E143: 1404 | F143: 1377 | G143: 0.01899999939 | I143: 439671648 | J143: 205.8360138 | K143: 0.5 | M143: 160159451.5 | O143: . | Q143: 0.02952562531 | R143: 0.01856708527 | S143: 0.04740223889 | W143: . | X143: . | Y143: . | Z143: .
A144: United Arab Emirates | B144: ARE | C144: 1997 | E144: 1479 | F144: 1449 | G144: 0.01999999955 | I144: 453817216 | J144: 213.6813202 | K144: 0.5 | M144: 173277149 | O144: . | Q144: 0.03166631526 | R144: 0.03740596771 | S144: 0.05204087813 | W144: . | X144: . | Y144: . | Z144: .
A145: United Arab Emirates | B145: ARE | C145: 1998 | E145: 1565 | F145: 1531 | G145: 0.02199999988 | I145: 468033984 | J145: 205.296402 | K145: 0.5 | M145: 173783108.5 | O145: . | Q145: 0.03084639962 | R145: -0.04003095627 | S145: 0.05651964026 | W145: . | X145: . | Y145: . | Z145: .
A146: United Arab Emirates | B146: ARE | C146: 1999 | E146: 1662 | F146: 1625 | G146: 0.02199999988 | I146: 482827072 | J146: 201.8876953 | K146: 0.5 | M146: 178826665.6 | O146: . | Q146: 0.03111765189 | R146: -0.01674318314 | S146: 0.06013587244 | W146: . | X146: . | Y146: . | Z146: .
A147: United Arab Emirates | B147: ARE | C147: 2000 | E147: 1772 | F147: 1732 | G147: 0.02300000004 | I147: 499080224 | J147: 213.2158813 | K147: 0.5 | M147: 198234194.6 | O147: . | Q147: 0.03310829181 | R147: 0.05459356308 | S147: 0.06408715575 | W147: . | X147: . | Y147: . | Z147: .
A148: United Arab Emirates | B148: ARE | C148: 2001 | E148: 1907 | F148: 1858 | G148: 0.02599999867 | I148: 515169248 | J148: 205.454071 | K148: 0.5 | M148: 201007659.6 | O148: . | Q148: 0.0317286312 | R148: -0.03708267212 | S148: 0.07342247444 | W148: . | X148: . | Y148: . | Z148: .
A149: United Arab Emirates | B149: ARE | C149: 2002 | E149: 2059 | F149: 2003 | G149: 0.0270000007 | I149: 532620160 | J149: 199.3449554 | K149: 0.5 | M149: 205899094.2 | O149: . | Q149: 0.03331304114 | R149: -0.03018569946 | S149: 0.07668910143 | W149: . | X149: . | Y149: . | Z149: .
A150: United Arab Emirates | B150: ARE | C150: 2003 | E150: 2256 | F150: 2192 | G150: 0.02900000103 | I150: 552000384 | J150: 203.6551666 | K150: 0.5 | M150: 224019328 | O150: . | Q150: 0.03574021722 | R150: 0.02139139175 | S150: 0.09137290559 | W150: . | X150: . | Y150: . | Z150: .
A151: United Arab Emirates | B151: ARE | C151: 2004 | E151: 2538 | F151: 2462 | G151: 0.02999999933 | I151: 571780800 | J151: 206.8732147 | K151: 0.5 | M151: 245449995.1 | O151: . | Q151: 0.03520695922 | R151: 0.01567792892 | S151: 0.1177830357 | W151: . | X151: . | Y151: . | Z151: .
A152: United Arab Emirates | B152: ARE | C152: 2005 | E152: 2929 | F152: 2838 | G152: 0.03099999949 | I152: 598398656 | J152: 197.4928131 | K152: 0.5 | M152: 257366938.9 | O152: . | Q152: 0.04550147952 | R152: -0.04640388489 | S152: 0.1432846986 | W152: . | X152: . | Y152: . | Z152: .
A153: United Arab Emirates | B153: ARE | C153: 2006 | E153: 3429 | F153: 3318 | G153: 0.03200000152 | I153: 631305280 | J153: 195.3191376 | K153: 0.5 | M153: 282684947.6 | O153: . | Q153: 0.05353236836 | R153: -0.01106739044 | S153: 0.1576076056 | W153: . | X153: . | Y153: . | Z153: .
A154: United Arab Emirates | B154: ARE | C154: 2007 | E154: 4055 | F154: 3919 | G154: 0.03299999982 | I154: 685312320 | J154: 177.9855957 | K154: 0.5 | M154: 291686739.3 | O154: . | Q154: 0.08208512693 | R154: -0.09293222427 | S154: 0.1676820141 | W154: . | X154: . | Y154: . | Z154: .
A155: United Arab Emirates | B155: ARE | C155: 2008 | E155: 4734 | F155: 4544 | G155: 0.03999999911 | I155: 737178368 | J155: 164.4585876 | K155: 0.5 | M155: 300996902.5 | O155: . | Q155: 0.07295520595 | R155: -0.0790438652 | S155: 0.1548198235 | W155: . | X155: . | Y155: . | Z155: .
A156: United Arab Emirates | B156: ARE | C156: 2009 | E156: 5363 | F156: 5139 | G156: 0.04199999943 | I156: 794055552 | J156: 141.1916351 | K156: 0.5 | M156: 285215869.9 | O156: . | Q156: 0.07432354163 | R156: -0.1525406837 | S156: 0.1247530089 | W156: . | X156: . | Y156: . | Z156: .
A157: United Arab Emirates | B157: ARE | C157: 2010 | E157: 5892 | F157: 5674 | G157: 0.03700000048 | I157: 840628480 | J157: 132.7309723 | K157: 0.5 | M157: 289880430.2 | O157: . | Q157: 0.05699637902 | R157: -0.06179380417 | S157: 0.0940719786 | W157: . | X157: . | Y157: . | Z157: .
A158: United Arab Emirates | B158: ARE | C158: 2011 | E158: 6153 | F158: 5950 | G158: 0.03299999982 | I158: 886652416 | J158: 134.2324982 | K158: 0.5 | M158: 308313695.4 | O158: . | Q158: 0.05330323824 | R158: 0.0112490654 | S158: 0.04334426916 | W158: . | X158: . | Y158: . | Z158: .
A159: United Arab Emirates | B159: ARE | C159: 2012 | E159: 6291 | F159: 6104 | G159: 0.02999999933 | I159: 940817856 | J159: 135.22435 | K159: 0.5 | M159: 324052121.2 | O159: . | Q159: 0.05929651576 | R159: 0.007361888885 | S159: 0.02218027283 | W159: . | X159: . | Y159: . | Z159: .
A160: United Arab Emirates | B160: ARE | C160: 2013 | E160: 6343 | F160: 6177 | G160: 0.02599999867 | I160: 1002702528 | J160: 137.7476807 | K160: 0.5 | M160: 342814434.7 | O160: . | Q160: 0.06370460516 | R160: 0.01848840714 | S160: 0.008231802064 | W160: . | X160: . | Y160: . | Z160: .
A161: United Arab Emirates | B161: ARE | C161: 2014 | E161: 6370 | F161: 6224 | G161: 0.02300000004 | I161: 1070412288 | J161: 137.1784058 | K161: 0.5 | M161: 354075635.6 | O161: . | Q161: 0.06534500741 | R161: -0.004141330719 | S161: 0.004247626932 | W161: . | X161: . | Y161: . | Z161: .
A162: United Arab Emirates | B162: ARE | C162: 2015 | E162: 6415 | F162: 6291 | G162: 0.01899999939 | I162: 1146354560 | J162: 136.8972931 | K162: 0.5 | M162: 367632721 | O162: . | Q162: 0.06854306947 | R162: -0.002051353455 | S162: 0.007039528484 | W162: . | X162: . | Y162: . | Z162: .
A163: United Arab Emirates | B163: ARE | C163: 2016 | E163: 6416 | F163: 6311 | G163: 0.01600000076 | I163: 1210060928 | J163: 137.0731354 | K163: 0.5 | M163: 378795740.7 | O163: . | Q163: 0.05408375244 | R163: 0.00128364563 | S163: 0.0001558724966 | W163: . | X163: . | Y163: . | Z163: .
A164: Argentina | B164: ARG | C164: 1990 | E164: 13484 | F164: . | G164: . | I164: 703659392 | J164: . | K164: 0.4464339018 | M164: 194406693.6 | O164: . | Q164: . | R164: . | S164: . | W164: 0.256498605 | X164: 0.2145014107 | Y164: 0.4720000029 | Z164: 0.5279999971
A165: Argentina | B165: ARG | C165: 1991 | E165: 13786 | F165: 13036 | G165: 0.0540000014 | I165: 703857792 | J165: 72.31089783 | K165: 0.4464339018 | M165: 219037458 | O165: . | Q165: 0.0002819148549 | R165: . | S165: 0.02214978709 | W165: 0.256498605 | X165: 0.2145014107 | Y165: 0.4720000029 | Z165: 0.5279999971
A166: Argentina | B166: ARG | C166: 1992 | E166: 14129 | F166: 13230 | G166: 0.06400000304 | I166: 713301120 | J166: 79.81607819 | K166: 0.4464339018 | M166: 245192227.5 | O166: . | Q166: 0.0133273237 | R166: 0.09875011444 | S166: 0.02457583832 | W166: 0.256498605 | X166: 0.2145014107 | Y166: 0.4720000029 | Z166: 0.5279999971
A167: Argentina | B167: ARG | C167: 1993 | E167: 14443 | F167: 12984 | G167: 0.1010000035 | I167: 727488576 | J167: 84.49164581 | K167: 0.4464339018 | M167: 259675535 | O167: . | Q167: 0.01969463638 | R167: 0.05692768097 | S167: 0.02198044534 | W167: 0.256498605 | X167: 0.2145014107 | Y167: 0.4720000029 | Z167: 0.5279999971
A168: Argentina | B168: ARG | C168: 1994 | E168: 14768 | F168: 13031 | G168: 0.1180000007 | I168: 746949312 | J168: 88.09085846 | K168: 0.4464339018 | M168: 274830720.4 | O168: . | Q168: 0.02639903158 | R168: 0.04171609879 | S168: 0.02225280964 | W168: 0.256498605 | X168: 0.2145014107 | Y168: 0.4720000029 | Z168: 0.5279999971
A169: Argentina | B169: ARG | C169: 1995 | E169: 14992 | F169: 12173 | G169: 0.1879999936 | I169: 759277952 | J169: 87.82746124 | K169: 0.4464339018 | M169: 267011210.3 | O169: . | Q169: 0.01637059112 | R169: -0.002994537354 | S169: 0.01505404774 | W169: 0.256498605 | X169: 0.2145014107 | Y169: 0.4720000029 | Z169: 0.5279999971
A170: Argentina | B170: ARG | C170: 1996 | E170: 15303 | F170: 12685 | G170: 0.1710000038 | I170: 774862784 | J170: 89.87400818 | K170: 0.4464339018 | M170: 281768091.7 | O170: . | Q170: 0.02031804225 | R170: 0.0230345726 | S170: 0.02053216211 | W170: 0.256498605 | X170: 0.2145014107 | Y170: 0.4720000029 | Z170: 0.5279999971
A171: Argentina | B171: ARG | C171: 1997 | E171: 15653 | F171: 13333 | G171: 0.1480000019 | I171: 797941376 | J171: 93.39261627 | K171: 0.4464339018 | M171: 304622433.4 | O171: . | Q171: 0.02934917032 | R171: 0.03840351105 | S171: 0.0226137043 | W171: 0.256498605 | X171: 0.2145014107 | Y171: 0.4720000029 | Z171: 0.5279999971
A172: Argentina | B172: ARG | C172: 1998 | E172: 15961 | F172: 13942 | G172: 0.1270000041 | I172: 823635328 | J172: 93.35530853 | K172: 0.4464339018 | M172: 316350941.9 | O172: . | Q172: 0.03169273775 | R172: -0.0003995895386 | S172: 0.01948565479 | W172: 0.256498605 | X172: 0.2145014107 | Y172: 0.4720000029 | Z172: 0.5279999971
A173: Argentina | B173: ARG | C173: 1999 | E173: 16192 | F173: 13917 | G173: 0.1410000026 | I173: 841036800 | J173: 89.3369751 | K173: 0.4464339018 | M173: 305641016.7 | O173: . | Q173: 0.0209075476 | R173: -0.04399728775 | S173: 0.0143690464 | W173: 0.256498605 | X173: 0.2145014107 | Y173: 0.4720000029 | Z173: 0.5279999971
A174: Argentina | B174: ARG | C174: 2000 | E174: 16458 | F174: 13990 | G174: 0.150000006 | I174: 854316480 | J174: 87.71082306 | K174: 0.4464339018 | M174: 303229512.3 | O174: . | Q174: 0.01566629417 | R174: -0.01837015152 | S174: 0.01629438808 | W174: 0.256498605 | X174: 0.2145014107 | Y174: 0.4720000029 | Z174: 0.5279999971
A175: Argentina | B175: ARG | C175: 2001 | E175: 16695 | F175: 13803 | G175: 0.172999993 | I175: 859716608 | J175: 84.14431 | K175: 0.4464339018 | M175: 289860609.2 | O175: . | Q175: 0.006301098742 | R175: -0.04151201248 | S175: 0.01429759221 | W175: 0.256498605 | X175: 0.2145014107 | Y175: 0.4720000029 | Z175: 0.5279999971
A176: Argentina | B176: ARG | C176: 2002 | E176: 16831 | F176: 13534 | G176: 0.1960000098 | I176: 850477376 | J176: 76.1288681 | K176: 0.4464339018 | M176: 258281789.1 | O176: . | Q176: -0.0108049987 | R176: -0.1001057625 | S176: 0.008113150748 | W176: 0.256498605 | X176: 0.2145014107 | Y176: 0.4720000029 | Z176: 0.5279999971
A177: Argentina | B177: ARG | C177: 2003 | E177: 17210 | F177: 14567 | G177: 0.1539999992 | I177: 851206400 | J177: 79.83035278 | K177: 0.4464339018 | M177: 281106256.2 | O177: . | Q177: 0.000856826697 | R177: 0.04747629166 | S177: 0.02226818608 | W177: 0.256498605 | X177: 0.2145014107 | Y177: 0.4720000029 | Z177: 0.5279999971
A178: Argentina | B178: ARG | C178: 2004 | E178: 17598 | F178: 15219 | G178: 0.1350000054 | I178: 863868288 | J178: 84.5275116 | K178: 0.4464339018 | M178: 306488951.7 | O178: . | Q178: 0.01476567538 | R178: 0.05717325211 | S178: 0.022294649 | W178: 0.256498605 | X178: 0.2145014107 | Y178: 0.4720000029 | Z178: 0.5279999971
A179: Argentina | B179: ARG | C179: 2005 | E179: 17751 | F179: 15708 | G179: 0.1150000021 | I179: 882935168 | J179: 89.58289337 | K179: 0.4464339018 | M179: 333618311.4 | O179: . | Q179: 0.02183146275 | R179: 0.05808734894 | S179: 0.008656593139 | W179: 0.256498605 | X179: 0.2145014107 | Y179: 0.4720000029 | Z179: 0.5279999971
A180: Argentina | B180: ARG | C180: 2006 | E180: 18065 | F180: 16244 | G180: 0.1010000035 | I180: 904921152 | J180: 94.01807404 | K180: 0.4464339018 | M180: 360465082.3 | O180: . | Q180: 0.02459603956 | R180: 0.04832267761 | S180: 0.01753451224 | W180: 0.256498605 | X180: 0.2145014107 | Y180: 0.4720000029 | Z180: 0.5279999971
A181: Argentina | B181: ARG | C181: 2007 | E181: 18090 | F181: 16558 | G181: 0.08500000089 | I181: 937677632 | J181: 99.72163391 | K181: 0.4464339018 | M181: 392934518.4 | O181: . | Q181: 0.03555839899 | R181: 0.05889558792 | S181: 0.001382934808 | W181: 0.256498605 | X181: 0.2145014107 | Y181: 0.4720000029 | Z181: 0.5279999971
A182: Argentina | B182: ARG | C182: 2008 | E182: 18119 | F182: 16698 | G182: 0.07800000161 | I182: 973732288 | J182: 101.4005585 | K182: 0.4464339018 | M182: 408876787.8 | O182: . | Q182: 0.03773019352 | R182: 0.01669597626 | S182: 0.001601812047 | W182: 0.256498605 | X182: 0.2145014107 | Y182: 0.4720000029 | Z182: 0.5279999971
A183: Argentina | B183: ARG | C183: 2009 | E183: 18475 | F183: 16877 | G183: 0.0869999975 | I183: 991372992 | J183: 94.04386139 | K183: 0.4464339018 | M183: 384677312.6 | O183: . | Q183: 0.01795443539 | R183: -0.07531738281 | S183: 0.01945735538 | W183: 0.256498605 | X183: 0.2145014107 | Y183: 0.4720000029 | Z183: 0.5279999971
A184: Argentina | B184: ARG | C184: 2010 | E184: 18248 | F184: 16841 | G184: 0.07699999958 | I184: 1026723520 | J184: 101.8763428 | K184: 0.4464339018 | M184: 423627422.1 | O184: . | Q184: 0.03503711946 | R184: 0.07999849319 | S184: -0.01236298185 | W184: 0.256498605 | X184: 0.2145014107 | Y184: 0.4720000029 | Z184: 0.5279999971
A185: Argentina | B185: ARG | C185: 2011 | E185: 18830 | F185: 17478 | G185: 0.0719999969 | I185: 1072730560 | J185: 103.7086334 | K185: 0.4464339018 | M185: 449061807.9 | O185: . | Q185: 0.04383463967 | R185: 0.01782560349 | S185: 0.03139585769 | W185: 0.256498605 | X185: 0.2145014107 | Y185: 0.4720000029 | Z185: 0.5279999971
A186: Argentina | B186: ARG | C186: 2012 | E186: 19016 | F186: 17643 | G186: 0.0719999969 | I186: 1107157760 | J186: 100.5621033 | K186: 0.4464339018 | M186: 444452545.6 | O186: . | Q186: 0.03158883179 | R186: -0.0308098793 | S186: 0.009829387389 | W186: 0.256498605 | X186: 0.2145014107 | Y186: 0.4720000029 | Z186: 0.5279999971
A187: Argentina | B187: ARG | C187: 2013 | E187: 19152 | F187: 17792 | G187: 0.07100000232 | I187: 1143818624 | J187: 100.8920746 | K187: 0.4464339018 | M187: 455143068.4 | O187: . | Q187: 0.03257618007 | R187: 0.003275871277 | S187: 0.007126418758 | W187: 0.256498605 | X187: 0.2145014107 | Y187: 0.4720000029 | Z187: 0.5279999971
A188: Argentina | B188: ARG | C188: 2014 | E188: 19207 | F188: 17811 | G188: 0.07299999893 | I188: 1173975424 | J188: 97.03371429 | K188: 0.4464339018 | M188: 443707073.9 | O188: . | Q188: 0.02602345269 | R188: -0.03899288177 | S188: 0.002867647107 | W188: 0.256498605 | X188: 0.2145014107 | Y188: 0.4720000029 | Z188: 0.5279999971
A189: Argentina | B189: ARG | C189: 2015 | E189: 19487 | F189: 18093 | G189: 0.0719999969 | I189: 1205704320 | J189: 97.51424408 | K189: 0.4464339018 | M189: 455453204.5 | O189: . | Q189: 0.02666810649 | R189: 0.004940032959 | S189: 0.01447278066 | W189: 0.256498605 | X189: 0.2145014107 | Y189: 0.4720000029 | Z189: 0.5279999971
A190: Argentina | B190: ARG | C190: 2016 | E190: 19704 | F190: 17990 | G190: 0.0869999975 | I190: 1234042880 | J190: 94.44210052 | K190: 0.4464339018 | M190: 444986088.3 | O190: . | Q190: 0.02323177955 | R190: -0.03201150894 | S190: 0.01107408424 | W190: 0.256498605 | X190: 0.2145014107 | Y190: 0.4720000029 | Z190: 0.5279999971
A191: Armenia | B191: ARM | C191: 1990 | E191: 1464 | F191: . | G191: . | I191: . | J191: . | K191: 0.6941188574 | M191: 6357857.59 | O191: . | Q191: . | R191: . | S191: . | W191: 0.3881663084 | X191: 0.1338336617 | Y191: 0.5210000277 | Z191: 0.4789999723
A192: Armenia | B192: ARM | C192: 1991 | E192: 1450 | F192: 1422 | G192: 0.01999999955 | I192: . | J192: . | K192: 0.6941188574 | M192: 5613988.348 | O192: . | Q192: . | R192: . | S192: -0.009608859107 | W192: 0.3881663084 | X192: 0.1338336617 | Y192: 0.5210000277 | Z192: 0.4789999723
A193: Armenia | B193: ARM | C193: 1992 | E193: 1423 | F193: 1397 | G193: 0.01799999923 | I193: . | J193: . | K193: 0.6941188574 | M193: 3267341.064 | O193: . | Q193: . | R193: . | S193: -0.01879623732 | W193: 0.3881663084 | X193: 0.1338336617 | Y193: 0.5210000277 | Z193: 0.4789999723
A194: Armenia | B194: ARM | C194: 1993 | E194: 1388 | F194: 1315 | G194: 0.0530000031 | I194: . | J194: . | K194: 0.6941188574 | M194: 2979815.09 | O194: . | Q194: =IFERROR(IF($C194=MIN($C$2:$C$50),".",LN(I194)-LN(I193)),".") -> . | R194: . | S194: =IFERROR(IF($C194=MIN($C$2:$C$50),".",LN(E194)-LN(E193)),".") -> -0.02490345702 | W194: 0.3881663084 | X194: 0.1338336617 | Y194: 0.5210000277 | Z194: 0.4789999723
A195: Armenia | B195: ARM | C195: 1994 | E195: 1353 | F195: 1264 | G195: 0.06599999964 | I195: . | J195: . | K195: 0.6941188574 | M195: 3140725.188 | O195: . | Q195: . | R195: . | S195: -0.0255395129 | W195: 0.3881663084 | X195: 0.1338336617 | Y195: 0.5210000277 | Z195: =IFERROR(1-Y195,".") -> 0.4789999723
A196: Armenia | B196: ARM | C196: 1995 | E196: 1324 | F196: 1235 | G196: 0.06700000167 | I196: . | J196: . | K196: 0.6941188574 | M196: 3357435.176 | O196: . | Q196: . | R196: . | S196: -0.02166689167 | W196: 0.3881663084 | X196: 0.1338336617 | Y196: 0.5210000277 | Z196: 0.4789999723
A197: Armenia | B197: ARM | C197: 1996 | E197: 1305 | F197: 1184 | G197: 0.09300000221 | I197: . | J197: . | K197: 0.6941188574 | M197: 3554362.204 | O197: . | Q197: . | R197: . | S197: -0.01445441674 | W197: 0.3881663084 | X197: 0.1338336617 | Y197: 0.5210000277 | Z197: 0.4789999723
A198: Armenia | B198: ARM | C198: 1997 | E198: 1295 | F198: 1155 | G198: 0.1080000028 | I198: . | J198: . | K198: 0.6941188574 | M198: 3672405.406 | O198: . | Q198: . | R198: . | S198: -0.007692345623 | W198: 0.3881663084 | X198: 0.1338336617 | Y198: 0.5210000277 | Z198: 0.4789999723
A199: Armenia | B199: ARM | C199: 1998 | E199: 1289 | F199: 1168 | G199: 0.09399999678 | I199: . | J199: . | K199: 0.6941188574 | M199: 3940491 | O199: . | Q199: . | R199: . | S199: -0.004643971194 | W199: 0.3881663084 | X199: 0.1338336617 | Y199: 0.5210000277 | Z199: 0.4789999723
A200: Armenia | B200: ARM | C200: 1999 | E200: 1287 | F200: 1143 | G200: 0.111999996 | I200: . | J200: . | K200: 0.6941188574 | M200: 4070527.203 | O200: . | Q200: . | R200: . | S200: -0.001552795343 | W200: 0.3881663084 | X200: 0.1338336617 | Y200: 0.5210000277 | Z200: 0.4789999723
... 2050 more rows

Sheet Initial Conditions and Settings
A1: Set Conditions for Informality Projections
A2: Time frame for Initial Conditions Based on Historical Data | B2: Labor Force | C2: Employment | D2: Capital | E2: Growth Rate of Capital | F2: GDP | G2: Growth Rate of TFP | H2: Growth Rate of the Labor Force
A3: from: | B3: 2012 | C3: =B3 -> 2012 | D3: =B3 -> 2012 | E3: 2000 | F3: =B3 -> 2012 | G3: 2000 | H3: 2000
A4: to: | B4: 2016 | C4: =$B4 -> 2016 | D4: =$B4 -> 2016 | E4: 2016 | F4: 2016 | G4: 2016 | H4: 2016
A7: Initial Parameter Values and Settings for Projections (Constant across countries) | B7: Initial year for projections | C7: Minimum size of the rudimentary economy | D7: Minimum size of the informal modern sector | E7: Minimum size of the formal sector | F7: Capital Share | G7: Cost of Living Adjustment from Rudimentary Economy | H7: Ratio between Productivities of the modern informal and formal sectors | I7: Ratio between capital rental rate for modern informal and formal firms | J7: Ratio between Wages in the modern informal and formal sectors using constant alpha | K7: Difference in Growth Rate of Labor Costs and Growth Rate of Labor Productivity in Alternative Scenario | L7: growth rate of a | M7: growth rate of b | N7: growth rate of miu | O7: growth rate of psi | P7: growth rate of A | Q7: Natural rate of unemployment
F8: alpha | G8: miu | H8: a | I8: psi | J8: pi = Wi/W
B9: 2016 | C9: 0.05 | D9: 0 | E9: 0 | F9: 0.5 | G9: 1.807917833 | H9: 0.71 | I9: 1.299999952 | J9: =(a^(1/(1-capshare)))*(psi^((-capshare)/(1-capshare))) -> 0.387769245 | K9: =Menu!$G$6 -> 0.005 | L9: =IF(ISBLANK(Menu!G23),0,Menu!G23) -> 0.0025 | M9: =IF(ISBLANK(Menu!G26),0,Menu!G26) -> 0.0025 | N9: =IF(ISBLANK(Menu!G21),0,Menu!G21) -> 0.01 | O9: =IF(ISBLANK(Menu!G29),0,Menu!G29) -> -0.0025 | P9: =Menu!G13 -> 0 | Q9: =IF(ISBLANK(Menu!G11),5%,Menu!G11) -> 0.05
D11: Historical Data | J11: Estimated Employment by Sector as a share of LABOR FORCE | M11: Estimated Employment by Sector as a share of EMPLOYMENT | P11: Initial Conditions from Model | AH11: OUTLIERS | AN11: SUBGROUPS | AP11: Settings for projections
P12: Using Shares of Labor Force | Y12: Using Shares of Employment
A13: Region | B13: Country Code | C13: Country | D13: Labor Force (thousands) | E13: Employment (thousands) | F13: Capital (2010 US dollars, thousands) | G13: Growth Rate of Capital | H13: GDP (2010 US dollars, thousands) | I13: K/GDP | J13: Formal Employment % of Labor Force2 | K13: Informal Employment (rudimentary, type 1) % of Labor Force2 | L13: Informal Employment (modern, type 2) % of Labor Force2 | M13: Formal Employment % of Employment | N13: Informal Employment (rudimentary, type 1) % of Employment | O13: Informal Employment (modern, type 2) % of Employment | P13: Lf/L | Q13: Li/L | R13: bA/W | S13: We/W | T13: K/L | U13: A/W | V13: A | W13: Minimum wage, W | X13: Ratio between Productivities of the rudimentary economy and the formal sector, (b0) | Y13: Lf/L2 | Z13: Li/L2 | AA13: bA/W2 | AB13: We/W2 | AC13: K/L2 | AD13: A/W2 | AE13: A2 | AF13: Minimum wage, W2 | AG13: Ratio between Productivities of the rudimentary economy and the formal sector, (b0)2 | AH13: OPEC members | AI13: Questionable data | AJ13: Pension/GDP outliers | AK13: K/GDP outliers | AL13: GDP/TFP outlier | AM13: Total | AN13: Population < 1 million | AO13: OECD (current) | AP13: Growth rate of TFP | AQ13: delta + rho Using shares of Labor Force | AR13: delta + rho Using shares of Employment | AS13: Historical Growth rate of Labor Force (for projections year = 1)
A14: SA | B14: AFG | C14: Afghanistan | D14: =IFERROR(AVERAGEIFS('Historical Data'!E$2:E$5860,'Historical Data'!$C$2:$C$5860,">="&'Initial Conditions and Settings'!B$3,'Historical Data'!$C$2:$C$5860,"<="&'Initial Conditions and Settings'!B$4,'Historical Data'!$B$2:$B$5860,Table1[[Country Code]:[Country Code]]),".") -> 9564 | E14: =IFERROR(AVERAGEIFS('Historical Data'!F$2:F$5860,'Historical Data'!$C$2:$C$5860,">="&'Initial Conditions and Settings'!C$3,'Historical Data'!$C$2:$C$5860,"<="&'Initial Conditions and Settings'!C$4,'Historical Data'!$B$2:$B$5860,Table1[[Country Code]:[Country Code]]),".") -> 8742.8 | F14: =IFERROR((AVERAGEIFS('Historical Data'!I$2:I$5860,'Historical Data'!$C$2:$C$5860,">="&'Initial Conditions and Settings'!D$3,'Historical Data'!$C$2:$C$5860,"<="&'Initial Conditions and Settings'!D$4,'Historical Data'!$B$2:$B$5860,Table1[[Country Code]:[Country Code]])),".") -> . | G14: =IFERROR(AVERAGEIFS('Historical Data'!Q$2:Q$5860,'Historical Data'!$C$2:$C$5860,">="&'Initial Conditions and Settings'!E$3,'Historical Data'!$C$2:$C$5860,"<="&'Initial Conditions and Settings'!E$4,'Historical Data'!$B$2:$B$5860,Table1[[Country Code]:[Country Code]]),".") -> . | H14: =IFERROR((AVERAGEIFS('Historical Data'!M$2:M$5860,'Historical Data'!$C$2:$C$5860,">="&'Initial Conditions and Settings'!F$3,'Historical Data'!$C$2:$C$5860,"<="&'Initial Conditions and Settings'!F$4,'Historical Data'!$B$2:$B$5860,Table1[[Country Code]:[Country Code]])),".") -> 19990100.59 | I14: =IFERROR(Table1[[#This Row],[Capital (2010 US dollars, thousands)]]/Table1[[#This Row],[GDP (2010 US dollars, thousands)]],".") -> . | J14: =IFERROR(INDEX('Historical Data'!Z$2:Z$5860, MATCH(Table1[[#This Row],[Country Code]],'Historical Data'!B$2:B$5860,0))*Table1[[#This Row],[Employment (thousands)]]/Table1[[#This Row],[Labor Force (thousands)]]+natump,".") -> 0.1385179023 | K14: =IFERROR((1-Table1[[#This Row],[Formal Employment % of Labor Force2]])*(AVERAGEIFS('Historical Data'!W$2:W$5860,'Historical Data'!$C$2:$C$5860,">="&'Initial Conditions and Settings'!F$3,'Historical Data'!$C$2:$C$5860,"<="&'Initial Conditions and Settings'!F$4,'Historical Data'!$B$2:$B$5860,Table1[[Country Code]:[Country Code]]))/((AVERAGEIFS('Historical Data'!W$2:W$5860,'Historical Data'!$C$2:$C$5860,">="&'Initial Conditions and Settings'!F$3,'Historical Data'!$C$2:$C$5860,"<="&'Initial Conditions and Settings'!F$4,'Historical Data'!$B$2:$B$5860,Table1[[Country Code]:[Country Code]]))+(AVERAGEIFS('Historical Data'!X$2:X$5860,'Historical Data'!$C$2:$C$5860,">="&'Initial Conditions and Settings'!F$3,'Historical Data'!$C$2:$C$5860,"<="&'Initial Conditions and Settings'!F$4,'Historical Data'!$B$2:$B$5860,Table1[[Country Code]:[Country Code]]))),".") -> 0.654607377 | L14: =IFERROR((1-Table1[[#This Row],[Formal Employment % of Labor Force2]])*(AVERAGEIFS('Historical Data'!X$2:X$5860,'Historical Data'!$C$2:$C$5860,">="&'Initial Conditions and Settings'!F$3,'Historical Data'!$C$2:$C$5860,"<="&'Initial Conditions and Settings'!F$4,'Historical Data'!$B$2:$B$5860,Table1[[Country Code]:[Country Code]]))/((AVERAGEIFS('Historical Data'!W$2:W$5860,'Historical Data'!$C$2:$C$5860,">="&'Initial Conditions and Settings'!F$3,'Historical Data'!$C$2:$C$5860,"<="&'Initial Conditions and Settings'!F$4,'Historical Data'!$B$2:$B$5860,Table1[[Country Code]:[Country Code]]))+(AVERAGEIFS('Historical Data'!X$2:X$5860,'Historical Data'!$C$2:$C$5860,">="&'Initial Conditions and Settings'!F$3,'Historical Data'!$C$2:$C$5860,"<="&'Initial Conditions and Settings'!F$4,'Historical Data'!$B$2:$B$5860,Table1[[Country Code]:[Country Code]]))),".") -> 0.2068747208 | M14: =IFERROR(INDEX('Historical Data'!Z$2:Z$5860, MATCH(Table1[[#This Row],[Country Code]],'Historical Data'!B$2:B$5860,0)),".") -> 0.09683227539 | N14: =IFERROR(INDEX('Historical Data'!W$2:W$5860, MATCH(Table1[[#This Row],[Country Code]],'Historical Data'!B$2:B$5860,0)),".") -> 0.6862826943 | O14: =IFERROR(INDEX('Historical Data'!X$2:X$5860, MATCH(Table1[[#This Row],[Country Code]],'Historical Data'!B$2:B$5860,0)),".") -> 0.2168850303 | P14: =IFERROR(Table1[[#This Row],[Formal Employment % of Labor Force2]]/(Table1[[#This Row],[Formal Employment % of Labor Force2]]+Table1[[#This Row],[Informal Employment (modern, type 2) % of Labor Force2]]),".") -> 0.4010447619 | Q14: =IFERROR(Table1[[#This Row],[Informal Employment (modern, type 2) % of Labor Force2]]/(Table1[[#This Row],[Formal Employment % of Labor Force2]]+Table1[[#This Row],[Informal Employment (modern, type 2) % of Labor Force2]]),".") -> 0.5989552381 | R14: =IFERROR((1/(miu))*(1-((1-pi)*Table1[[#This Row],[Li/L]])),".") -> 0.3502931221 | S14: =IFERROR(Table1[[#This Row],[bA/W]]*miu,".") -> 0.6333011824 | T14: =IFERROR(Table1[[#This Row],[Capital (2010 US dollars, thousands)]]/((Table1[[#This Row],[Formal Employment % of Labor Force2]]+Table1[[#This Row],[Informal Employment (modern, type 2) % of Labor Force2]])*Table1[[#This Row],[Labor Force (thousands)]]),".") -> . | U14: =IFERROR((((pi/psi)*Table1[[#This Row],[Li/L]]+Table1[[#This Row],[Lf/L]])/((1-capshare)^(1/(capshare))*Table1[[#This Row],[K/L]]))^(capshare),".") -> . | V14: =IFERROR(Table1[[#This Row],[GDP (2010 US dollars, thousands)]]*Table1[[#This Row],[A/W]]/(Table1[[#This Row],[Labor Force (thousands)]]*((1/(1-capshare))*(Table1[[#This Row],[Formal Employment % of Labor Force2]]+pi*Table1[[#This Row],[Informal Employment (modern, type 2) % of Labor Force2]])+(Table1[[#This Row],[Informal Employment (rudimentary, type 1) % of Labor Force2]]/miu)*(1-(1-pi)*Table1[[#This Row],[Li/L]]))),".") -> . | W14: =IFERROR(MAX(Table1[[#This Row],[A]]/Table1[[#This Row],[A/W]],0),".") -> . | X14: =IFERROR(MAX((1/(miu*Table1[[#This Row],[A/W]]))*(1-(1-pi)*Table1[[#This Row],[Li/L]]),0.001),".") -> . | Y14: =IFERROR(Table1[[#This Row],[Formal Employment % of Employment]]/(Table1[[#This Row],[Formal Employment % of Employment]]+Table1[Informal Employment (modern, type 2) % of Employment]),".") -> 0.3086609302 | Z14: =IFERROR(Table1[[#This Row],[Informal Employment (modern, type 2) % of Employment]]/(Table1[[#This Row],[Formal Employment % of Employment]]+Table1[[#This Row],[Informal Employment (modern, type 2) % of Employment]]),".") -> 0.6913390698 | AA14: =IFERROR((1/(miu))*(1-((1-pi)*Table1[[#This Row],[Li/L2]])),".") -> 0.3190083911 | AB14: =IFERROR(Table1[[#This Row],[bA/W2]]*miu,".") -> 0.5767409593 | AC14: =IFERROR(Table1[[#This Row],[Capital (2010 US dollars, thousands)]]/((Table1[[#This Row],[Formal Employment % of Employment]]+Table1[[#This Row],[Informal Employment (modern, type 2) % of Employment]])*Table1[[#This Row],[Employment (thousands)]]),".") -> . | AD14: =IFERROR((((pi/psi)*Table1[[#This Row],[Li/L2]]+Table1[[#This Row],[Lf/L2]])/((1-capshare)^(1/(capshare))*Table1[[#This Row],[K/L2]]))^(capshare),".") -> . | AE14: =IFERROR(Table1[[#This Row],[GDP (2010 US dollars, thousands)]]*Table1[[#This Row],[A/W2]]/(Table1[[#This Row],[Employment (thousands)]]*((1/(1-capshare))*(Table1[[#This Row],[Formal Employment % of Employment]]+pi*Table1[[#This Row],[Informal Employment (modern, type 2) % of Employment]])+(Table1[[#This Row],[Informal Employment (rudimentary, type 1) % of Employment]]/miu)*(1-(1-pi)*Table1[[#This Row],[Li/L2]]))),".") -> . | AF14: =IFERROR(MAX(Table1[[#This Row],[A2]]/Table1[[#This Row],[A/W2]],0),".") -> . | AG14: =IFERROR(MAX((1/(miu*Table1[[#This Row],[A/W2]]))*(1-(1-pi)*Table1[[#This Row],[Li/L2]]),0.001),".") -> . | AH14: 0 | AI14: 0 | AJ14: 0 | AK14: 0 | AL14: 0 | AM14: =SUM(Table1[[#This Row],[OPEC members]]+Table1[[#This Row],[Questionable data]]+Table1[[#This Row],[Pension/GDP outliers]]+Table1[[#This Row],[K/GDP outliers]])+Table1[[#This Row],[GDP/TFP outlier]] -> 0 | AN14: 0 | AO14: 0 | AP14: =IFERROR(MAX(0,AVERAGEIFS('Historical Data'!R$2:R$5860,'Historical Data'!$C$2:$C$5860,">="&'Initial Conditions and Settings'!G$3,'Historical Data'!$C$2:$C$5860,"<="&'Initial Conditions and Settings'!G$4,'Historical Data'!$B$2:$B$5860,Table1[[Country Code]:[Country Code]])),".") -> . | AQ14: =IFERROR(MAX((((Table1[[#This Row],[A]]*((capshare)^(capshare))*((1-capshare)^(1-capshare)))^(1/(capshare)))*(Table1[[#This Row],[Minimum wage, W]]^(-(1-capshare)/(capshare))))-Table1[[#This Row],[Growth Rate of Capital]],0.01),".") -> . | AR14: =IFERROR(MAX((((Table1[[#This Row],[A2]]*((capshare)^(capshare))*((1-capshare)^(1-capshare)))^(1/(capshare)))*(Table1[[#This Row],[Minimum wage, W2]]^(-(1-capshare)/(capshare))))-Table1[[#This Row],[Growth Rate of Capital]],0.01),".") -> . | AS14: =IFERROR(AVERAGEIFS('Historical Data'!S$2:S$5860,'Historical Data'!$C$2:$C$5860,">="&'Initial Conditions and Settings'!H$3,'Historical Data'!$C$2:$C$5860,"<="&'Initial Conditions and Settings'!H$4,'Historical Data'!$B$2:$B$5860,Table1[[Country Code]:[Country Code]]),".") -> 0.04204691821
A15: ECA | B15: ALB | C15: Albania | D15: =IFERROR(AVERAGEIFS('Historical Data'!E$2:E$5860,'Historical Data'!$C$2:$C$5860,">="&'Initial Conditions and Settings'!B$3,'Historical Data'!$C$2:$C$5860,"<="&'Initial Conditions and Settings'!B$4,'Historical Data'!$B$2:$B$5860,Table1[[Country Code]:[Country Code]]),".") -> 1318.2 | E15: =IFERROR(AVERAGEIFS('Historical Data'!F$2:F$5860,'Historical Data'!$C$2:$C$5860,">="&'Initial Conditions and Settings'!C$3,'Historical Data'!$C$2:$C$5860,"<="&'Initial Conditions and Settings'!C$4,'Historical Data'!$B$2:$B$5860,Table1[[Country Code]:[Country Code]]),".") -> 1110.4 | F15: =IFERROR((AVERAGEIFS('Historical Data'!I$2:I$5860,'Historical Data'!$C$2:$C$5860,">="&'Initial Conditions and Settings'!D$3,'Historical Data'!$C$2:$C$5860,"<="&'Initial Conditions and Settings'!D$4,'Historical Data'!$B$2:$B$5860,Table1[[Country Code]:[Country Code]])),".") -> 46706708.8 | G15: =IFERROR(AVERAGEIFS('Historical Data'!Q$2:Q$5860,'Historical Data'!$C$2:$C$5860,">="&'Initial Conditions and Settings'!E$3,'Historical Data'!$C$2:$C$5860,"<="&'Initial Conditions and Settings'!E$4,'Historical Data'!$B$2:$B$5860,Table1[[Country Code]:[Country Code]]),".") -> 0.06261857211 | H15: =IFERROR((AVERAGEIFS('Historical Data'!M$2:M$5860,'Historical Data'!$C$2:$C$5860,">="&'Initial Conditions and Settings'!F$3,'Historical Data'!$C$2:$C$5860,"<="&'Initial Conditions and Settings'!F$4,'Historical Data'!$B$2:$B$5860,Table1[[Country Code]:[Country Code]])),".") -> 12873308.48 | I15: =IFERROR(Table1[[#This Row],[Capital (2010 US dollars, thousands)]]/Table1[[#This Row],[GDP (2010 US dollars, thousands)]],".") -> 3.628182209 | J15: =IFERROR(INDEX('Historical Data'!Z$2:Z$5860, MATCH(Table1[[#This Row],[Country Code]],'Historical Data'!B$2:B$5860,0))*Table1[[#This Row],[Employment (thousands)]]/Table1[[#This Row],[Labor Force (thousands)]]+natump,".") -> 0.378520698 | K15: =IFERROR((1-Table1[[#This Row],[Formal Employment % of Labor Force2]])*(AVERAGEIFS('Historical Data'!W$2:W$5860,'Historical Data'!$C$2:$C$5860,">="&'Initial Conditions and Settings'!F$3,'Historical Data'!$C$2:$C$5860,"<="&'Initial Conditions and Settings'!F$4,'Historical Data'!$B$2:$B$5860,Table1[[Country Code]:[Country Code]]))/((AVERAGEIFS('Historical Data'!W$2:W$5860,'Historical Data'!$C$2:$C$5860,">="&'Initial Conditions and Settings'!F$3,'Historical Data'!$C$2:$C$5860,"<="&'Initial Conditions and Settings'!F$4,'Historical Data'!$B$2:$B$5860,Table1[[Country Code]:[Country Code]]))+(AVERAGEIFS('Historical Data'!X$2:X$5860,'Historical Data'!$C$2:$C$5860,">="&'Initial Conditions and Settings'!F$3,'Historical Data'!$C$2:$C$5860,"<="&'Initial Conditions and Settings'!F$4,'Historical Data'!$B$2:$B$5860,Table1[[Country Code]:[Country Code]]))),".") -> 0.5785752637 | L15: =IFERROR((1-Table1[[#This Row],[Formal Employment % of Labor Force2]])*(AVERAGEIFS('Historical Data'!X$2:X$5860,'Historical Data'!$C$2:$C$5860,">="&'Initial Conditions and Settings'!F$3,'Historical Data'!$C$2:$C$5860,"<="&'Initial Conditions and Settings'!F$4,'Historical Data'!$B$2:$B$5860,Table1[[Country Code]:[Country Code]]))/((AVERAGEIFS('Historical Data'!W$2:W$5860,'Historical Data'!$C$2:$C$5860,">="&'Initial Conditions and Settings'!F$3,'Historical Data'!$C$2:$C$5860,"<="&'Initial Conditions and Settings'!F$4,'Historical Data'!$B$2:$B$5860,Table1[[Country Code]:[Country Code]]))+(AVERAGEIFS('Historical Data'!X$2:X$5860,'Historical Data'!$C$2:$C$5860,">="&'Initial Conditions and Settings'!F$3,'Historical Data'!$C$2:$C$5860,"<="&'Initial Conditions and Settings'!F$4,'Historical Data'!$B$2:$B$5860,Table1[[Country Code]:[Country Code]]))),".") -> 0.04290403832 | M15: =IFERROR(INDEX('Historical Data'!Z$2:Z$5860, MATCH(Table1[[#This Row],[Country Code]],'Historical Data'!B$2:B$5860,0)),".") -> 0.3899999857 | N15: =IFERROR(INDEX('Historical Data'!W$2:W$5860, MATCH(Table1[[#This Row],[Country Code]],'Historical Data'!B$2:B$5860,0)),".") -> 0.5678884387 | O15: =IFERROR(INDEX('Historical Data'!X$2:X$5860, MATCH(Table1[[#This Row],[Country Code]],'Historical Data'!B$2:B$5860,0)),".") -> 0.0421115607 | P15: =IFERROR(Table1[[#This Row],[Formal Employment % of Labor Force2]]/(Table1[[#This Row],[Formal Employment % of Labor Force2]]+Table1[[#This Row],[Informal Employment (modern, type 2) % of Labor Force2]]),".") -> 0.8981928809 | Q15: =IFERROR(Table1[[#This Row],[Informal Employment (modern, type 2) % of Labor Force2]]/(Table1[[#This Row],[Formal Employment % of Labor Force2]]+Table1[[#This Row],[Informal Employment (modern, type 2) % of Labor Force2]]),".") -> 0.1018071191 | R15: =IFERROR((1/(miu))*(1-((1-pi)*Table1[[#This Row],[Li/L]])),".") -> 0.5186466627 | S15: =IFERROR(Table1[[#This Row],[bA/W]]*miu,".") -> 0.9376705506 | T15: =IFERROR(Table1[[#This Row],[Capital (2010 US dollars, thousands)]]/((Table1[[#This Row],[Formal Employment % of Labor Force2]]+Table1[[#This Row],[Informal Employment (modern, type 2) % of Labor Force2]])*Table1[[#This Row],[Labor Force (thousands)]]),".") -> 84077.14087 | U15: =IFERROR((((pi/psi)*Table1[[#This Row],[Li/L]]+Table1[[#This Row],[Lf/L]])/((1-capshare)^(1/(capshare))*Table1[[#This Row],[K/L]]))^(capshare),".") -> 0.006646547135 | V15: =IFERROR(Table1[[#This Row],[GDP (2010 US dollars, thousands)]]*Table1[[#This Row],[A/W]]/(Table1[[#This Row],[Labor Force (thousands)]]*((1/(1-capshare))*(Table1[[#This Row],[Formal Employment % of Labor Force2]]+pi*Table1[[#This Row],[Informal Employment (modern, type 2) % of Labor Force2]])+(Table1[[#This Row],[Informal Employment (rudimentary, type 1) % of Labor Force2]]/miu)*(1-(1-pi)*Table1[[#This Row],[Li/L]]))),".") -> 59.52817889 | W15: =IFERROR(MAX(Table1[[#This Row],[A]]/Table1[[#This Row],[A/W]],0),".") -> 8956.256185 | X15: =IFERROR(MAX((1/(miu*Table1[[#This Row],[A/W]]))*(1-(1-pi)*Table1[[#This Row],[Li/L]]),0.001),".") -> 78.03249599 | Y15: =IFERROR(Table1[[#This Row],[Formal Employment % of Employment]]/(Table1[[#This Row],[Formal Employment % of Employment]]+Table1[Informal Employment (modern, type 2) % of Employment]),".") -> 0.9025446993 | Z15: =IFERROR(Table1[[#This Row],[Informal Employment (modern, type 2) % of Employment]]/(Table1[[#This Row],[Formal Employment % of Employment]]+Table1[[#This Row],[Informal Employment (modern, type 2) % of Employment]]),".") -> 0.09745530073 | AA15: =IFERROR((1/(miu))*(1-((1-pi)*Table1[[#This Row],[Li/L2]])),".") -> 0.5201203563 | AB15: =IFERROR(Table1[[#This Row],[bA/W2]]*miu,".") -> 0.9403348677 | AC15: =IFERROR(Table1[[#This Row],[Capital (2010 US dollars, thousands)]]/((Table1[[#This Row],[Formal Employment % of Employment]]+Table1[[#This Row],[Informal Employment (modern, type 2) % of Employment]])*Table1[[#This Row],[Employment (thousands)]]),".") -> 97342.82401 | AD15: =IFERROR((((pi/psi)*Table1[[#This Row],[Li/L2]]+Table1[[#This Row],[Lf/L2]])/((1-capshare)^(1/(capshare))*Table1[[#This Row],[K/L2]]))^(capshare),".") -> 0.006187226891 | AE15: =IFERROR(Table1[[#This Row],[GDP (2010 US dollars, thousands)]]*Table1[[#This Row],[A/W2]]/(Table1[[#This Row],[Employment (thousands)]]*((1/(1-capshare))*(Table1[[#This Row],[Formal Employment % of Employment]]+pi*Table1[[#This Row],[Informal Employment (modern, type 2) % of Employment]])+(Table1[[#This Row],[Informal Employment (rudimentary, type 1) % of Employment]]/miu)*(1-(1-pi)*Table1[[#This Row],[Li/L2]]))),".") -> 64.73743142 | AF15: =IFERROR(MAX(Table1[[#This Row],[A2]]/Table1[[#This Row],[A/W2]],0),".") -> 10463.07701 | AG15: =IFERROR(MAX((1/(miu*Table1[[#This Row],[A/W2]]))*(1-(1-pi)*Table1[[#This Row],[Li/L2]]),0.001),".") -> 84.06356603 | AH15: 0 | AI15: 0 | AJ15: 0 | AK15: 0 | AL15: 0 | AM15: =SUM(Table1[[#This Row],[OPEC members]]+Table1[[#This Row],[Questionable data]]+Table1[[#This Row],[Pension/GDP outliers]]+Table1[[#This Row],[K/GDP outliers]])+Table1[[#This Row],[GDP/TFP outlier]] -> 0 | AN15: 0 | AO15: 0 | AP15: =IFERROR(MAX(0,AVERAGEIFS('Historical Data'!R$2:R$5860,'Historical Data'!$C$2:$C$5860,">="&'Initial Conditions and Settings'!G$3,'Historical Data'!$C$2:$C$5860,"<="&'Initial Conditions and Settings'!G$4,'Historical Data'!$B$2:$B$5860,Table1[[Country Code]:[Country Code]])),".") -> 0.008705770268 | AQ15: =IFERROR(MAX((((Table1[[#This Row],[A]]*((capshare)^(capshare))*((1-capshare)^(1-capshare)))^(1/(capshare)))*(Table1[[#This Row],[Minimum wage, W]]^(-(1-capshare)/(capshare))))-Table1[[#This Row],[Growth Rate of Capital]],0.01),".") -> 0.0362956396 | AR15: =IFERROR(MAX((((Table1[[#This Row],[A2]]*((capshare)^(capshare))*((1-capshare)^(1-capshare)))^(1/(capshare)))*(Table1[[#This Row],[Minimum wage, W2]]^(-(1-capshare)/(capshare))))-Table1[[#This Row],[Growth Rate of Capital]],0.01),".") -> 0.03751772202 | AS15: =IFERROR(AVERAGEIFS('Historical Data'!S$2:S$5860,'Historical Data'!$C$2:$C$5860,">="&'Initial Conditions and Settings'!H$3,'Historical Data'!$C$2:$C$5860,"<="&'Initial Conditions and Settings'!H$4,'Historical Data'!$B$2:$B$5860,Table1[[Country Code]:[Country Code]]),".") -> -0.0001300926356
A16: MENA | B16: DZA | C16: Algeria | D16: =IFERROR(AVERAGEIFS('Historical Data'!E$2:E$5860,'Historical Data'!$C$2:$C$5860,">="&'Initial Conditions and Settings'!B$3,'Historical Data'!$C$2:$C$5860,"<="&'Initial Conditions and Settings'!B$4,'Historical Data'!$B$2:$B$5860,Table1[[Country Code]:[Country Code]]),".") -> 11808.2 | E16: =IFERROR(AVERAGEIFS('Historical Data'!F$2:F$5860,'Historical Data'!$C$2:$C$5860,">="&'Initial Conditions and Settings'!C$3,'Historical Data'!$C$2:$C$5860,"<="&'Initial Conditions and Settings'!C$4,'Historical Data'!$B$2:$B$5860,Table1[[Country Code]:[Country Code]]),".") -> 10562 | F16: =IFERROR((AVERAGEIFS('Historical Data'!I$2:I$5860,'Historical Data'!$C$2:$C$5860,">="&'Initial Conditions and Settings'!D$3,'Historical Data'!$C$2:$C$5860,"<="&'Initial Conditions and Settings'!D$4,'Historical Data'!$B$2:$B$5860,Table1[[Country Code]:[Country Code]])),".") -> 939081792 | G16: =IFERROR(AVERAGEIFS('Historical Data'!Q$2:Q$5860,'Historical Data'!$C$2:$C$5860,">="&'Initial Conditions and Settings'!E$3,'Historical Data'!$C$2:$C$5860,"<="&'Initial Conditions and Settings'!E$4,'Historical Data'!$B$2:$B$5860,Table1[[Country Code]:[Country Code]]),".") -> 0.04299856185 | H16: =IFERROR((AVERAGEIFS('Historical Data'!M$2:M$5860,'Historical Data'!$C$2:$C$5860,">="&'Initial Conditions and Settings'!F$3,'Historical Data'!$C$2:$C$5860,"<="&'Initial Conditions and Settings'!F$4,'Historical Data'!$B$2:$B$5860,Table1[[Country Code]:[Country Code]])),".") -> 183426983.9 | I16: =IFERROR(Table1[[#This Row],[Capital (2010 US dollars, thousands)]]/Table1[[#This Row],[GDP (2010 US dollars, thousands)]],".") -> 5.119649095 | J16: =IFERROR(INDEX('Historical Data'!Z$2:Z$5860, MATCH(Table1[[#This Row],[Country Code]],'Historical Data'!B$2:B$5860,0))*Table1[[#This Row],[Employment (thousands)]]/Table1[[#This Row],[Labor Force (thousands)]]+natump,".") -> 0.4352441712 | K16: =IFERROR((1-Table1[[#This Row],[Formal Employment % of Labor Force2]])*(AVERAGEIFS('Historical Data'!W$2:W$5860,'Historical Data'!$C$2:$C$5860,">="&'Initial Conditions and Settings'!F$3,'Historical Data'!$C$2:$C$5860,"<="&'Initial Conditions and Settings'!F$4,'Historical Data'!$B$2:$B$5860,Table1[[Country Code]:[Country Code]]))/((AVERAGEIFS('Historical Data'!W$2:W$5860,'Historical Data'!$C$2:$C$5860,">="&'Initial Conditions and Settings'!F$3,'Historical Data'!$C$2:$C$5860,"<="&'Initial Conditions and Settings'!F$4,'Historical Data'!$B$2:$B$5860,Table1[[Country Code]:[Country Code]]))+(AVERAGEIFS('Historical Data'!X$2:X$5860,'Historical Data'!$C$2:$C$5860,">="&'Initial Conditions and Settings'!F$3,'Historical Data'!$C$2:$C$5860,"<="&'Initial Conditions and Settings'!F$4,'Historical Data'!$B$2:$B$5860,Table1[[Country Code]:[Country Code]]))),".") -> 0.201872467 | L16: =IFERROR((1-Table1[[#This Row],[Formal Employment % of Labor Force2]])*(AVERAGEIFS('Historical Data'!X$2:X$5860,'Historical Data'!$C$2:$C$5860,">="&'Initial Conditions and Settings'!F$3,'Historical Data'!$C$2:$C$5860,"<="&'Initial Conditions and Settings'!F$4,'Historical Data'!$B$2:$B$5860,Table1[[Country Code]:[Country Code]]))/((AVERAGEIFS('Historical Data'!W$2:W$5860,'Historical Data'!$C$2:$C$5860,">="&'Initial Conditions and Settings'!F$3,'Historical Data'!$C$2:$C$5860,"<="&'Initial Conditions and Settings'!F$4,'Historical Data'!$B$2:$B$5860,Table1[[Country Code]:[Country Code]]))+(AVERAGEIFS('Historical Data'!X$2:X$5860,'Historical Data'!$C$2:$C$5860,">="&'Initial Conditions and Settings'!F$3,'Historical Data'!$C$2:$C$5860,"<="&'Initial Conditions and Settings'!F$4,'Historical Data'!$B$2:$B$5860,Table1[[Country Code]:[Country Code]]))),".") -> 0.3628833617 | M16: =IFERROR(INDEX('Historical Data'!Z$2:Z$5860, MATCH(Table1[[#This Row],[Country Code]],'Historical Data'!B$2:B$5860,0)),".") -> 0.4306987524 | N16: =IFERROR(INDEX('Historical Data'!W$2:W$5860, MATCH(Table1[[#This Row],[Country Code]],'Historical Data'!B$2:B$5860,0)),".") -> 0.203497231 | O16: =IFERROR(INDEX('Historical Data'!X$2:X$5860, MATCH(Table1[[#This Row],[Country Code]],'Historical Data'!B$2:B$5860,0)),".") -> 0.3658040166 | P16: =IFERROR(Table1[[#This Row],[Formal Employment % of Labor Force2]]/(Table1[[#This Row],[Formal Employment % of Labor Force2]]+Table1[[#This Row],[Informal Employment (modern, type 2) % of Labor Force2]]),".") -> 0.5453316084 | Q16: =IFERROR(Table1[[#This Row],[Informal Employment (modern, type 2) % of Labor Force2]]/(Table1[[#This Row],[Formal Employment % of Labor Force2]]+Table1[[#This Row],[Informal Employment (modern, type 2) % of Labor Force2]]),".") -> 0.4546683916 | R16: =IFERROR((1/(miu))*(1-((1-pi)*Table1[[#This Row],[Li/L]])),".") -> 0.3991542171 | S16: =IFERROR(Table1[[#This Row],[bA/W]]*miu,".") -> 0.7216380273 | T16: =IFERROR(Table1[[#This Row],[Capital (2010 US dollars, thousands)]]/((Table1[[#This Row],[Formal Employment % of Labor Force2]]+Table1[[#This Row],[Informal Employment (modern, type 2) % of Labor Force2]])*Table1[[#This Row],[Labor Force (thousands)]]),".") -> 99643.14505 | U16: =IFERROR((((pi/psi)*Table1[[#This Row],[Li/L]]+Table1[[#This Row],[Lf/L]])/((1-capshare)^(1/(capshare))*Table1[[#This Row],[K/L]]))^(capshare),".") -> 0.005228348301 | V16: =IFERROR(Table1[[#This Row],[GDP (2010 US dollars, thousands)]]*Table1[[#This Row],[A/W]]/(Table1[[#This Row],[Labor Force (thousands)]]*((1/(1-capshare))*(Table1[[#This Row],[Formal Employment % of Labor Force2]]+pi*Table1[[#This Row],[Informal Employment (modern, type 2) % of Labor Force2]])+(Table1[[#This Row],[Informal Employment (rudimentary, type 1) % of Labor Force2]]/miu)*(1-(1-pi)*Table1[[#This Row],[Li/L]]))),".") -> 65.89588653 | W16: =IFERROR(MAX(Table1[[#This Row],[A]]/Table1[[#This Row],[A/W]],0),".") -> 12603.57626 | X16: =IFERROR(MAX((1/(miu*Table1[[#This Row],[A/W]]))*(1-(1-pi)*Table1[[#This Row],[Li/L]]),0.001),".") -> 76.34422844 | Y16: =IFERROR(Table1[[#This Row],[Formal Employment % of Employment]]/(Table1[[#This Row],[Formal Employment % of Employment]]+Table1[Informal Employment (modern, type 2) % of Employment]),".") -> 0.5407372945 | Z16: =IFERROR(Table1[[#This Row],[Informal Employment (modern, type 2) % of Employment]]/(Table1[[#This Row],[Formal Employment % of Employment]]+Table1[[#This Row],[Informal Employment (modern, type 2) % of Employment]]),".") -> 0.4592627055 | AA16: =IFERROR((1/(miu))*(1-((1-pi)*Table1[[#This Row],[Li/L2]])),".") -> 0.3975984051 | AB16: =IFERROR(Table1[[#This Row],[bA/W2]]*miu,".") -> 0.7188252471 | AC16: =IFERROR(Table1[[#This Row],[Capital (2010 US dollars, thousands)]]/((Table1[[#This Row],[Formal Employment % of Employment]]+Table1[[#This Row],[Informal Employment (modern, type 2) % of Employment]])*Table1[[#This Row],[Employment (thousands)]]),".") -> 111627.1835 | AD16: =IFERROR((((pi/psi)*Table1[[#This Row],[Li/L2]]+Table1[[#This Row],[Lf/L2]])/((1-capshare)^(1/(capshare))*Table1[[#This Row],[K/L2]]))^(capshare),".") -> 0.004928023122 | AE16: =IFERROR(Table1[[#This Row],[GDP (2010 US dollars, thousands)]]*Table1[[#This Row],[A/W2]]/(Table1[[#This Row],[Employment (thousands)]]*((1/(1-capshare))*(Table1[[#This Row],[Formal Employment % of Employment]]+pi*Table1[[#This Row],[Informal Employment (modern, type 2) % of Employment]])+(Table1[[#This Row],[Informal Employment (rudimentary, type 1) % of Employment]]/miu)*(1-(1-pi)*Table1[[#This Row],[Li/L2]]))),".") -> 69.80689898 | AF16: =IFERROR(MAX(Table1[[#This Row],[A2]]/Table1[[#This Row],[A/W2]],0),".") -> 14165.29453 | AG16: =IFERROR(MAX((1/(miu*Table1[[#This Row],[A/W2]]))*(1-(1-pi)*Table1[[#This Row],[Li/L2]]),0.001),".") -> 80.68111598 | AH16: 0 | AI16: 0 | AJ16: 0 | AK16: 0 | AL16: 0 | AM16: =SUM(Table1[[#This Row],[OPEC members]]+Table1[[#This Row],[Questionable data]]+Table1[[#This Row],[Pension/GDP outliers]]+Table1[[#This Row],[K/GDP outliers]])+Table1[[#This Row],[GDP/TFP outlier]] -> 0 | AN16: 0 | AO16: 0 | AP16: =IFERROR(MAX(0,AVERAGEIFS('Historical Data'!R$2:R$5860,'Historical Data'!$C$2:$C$5860,">="&'Initial Conditions and Settings'!G$3,'Historical Data'!$C$2:$C$5860,"<="&'Initial Conditions and Settings'!G$4,'Historical Data'!$B$2:$B$5860,Table1[[Country Code]:[Country Code]])),".") -> 0 | AQ16: =IFERROR(MAX((((Table1[[#This Row],[A]]*((capshare)^(capshare))*((1-capshare)^(1-capshare)))^(1/(capshare)))*(Table1[[#This Row],[Minimum wage, W]]^(-(1-capshare)/(capshare))))-Table1[[#This Row],[Growth Rate of Capital]],0.01),".") -> 0.04313309975 | AR16: =IFERROR(MAX((((Table1[[#This Row],[A2]]*((capshare)^(capshare))*((1-capshare)^(1-capshare)))^(1/(capshare)))*(Table1[[#This Row],[Minimum wage, W2]]^(-(1-capshare)/(capshare))))-Table1[[#This Row],[Growth Rate of Capital]],0.01),".") -> 0.04300394123 | AS16: =IFERROR(AVERAGEIFS('Historical Data'!S$2:S$5860,'Historical Data'!$C$2:$C$5860,">="&'Initial Conditions and Settings'!H$3,'Historical Data'!$C$2:$C$5860,"<="&'Initial Conditions and Settings'!H$4,'Historical Data'!$B$2:$B$5860,Table1[[Country Code]:[Country Code]]),".") -> 0.01847872163
A17: . | B17: ASM | C17: American Samoa | D17: =IFERROR(AVERAGEIFS('Historical Data'!E$2:E$5860,'Historical Data'!$C$2:$C$5860,">="&'Initial Conditions and Settings'!B$3,'Historical Data'!$C$2:$C$5860,"<="&'Initial Conditions and Settings'!B$4,'Historical Data'!$B$2:$B$5860,Table1[[Country Code]:[Country Code]]),".") -> . | E17: =IFERROR(AVERAGEIFS('Historical Data'!F$2:F$5860,'Historical Data'!$C$2:$C$5860,">="&'Initial Conditions and Settings'!C$3,'Historical Data'!$C$2:$C$5860,"<="&'Initial Conditions and Settings'!C$4,'Historical Data'!$B$2:$B$5860,Table1[[Country Code]:[Country Code]]),".") -> . | F17: =IFERROR((AVERAGEIFS('Historical Data'!I$2:I$5860,'Historical Data'!$C$2:$C$5860,">="&'Initial Conditions and Settings'!D$3,'Historical Data'!$C$2:$C$5860,"<="&'Initial Conditions and Settings'!D$4,'Historical Data'!$B$2:$B$5860,Table1[[Country Code]:[Country Code]])),".") -> . | G17: =IFERROR(AVERAGEIFS('Historical Data'!Q$2:Q$5860,'Historical Data'!$C$2:$C$5860,">="&'Initial Conditions and Settings'!E$3,'Historical Data'!$C$2:$C$5860,"<="&'Initial Conditions and Settings'!E$4,'Historical Data'!$B$2:$B$5860,Table1[[Country Code]:[Country Code]]),".") -> . | H17: =IFERROR((AVERAGEIFS('Historical Data'!M$2:M$5860,'Historical Data'!$C$2:$C$5860,">="&'Initial Conditions and Settings'!F$3,'Historical Data'!$C$2:$C$5860,"<="&'Initial Conditions and Settings'!F$4,'Historical Data'!$B$2:$B$5860,Table1[[Country Code]:[Country Code]])),".") -> . | I17: =IFERROR(Table1[[#This Row],[Capital (2010 US dollars, thousands)]]/Table1[[#This Row],[GDP (2010 US dollars, thousands)]],".") -> . | J17: =IFERROR(INDEX('Historical Data'!Z$2:Z$5860, MATCH(Table1[[#This Row],[Country Code]],'Historical Data'!B$2:B$5860,0))*Table1[[#This Row],[Employment (thousands)]]/Table1[[#This Row],[Labor Force (thousands)]]+natump,".") -> . | K17: =IFERROR((1-Table1[[#This Row],[Formal Employment % of Labor Force2]])*(AVERAGEIFS('Historical Data'!W$2:W$5860,'Historical Data'!$C$2:$C$5860,">="&'Initial Conditions and Settings'!F$3,'Historical Data'!$C$2:$C$5860,"<="&'Initial Conditions and Settings'!F$4,'Historical Data'!$B$2:$B$5860,Table1[[Country Code]:[Country Code]]))/((AVERAGEIFS('Historical Data'!W$2:W$5860,'Historical Data'!$C$2:$C$5860,">="&'Initial Conditions and Settings'!F$3,'Historical Data'!$C$2:$C$5860,"<="&'Initial Conditions and Settings'!F$4,'Historical Data'!$B$2:$B$5860,Table1[[Country Code]:[Country Code]]))+(AVERAGEIFS('Historical Data'!X$2:X$5860,'Historical Data'!$C$2:$C$5860,">="&'Initial Conditions and Settings'!F$3,'Historical Data'!$C$2:$C$5860,"<="&'Initial Conditions and Settings'!F$4,'Historical Data'!$B$2:$B$5860,Table1[[Country Code]:[Country Code]]))),".") -> . | L17: =IFERROR((1-Table1[[#This Row],[Formal Employment % of Labor Force2]])*(AVERAGEIFS('Historical Data'!X$2:X$5860,'Historical Data'!$C$2:$C$5860,">="&'Initial Conditions and Settings'!F$3,'Historical Data'!$C$2:$C$5860,"<="&'Initial Conditions and Settings'!F$4,'Historical Data'!$B$2:$B$5860,Table1[[Country Code]:[Country Code]]))/((AVERAGEIFS('Historical Data'!W$2:W$5860,'Historical Data'!$C$2:$C$5860,">="&'Initial Conditions and Settings'!F$3,'Historical Data'!$C$2:$C$5860,"<="&'Initial Conditions and Settings'!F$4,'Historical Data'!$B$2:$B$5860,Table1[[Country Code]:[Country Code]]))+(AVERAGEIFS('Historical Data'!X$2:X$5860,'Historical Data'!$C$2:$C$5860,">="&'Initial Conditions and Settings'!F$3,'Historical Data'!$C$2:$C$5860,"<="&'Initial Conditions and Settings'!F$4,'Historical Data'!$B$2:$B$5860,Table1[[Country Code]:[Country Code]]))),".") -> . | M17: =IFERROR(INDEX('Historical Data'!Z$2:Z$5860, MATCH(Table1[[#This Row],[Country Code]],'Historical Data'!B$2:B$5860,0)),".") -> . | N17: =IFERROR(INDEX('Historical Data'!W$2:W$5860, MATCH(Table1[[#This Row],[Country Code]],'Historical Data'!B$2:B$5860,0)),".") -> . | O17: =IFERROR(INDEX('Historical Data'!X$2:X$5860, MATCH(Table1[[#This Row],[Country Code]],'Historical Data'!B$2:B$5860,0)),".") -> . | P17: =IFERROR(Table1[[#This Row],[Formal Employment % of Labor Force2]]/(Table1[[#This Row],[Formal Employment % of Labor Force2]]+Table1[[#This Row],[Informal Employment (modern, type 2) % of Labor Force2]]),".") -> . | Q17: =IFERROR(Table1[[#This Row],[Informal Employment (modern, type 2) % of Labor Force2]]/(Table1[[#This Row],[Formal Employment % of Labor Force2]]+Table1[[#This Row],[Informal Employment (modern, type 2) % of Labor Force2]]),".") -> . | R17: =IFERROR((1/(miu))*(1-((1-pi)*Table1[[#This Row],[Li/L]])),".") -> . | S17: =IFERROR(Table1[[#This Row],[bA/W]]*miu,".") -> . | T17: =IFERROR(Table1[[#This Row],[Capital (2010 US dollars, thousands)]]/((Table1[[#This Row],[Formal Employment % of Labor Force2]]+Table1[[#This Row],[Informal Employment (modern, type 2) % of Labor Force2]])*Table1[[#This Row],[Labor Force (thousands)]]),".") -> . | U17: =IFERROR((((pi/psi)*Table1[[#This Row],[Li/L]]+Table1[[#This Row],[Lf/L]])/((1-capshare)^(1/(capshare))*Table1[[#This Row],[K/L]]))^(capshare),".") -> . | V17: =IFERROR(Table1[[#This Row],[GDP (2010 US dollars, thousands)]]*Table1[[#This Row],[A/W]]/(Table1[[#This Row],[Labor Force (thousands)]]*((1/(1-capshare))*(Table1[[#This Row],[Formal Employment % of Labor Force2]]+pi*Table1[[#This Row],[Informal Employment (modern, type 2) % of Labor Force2]])+(Table1[[#This Row],[Informal Employment (rudimentary, type 1) % of Labor Force2]]/miu)*(1-(1-pi)*Table1[[#This Row],[Li/L]]))),".") -> . | W17: =IFERROR(MAX(Table1[[#This Row],[A]]/Table1[[#This Row],[A/W]],0),".") -> . | X17: =IFERROR(MAX((1/(miu*Table1[[#This Row],[A/W]]))*(1-(1-pi)*Table1[[#This Row],[Li/L]]),0.001),".") -> . | Y17: =IFERROR(Table1[[#This Row],[Formal Employment % of Employment]]/(Table1[[#This Row],[Formal Employment % of Employment]]+Table1[Informal Employment (modern, type 2) % of Employment]),".") -> . | Z17: =IFERROR(Table1[[#This Row],[Informal Employment (modern, type 2) % of Employment]]/(Table1[[#This Row],[Formal Employment % of Employment]]+Table1[[#This Row],[Informal Employment (modern, type 2) % of Employment]]),".") -> . | AA17: =IFERROR((1/(miu))*(1-((1-pi)*Table1[[#This Row],[Li/L2]])),".") -> . | AB17: =IFERROR(Table1[[#This Row],[bA/W2]]*miu,".") -> . | AC17: =IFERROR(Table1[[#This Row],[Capital (2010 US dollars, thousands)]]/((Table1[[#This Row],[Formal Employment % of Employment]]+Table1[[#This Row],[Informal Employment (modern, type 2) % of Employment]])*Table1[[#This Row],[Employment (thousands)]]),".") -> . | AD17: =IFERROR((((pi/psi)*Table1[[#This Row],[Li/L2]]+Table1[[#This Row],[Lf/L2]])/((1-capshare)^(1/(capshare))*Table1[[#This Row],[K/L2]]))^(capshare),".") -> . | AE17: =IFERROR(Table1[[#This Row],[GDP (2010 US dollars, thousands)]]*Table1[[#This Row],[A/W2]]/(Table1[[#This Row],[Employment (thousands)]]*((1/(1-capshare))*(Table1[[#This Row],[Formal Employment % of Employment]]+pi*Table1[[#This Row],[Informal Employment (modern, type 2) % of Employment]])+(Table1[[#This Row],[Informal Employment (rudimentary, type 1) % of Employment]]/miu)*(1-(1-pi)*Table1[[#This Row],[Li/L2]]))),".") -> . | AF17: =IFERROR(MAX(Table1[[#This Row],[A2]]/Table1[[#This Row],[A/W2]],0),".") -> . | AG17: =IFERROR(MAX((1/(miu*Table1[[#This Row],[A/W2]]))*(1-(1-pi)*Table1[[#This Row],[Li/L2]]),0.001),".") -> . | AH17: 0 | AI17: 0 | AJ17: 0 | AK17: 0 | AL17: 0 | AM17: =SUM(Table1[[#This Row],[OPEC members]]+Table1[[#This Row],[Questionable data]]+Table1[[#This Row],[Pension/GDP outliers]]+Table1[[#This Row],[K/GDP outliers]])+Table1[[#This Row],[GDP/TFP outlier]] -> 0 | AN17: 0 | AO17: 0 | AP17: =IFERROR(MAX(0,AVERAGEIFS('Historical Data'!R$2:R$5860,'Historical Data'!$C$2:$C$5860,">="&'Initial Conditions and Settings'!G$3,'Historical Data'!$C$2:$C$5860,"<="&'Initial Conditions and Settings'!G$4,'Historical Data'!$B$2:$B$5860,Table1[[Country Code]:[Country Code]])),".") -> . | AQ17: =IFERROR(MAX((((Table1[[#This Row],[A]]*((capshare)^(capshare))*((1-capshare)^(1-capshare)))^(1/(capshare)))*(Table1[[#This Row],[Minimum wage, W]]^(-(1-capshare)/(capshare))))-Table1[[#This Row],[Growth Rate of Capital]],0.01),".") -> . | AR17: =IFERROR(MAX((((Table1[[#This Row],[A2]]*((capshare)^(capshare))*((1-capshare)^(1-capshare)))^(1/(capshare)))*(Table1[[#This Row],[Minimum wage, W2]]^(-(1-capshare)/(capshare))))-Table1[[#This Row],[Growth Rate of Capital]],0.01),".") -> . | AS17: =IFERROR(AVERAGEIFS('Historical Data'!S$2:S$5860,'Historical Data'!$C$2:$C$5860,">="&'Initial Conditions and Settings'!H$3,'Historical Data'!$C$2:$C$5860,"<="&'Initial Conditions and Settings'!H$4,'Historical Data'!$B$2:$B$5860,Table1[[Country Code]:[Country Code]]),".") -> .
A18: . | B18: AND | C18: Andorra | D18: =IFERROR(AVERAGEIFS('Historical Data'!E$2:E$5860,'Historical Data'!$C$2:$C$5860,">="&'Initial Conditions and Settings'!B$3,'Historical Data'!$C$2:$C$5860,"<="&'Initial Conditions and Settings'!B$4,'Historical Data'!$B$2:$B$5860,Table1[[Country Code]:[Country Code]]),".") -> . | E18: =IFERROR(AVERAGEIFS('Historical Data'!F$2:F$5860,'Historical Data'!$C$2:$C$5860,">="&'Initial Conditions and Settings'!C$3,'Historical Data'!$C$2:$C$5860,"<="&'Initial Conditions and Settings'!C$4,'Historical Data'!$B$2:$B$5860,Table1[[Country Code]:[Country Code]]),".") -> . | F18: =IFERROR((AVERAGEIFS('Historical Data'!I$2:I$5860,'Historical Data'!$C$2:$C$5860,">="&'Initial Conditions and Settings'!D$3,'Historical Data'!$C$2:$C$5860,"<="&'Initial Conditions and Settings'!D$4,'Historical Data'!$B$2:$B$5860,Table1[[Country Code]:[Country Code]])),".") -> . | G18: =IFERROR(AVERAGEIFS('Historical Data'!Q$2:Q$5860,'Historical Data'!$C$2:$C$5860,">="&'Initial Conditions and Settings'!E$3,'Historical Data'!$C$2:$C$5860,"<="&'Initial Conditions and Settings'!E$4,'Historical Data'!$B$2:$B$5860,Table1[[Country Code]:[Country Code]]),".") -> . | H18: =IFERROR((AVERAGEIFS('Historical Data'!M$2:M$5860,'Historical Data'!$C$2:$C$5860,">="&'Initial Conditions and Settings'!F$3,'Historical Data'!$C$2:$C$5860,"<="&'Initial Conditions and Settings'!F$4,'Historical Data'!$B$2:$B$5860,Table1[[Country Code]:[Country Code]])),".") -> . | I18: =IFERROR(Table1[[#This Row],[Capital (2010 US dollars, thousands)]]/Table1[[#This Row],[GDP (2010 US dollars, thousands)]],".") -> . | J18: =IFERROR(INDEX('Historical Data'!Z$2:Z$5860, MATCH(Table1[[#This Row],[Country Code]],'Historical Data'!B$2:B$5860,0))*Table1[[#This Row],[Employment (thousands)]]/Table1[[#This Row],[Labor Force (thousands)]]+natump,".") -> . | K18: =IFERROR((1-Table1[[#This Row],[Formal Employment % of Labor Force2]])*(AVERAGEIFS('Historical Data'!W$2:W$5860,'Historical Data'!$C$2:$C$5860,">="&'Initial Conditions and Settings'!F$3,'Historical Data'!$C$2:$C$5860,"<="&'Initial Conditions and Settings'!F$4,'Historical Data'!$B$2:$B$5860,Table1[[Country Code]:[Country Code]]))/((AVERAGEIFS('Historical Data'!W$2:W$5860,'Historical Data'!$C$2:$C$5860,">="&'Initial Conditions and Settings'!F$3,'Historical Data'!$C$2:$C$5860,"<="&'Initial Conditions and Settings'!F$4,'Historical Data'!$B$2:$B$5860,Table1[[Country Code]:[Country Code]]))+(AVERAGEIFS('Historical Data'!X$2:X$5860,'Historical Data'!$C$2:$C$5860,">="&'Initial Conditions and Settings'!F$3,'Historical Data'!$C$2:$C$5860,"<="&'Initial Conditions and Settings'!F$4,'Historical Data'!$B$2:$B$5860,Table1[[Country Code]:[Country Code]]))),".") -> . | L18: =IFERROR((1-Table1[[#This Row],[Formal Employment % of Labor Force2]])*(AVERAGEIFS('Historical Data'!X$2:X$5860,'Historical Data'!$C$2:$C$5860,">="&'Initial Conditions and Settings'!F$3,'Historical Data'!$C$2:$C$5860,"<="&'Initial Conditions and Settings'!F$4,'Historical Data'!$B$2:$B$5860,Table1[[Country Code]:[Country Code]]))/((AVERAGEIFS('Historical Data'!W$2:W$5860,'Historical Data'!$C$2:$C$5860,">="&'Initial Conditions and Settings'!F$3,'Historical Data'!$C$2:$C$5860,"<="&'Initial Conditions and Settings'!F$4,'Historical Data'!$B$2:$B$5860,Table1[[Country Code]:[Country Code]]))+(AVERAGEIFS('Historical Data'!X$2:X$5860,'Historical Data'!$C$2:$C$5860,">="&'Initial Conditions and Settings'!F$3,'Historical Data'!$C$2:$C$5860,"<="&'Initial Conditions and Settings'!F$4,'Historical Data'!$B$2:$B$5860,Table1[[Country Code]:[Country Code]]))),".") -> . | M18: =IFERROR(INDEX('Historical Data'!Z$2:Z$5860, MATCH(Table1[[#This Row],[Country Code]],'Historical Data'!B$2:B$5860,0)),".") -> . | N18: =IFERROR(INDEX('Historical Data'!W$2:W$5860, MATCH(Table1[[#This Row],[Country Code]],'Historical Data'!B$2:B$5860,0)),".") -> . | O18: =IFERROR(INDEX('Historical Data'!X$2:X$5860, MATCH(Table1[[#This Row],[Country Code]],'Historical Data'!B$2:B$5860,0)),".") -> . | P18: =IFERROR(Table1[[#This Row],[Formal Employment % of Labor Force2]]/(Table1[[#This Row],[Formal Employment % of Labor Force2]]+Table1[[#This Row],[Informal Employment (modern, type 2) % of Labor Force2]]),".") -> . | Q18: =IFERROR(Table1[[#This Row],[Informal Employment (modern, type 2) % of Labor Force2]]/(Table1[[#This Row],[Formal Employment % of Labor Force2]]+Table1[[#This Row],[Informal Employment (modern, type 2) % of Labor Force2]]),".") -> . | R18: =IFERROR((1/(miu))*(1-((1-pi)*Table1[[#This Row],[Li/L]])),".") -> . | S18: =IFERROR(Table1[[#This Row],[bA/W]]*miu,".") -> . | T18: =IFERROR(Table1[[#This Row],[Capital (2010 US dollars, thousands)]]/((Table1[[#This Row],[Formal Employment % of Labor Force2]]+Table1[[#This Row],[Informal Employment (modern, type 2) % of Labor Force2]])*Table1[[#This Row],[Labor Force (thousands)]]),".") -> . | U18: =IFERROR((((pi/psi)*Table1[[#This Row],[Li/L]]+Table1[[#This Row],[Lf/L]])/((1-capshare)^(1/(capshare))*Table1[[#This Row],[K/L]]))^(capshare),".") -> . | V18: =IFERROR(Table1[[#This Row],[GDP (2010 US dollars, thousands)]]*Table1[[#This Row],[A/W]]/(Table1[[#This Row],[Labor Force (thousands)]]*((1/(1-capshare))*(Table1[[#This Row],[Formal Employment % of Labor Force2]]+pi*Table1[[#This Row],[Informal Employment (modern, type 2) % of Labor Force2]])+(Table1[[#This Row],[Informal Employment (rudimentary, type 1) % of Labor Force2]]/miu)*(1-(1-pi)*Table1[[#This Row],[Li/L]]))),".") -> . | W18: =IFERROR(MAX(Table1[[#This Row],[A]]/Table1[[#This Row],[A/W]],0),".") -> . | X18: =IFERROR(MAX((1/(miu*Table1[[#This Row],[A/W]]))*(1-(1-pi)*Table1[[#This Row],[Li/L]]),0.001),".") -> . | Y18: =IFERROR(Table1[[#This Row],[Formal Employment % of Employment]]/(Table1[[#This Row],[Formal Employment % of Employment]]+Table1[Informal Employment (modern, type 2) % of Employment]),".") -> . | Z18: =IFERROR(Table1[[#This Row],[Informal Employment (modern, type 2) % of Employment]]/(Table1[[#This Row],[Formal Employment % of Employment]]+Table1[[#This Row],[Informal Employment (modern, type 2) % of Employment]]),".") -> . | AA18: =IFERROR((1/(miu))*(1-((1-pi)*Table1[[#This Row],[Li/L2]])),".") -> . | AB18: =IFERROR(Table1[[#This Row],[bA/W2]]*miu,".") -> . | AC18: =IFERROR(Table1[[#This Row],[Capital (2010 US dollars, thousands)]]/((Table1[[#This Row],[Formal Employment % of Employment]]+Table1[[#This Row],[Informal Employment (modern, type 2) % of Employment]])*Table1[[#This Row],[Employment (thousands)]]),".") -> . | AD18: =IFERROR((((pi/psi)*Table1[[#This Row],[Li/L2]]+Table1[[#This Row],[Lf/L2]])/((1-capshare)^(1/(capshare))*Table1[[#This Row],[K/L2]]))^(capshare),".") -> . | AE18: =IFERROR(Table1[[#This Row],[GDP (2010 US dollars, thousands)]]*Table1[[#This Row],[A/W2]]/(Table1[[#This Row],[Employment (thousands)]]*((1/(1-capshare))*(Table1[[#This Row],[Formal Employment % of Employment]]+pi*Table1[[#This Row],[Informal Employment (modern, type 2) % of Employment]])+(Table1[[#This Row],[Informal Employment (rudimentary, type 1) % of Employment]]/miu)*(1-(1-pi)*Table1[[#This Row],[Li/L2]]))),".") -> . | AF18: =IFERROR(MAX(Table1[[#This Row],[A2]]/Table1[[#This Row],[A/W2]],0),".") -> . | AG18: =IFERROR(MAX((1/(miu*Table1[[#This Row],[A/W2]]))*(1-(1-pi)*Table1[[#This Row],[Li/L2]]),0.001),".") -> . | AH18: 0 | AI18: 0 | AJ18: 0 | AK18: 0 | AL18: 0 | AM18: =SUM(Table1[[#This Row],[OPEC members]]+Table1[[#This Row],[Questionable data]]+Table1[[#This Row],[Pension/GDP outliers]]+Table1[[#This Row],[K/GDP outliers]])+Table1[[#This Row],[GDP/TFP outlier]] -> 0 | AN18: 0 | AO18: 0 | AP18: =IFERROR(MAX(0,AVERAGEIFS('Historical Data'!R$2:R$5860,'Historical Data'!$C$2:$C$5860,">="&'Initial Conditions and Settings'!G$3,'Historical Data'!$C$2:$C$5860,"<="&'Initial Conditions and Settings'!G$4,'Historical Data'!$B$2:$B$5860,Table1[[Country Code]:[Country Code]])),".") -> . | AQ18: =IFERROR(MAX((((Table1[[#This Row],[A]]*((capshare)^(capshare))*((1-capshare)^(1-capshare)))^(1/(capshare)))*(Table1[[#This Row],[Minimum wage, W]]^(-(1-capshare)/(capshare))))-Table1[[#This Row],[Growth Rate of Capital]],0.01),".") -> . | AR18: =IFERROR(MAX((((Table1[[#This Row],[A2]]*((capshare)^(capshare))*((1-capshare)^(1-capshare)))^(1/(capshare)))*(Table1[[#This Row],[Minimum wage, W2]]^(-(1-capshare)/(capshare))))-Table1[[#This Row],[Growth Rate of Capital]],0.01),".") -> . | AS18: =IFERROR(AVERAGEIFS('Historical Data'!S$2:S$5860,'Historical Data'!$C$2:$C$5860,">="&'Initial Conditions and Settings'!H$3,'Historical Data'!$C$2:$C$5860,"<="&'Initial Conditions and Settings'!H$4,'Historical Data'!$B$2:$B$5860,Table1[[Country Code]:[Country Code]]),".") -> .
A19: SSA | B19: AGO | C19: Angola | D19: =IFERROR(AVERAGEIFS('Historical Data'!E$2:E$5860,'Historical Data'!$C$2:$C$5860,">="&'Initial Conditions and Settings'!B$3,'Historical Data'!$C$2:$C$5860,"<="&'Initial Conditions and Settings'!B$4,'Historical Data'!$B$2:$B$5860,Table1[[Country Code]:[Country Code]]),".") -> 11072.2 | E19: =IFERROR(AVERAGEIFS('Historical Data'!F$2:F$5860,'Historical Data'!$C$2:$C$5860,">="&'Initial Conditions and Settings'!C$3,'Historical Data'!$C$2:$C$5860,"<="&'Initial Conditions and Settings'!C$4,'Historical Data'!$B$2:$B$5860,Table1[[Country Code]:[Country Code]]),".") -> 10252.4 | F19: =IFERROR((AVERAGEIFS('Historical Data'!I$2:I$5860,'Historical Data'!$C$2:$C$5860,">="&'Initial Conditions and Settings'!D$3,'Historical Data'!$C$2:$C$5860,"<="&'Initial Conditions and Settings'!D$4,'Historical Data'!$B$2:$B$5860,Table1[[Country Code]:[Country Code]])),".") -> 162275372.8 | G19: =IFERROR(AVERAGEIFS('Historical Data'!Q$2:Q$5860,'Historical Data'!$C$2:$C$5860,">="&'Initial Conditions and Settings'!E$3,'Historical Data'!$C$2:$C$5860,"<="&'Initial Conditions and Settings'!E$4,'Historical Data'!$B$2:$B$5860,Table1[[Country Code]:[Country Code]]),".") -> 0.04176075634 | H19: =IFERROR((AVERAGEIFS('Historical Data'!M$2:M$5860,'Historical Data'!$C$2:$C$5860,">="&'Initial Conditions and Settings'!F$3,'Historical Data'!$C$2:$C$5860,"<="&'Initial Conditions and Settings'!F$4,'Historical Data'!$B$2:$B$5860,Table1[[Country Code]:[Country Code]])),".") -> . | I19: =IFERROR(Table1[[#This Row],[Capital (2010 US dollars, thousands)]]/Table1[[#This Row],[GDP (2010 US dollars, thousands)]],".") -> . | J19: =IFERROR(INDEX('Historical Data'!Z$2:Z$5860, MATCH(Table1[[#This Row],[Country Code]],'Historical Data'!B$2:B$5860,0))*Table1[[#This Row],[Employment (thousands)]]/Table1[[#This Row],[Labor Force (thousands)]]+natump,".") -> 0.1046315779 | K19: =IFERROR((1-Table1[[#This Row],[Formal Employment % of Labor Force2]])*(AVERAGEIFS('Historical Data'!W$2:W$5860,'Historical Data'!$C$2:$C$5860,">="&'Initial Conditions and Settings'!F$3,'Historical Data'!$C$2:$C$5860,"<="&'Initial Conditions and Settings'!F$4,'Historical Data'!$B$2:$B$5860,Table1[[Country Code]:[Country Code]]))/((AVERAGEIFS('Historical Data'!W$2:W$5860,'Historical Data'!$C$2:$C$5860,">="&'Initial Conditions and Settings'!F$3,'Historical Data'!$C$2:$C$5860,"<="&'Initial Conditions and Settings'!F$4,'Historical Data'!$B$2:$B$5860,Table1[[Country Code]:[Country Code]]))+(AVERAGEIFS('Historical Data'!X$2:X$5860,'Historical Data'!$C$2:$C$5860,">="&'Initial Conditions and Settings'!F$3,'Historical Data'!$C$2:$C$5860,"<="&'Initial Conditions and Settings'!F$4,'Historical Data'!$B$2:$B$5860,Table1[[Country Code]:[Country Code]]))),".") -> 0.6244075036 | L19: =IFERROR((1-Table1[[#This Row],[Formal Employment % of Labor Force2]])*(AVERAGEIFS('Historical Data'!X$2:X$5860,'Historical Data'!$C$2:$C$5860,">="&'Initial Conditions and Settings'!F$3,'Historical Data'!$C$2:$C$5860,"<="&'Initial Conditions and Settings'!F$4,'Historical Data'!$B$2:$B$5860,Table1[[Country Code]:[Country Code]]))/((AVERAGEIFS('Historical Data'!W$2:W$5860,'Historical Data'!$C$2:$C$5860,">="&'Initial Conditions and Settings'!F$3,'Historical Data'!$C$2:$C$5860,"<="&'Initial Conditions and Settings'!F$4,'Historical Data'!$B$2:$B$5860,Table1[[Country Code]:[Country Code]]))+(AVERAGEIFS('Historical Data'!X$2:X$5860,'Historical Data'!$C$2:$C$5860,">="&'Initial Conditions and Settings'!F$3,'Historical Data'!$C$2:$C$5860,"<="&'Initial Conditions and Settings'!F$4,'Historical Data'!$B$2:$B$5860,Table1[[Country Code]:[Country Code]]))),".") -> 0.2709609185 | M19: =IFERROR(INDEX('Historical Data'!Z$2:Z$5860, MATCH(Table1[[#This Row],[Country Code]],'Historical Data'!B$2:B$5860,0)),".") -> 0.05900001526 | N19: =IFERROR(INDEX('Historical Data'!W$2:W$5860, MATCH(Table1[[#This Row],[Country Code]],'Historical Data'!B$2:B$5860,0)),".") -> 0.6562298536 | O19: =IFERROR(INDEX('Historical Data'!X$2:X$5860, MATCH(Table1[[#This Row],[Country Code]],'Historical Data'!B$2:B$5860,0)),".") -> 0.2847701907 | P19: =IFERROR(Table1[[#This Row],[Formal Employment % of Labor Force2]]/(Table1[[#This Row],[Formal Employment % of Labor Force2]]+Table1[[#This Row],[Informal Employment (modern, type 2) % of Labor Force2]]),".") -> 0.2785773914 | Q19: =IFERROR(Table1[[#This Row],[Informal Employment (modern, type 2) % of Labor Force2]]/(Table1[[#This Row],[Formal Employment % of Labor Force2]]+Table1[[#This Row],[Informal Employment (modern, type 2) % of Labor Force2]]),".") -> 0.7214226086 | R19: =IFERROR((1/(miu))*(1-((1-pi)*Table1[[#This Row],[Li/L]])),".") -> 0.3088209438 | S19: =IFERROR(Table1[[#This Row],[bA/W]]*miu,".") -> 0.5583228917 | T19: =IFERROR(Table1[[#This Row],[Capital (2010 US dollars, thousands)]]/((Table1[[#This Row],[Formal Employment % of Labor Force2]]+Table1[[#This Row],[Informal Employment (modern, type 2) % of Labor Force2]])*Table1[[#This Row],[Labor Force (thousands)]]),".") -> 39021.30471 | U19: =IFERROR((((pi/psi)*Table1[[#This Row],[Li/L]]+Table1[[#This Row],[Lf/L]])/((1-capshare)^(1/(capshare))*Table1[[#This Row],[K/L]]))^(capshare),".") -> 0.007114424935 | V19: =IFERROR(Table1[[#This Row],[GDP (2010 US dollars, thousands)]]*Table1[[#This Row],[A/W]]/(Table1[[#This Row],[Labor Force (thousands)]]*((1/(1-capshare))*(Table1[[#This Row],[Formal Employment % of Labor Force2]]+pi*Table1[[#This Row],[Informal Employment (modern, type 2) % of Labor Force2]])+(Table1[[#This Row],[Informal Employment (rudimentary, type 1) % of Labor Force2]]/miu)*(1-(1-pi)*Table1[[#This Row],[Li/L]]))),".") -> . | W19: =IFERROR(MAX(Table1[[#This Row],[A]]/Table1[[#This Row],[A/W]],0),".") -> . | X19: =IFERROR(MAX((1/(miu*Table1[[#This Row],[A/W]]))*(1-(1-pi)*Table1[[#This Row],[Li/L]]),0.001),".") -> 43.40771695 | Y19: =IFERROR(Table1[[#This Row],[Formal Employment % of Employment]]/(Table1[[#This Row],[Formal Employment % of Employment]]+Table1[Informal Employment (modern, type 2) % of Employment]),".") -> 0.1716263197 | Z19: =IFERROR(Table1[[#This Row],[Informal Employment (modern, type 2) % of Employment]]/(Table1[[#This Row],[Formal Employment % of Employment]]+Table1[[#This Row],[Informal Employment (modern, type 2) % of Employment]]),".") -> 0.8283736803 | AA19: =IFERROR((1/(miu))*(1-((1-pi)*Table1[[#This Row],[Li/L2]])),".") -> 0.2726031832 | AB19: =IFERROR(Table1[[#This Row],[bA/W2]]*miu,".") -> 0.4928441563 | AC19: =IFERROR(Table1[[#This Row],[Capital (2010 US dollars, thousands)]]/((Table1[[#This Row],[Formal Employment % of Employment]]+Table1[[#This Row],[Informal Employment (modern, type 2) % of Employment]])*Table1[[#This Row],[Employment (thousands)]]),".") -> 46042.4939 | AD19: =IFERROR((((pi/psi)*Table1[[#This Row],[Li/L2]]+Table1[[#This Row],[Lf/L2]])/((1-capshare)^(1/(capshare))*Table1[[#This Row],[K/L2]]))^(capshare),".") -> 0.006031298993 | AE19: =IFERROR(Table1[[#This Row],[GDP (2010 US dollars, thousands)]]*Table1[[#This Row],[A/W2]]/(Table1[[#This Row],[Employment (thousands)]]*((1/(1-capshare))*(Table1[[#This Row],[Formal Employment % of Employment]]+pi*Table1[[#This Row],[Informal Employment (modern, type 2) % of Employment]])+(Table1[[#This Row],[Informal Employment (rudimentary, type 1) % of Employment]]/miu)*(1-(1-pi)*Table1[[#This Row],[Li/L2]]))),".") -> . | AF19: =IFERROR(MAX(Table1[[#This Row],[A2]]/Table1[[#This Row],[A/W2]],0),".") -> . | AG19: =IFERROR(MAX((1/(miu*Table1[[#This Row],[A/W2]]))*(1-(1-pi)*Table1[[#This Row],[Li/L2]]),0.001),".") -> 45.19808809 | AH19: 0 | AI19: 0 | AJ19: 0 | AK19: 0 | AL19: 0 | AM19: =SUM(Table1[[#This Row],[OPEC members]]+Table1[[#This Row],[Questionable data]]+Table1[[#This Row],[Pension/GDP outliers]]+Table1[[#This Row],[K/GDP outliers]])+Table1[[#This Row],[GDP/TFP outlier]] -> 0 | AN19: 0 | AO19: 0 | AP19: =IFERROR(MAX(0,AVERAGEIFS('Historical Data'!R$2:R$5860,'Historical Data'!$C$2:$C$5860,">="&'Initial Conditions and Settings'!G$3,'Historical Data'!$C$2:$C$5860,"<="&'Initial Conditions and Settings'!G$4,'Historical Data'!$B$2:$B$5860,Table1[[Country Code]:[Country Code]])),".") -> . | AQ19: =IFERROR(MAX((((Table1[[#This Row],[A]]*((capshare)^(capshare))*((1-capshare)^(1-capshare)))^(1/(capshare)))*(Table1[[#This Row],[Minimum wage, W]]^(-(1-capshare)/(capshare))))-Table1[[#This Row],[Growth Rate of Capital]],0.01),".") -> . | AR19: =IFERROR(MAX((((Table1[[#This Row],[A2]]*((capshare)^(capshare))*((1-capshare)^(1-capshare)))^(1/(capshare)))*(Table1[[#This Row],[Minimum wage, W2]]^(-(1-capshare)/(capshare))))-Table1[[#This Row],[Growth Rate of Capital]],0.01),".") -> . | AS19: =IFERROR(AVERAGEIFS('Historical Data'!S$2:S$5860,'Historical Data'!$C$2:$C$5860,">="&'Initial Conditions and Settings'!H$3,'Historical Data'!$C$2:$C$5860,"<="&'Initial Conditions and Settings'!H$4,'Historical Data'!$B$2:$B$5860,Table1[[Country Code]:[Country Code]]),".") -> 0.03544729493
A20: LAC | B20: ATG | C20: Antigua and Barbuda | D20: =IFERROR(AVERAGEIFS('Historical Data'!E$2:E$5860,'Historical Data'!$C$2:$C$5860,">="&'Initial Conditions and Settings'!B$3,'Historical Data'!$C$2:$C$5860,"<="&'Initial Conditions and Settings'!B$4,'Historical Data'!$B$2:$B$5860,Table1[[Country Code]:[Country Code]]),".") -> . | E20: =IFERROR(AVERAGEIFS('Historical Data'!F$2:F$5860,'Historical Data'!$C$2:$C$5860,">="&'Initial Conditions and Settings'!C$3,'Historical Data'!$C$2:$C$5860,"<="&'Initial Conditions and Settings'!C$4,'Historical Data'!$B$2:$B$5860,Table1[[Country Code]:[Country Code]]),".") -> . | F20: =IFERROR((AVERAGEIFS('Historical Data'!I$2:I$5860,'Historical Data'!$C$2:$C$5860,">="&'Initial Conditions and Settings'!D$3,'Historical Data'!$C$2:$C$5860,"<="&'Initial Conditions and Settings'!D$4,'Historical Data'!$B$2:$B$5860,Table1[[Country Code]:[Country Code]])),".") -> 6216914.125 | G20: =IFERROR(AVERAGEIFS('Historical Data'!Q$2:Q$5860,'Historical Data'!$C$2:$C$5860,">="&'Initial Conditions and Settings'!E$3,'Historical Data'!$C$2:$C$5860,"<="&'Initial Conditions and Settings'!E$4,'Historical Data'!$B$2:$B$5860,Table1[[Country Code]:[Country Code]]),".") -> 0.03244576864 | H20: =IFERROR((AVERAGEIFS('Historical Data'!M$2:M$5860,'Historical Data'!$C$2:$C$5860,">="&'Initial Conditions and Settings'!F$3,'Historical Data'!$C$2:$C$5860,"<="&'Initial Conditions and Settings'!F$4,'Historical Data'!$B$2:$B$5860,Table1[[Country Code]:[Country Code]])),".") -> . | I20: =IFERROR(Table1[[#This Row],[Capital (2010 US dollars, thousands)]]/Table1[[#This Row],[GDP (2010 US dollars, thousands)]],".") -> . | J20: =IFERROR(INDEX('Historical Data'!Z$2:Z$5860, MATCH(Table1[[#This Row],[Country Code]],'Historical Data'!B$2:B$5860,0))*Table1[[#This Row],[Employment (thousands)]]/Table1[[#This Row],[Labor Force (thousands)]]+natump,".") -> . | K20: =IFERROR((1-Table1[[#This Row],[Formal Employment % of Labor Force2]])*(AVERAGEIFS('Historical Data'!W$2:W$5860,'Historical Data'!$C$2:$C$5860,">="&'Initial Conditions and Settings'!F$3,'Historical Data'!$C$2:$C$5860,"<="&'Initial Conditions and Settings'!F$4,'Historical Data'!$B$2:$B$5860,Table1[[Country Code]:[Country Code]]))/((AVERAGEIFS('Historical Data'!W$2:W$5860,'Historical Data'!$C$2:$C$5860,">="&'Initial Conditions and Settings'!F$3,'Historical Data'!$C$2:$C$5860,"<="&'Initial Conditions and Settings'!F$4,'Historical Data'!$B$2:$B$5860,Table1[[Country Code]:[Country Code]]))+(AVERAGEIFS('Historical Data'!X$2:X$5860,'Historical Data'!$C$2:$C$5860,">="&'Initial Conditions and Settings'!F$3,'Historical Data'!$C$2:$C$5860,"<="&'Initial Conditions and Settings'!F$4,'Historical Data'!$B$2:$B$5860,Table1[[Country Code]:[Country Code]]))),".") -> . | L20: =IFERROR((1-Table1[[#This Row],[Formal Employment % of Labor Force2]])*(AVERAGEIFS('Historical Data'!X$2:X$5860,'Historical Data'!$C$2:$C$5860,">="&'Initial Conditions and Settings'!F$3,'Historical Data'!$C$2:$C$5860,"<="&'Initial Conditions and Settings'!F$4,'Historical Data'!$B$2:$B$5860,Table1[[Country Code]:[Country Code]]))/((AVERAGEIFS('Historical Data'!W$2:W$5860,'Historical Data'!$C$2:$C$5860,">="&'Initial Conditions and Settings'!F$3,'Historical Data'!$C$2:$C$5860,"<="&'Initial Conditions and Settings'!F$4,'Historical Data'!$B$2:$B$5860,Table1[[Country Code]:[Country Code]]))+(AVERAGEIFS('Historical Data'!X$2:X$5860,'Historical Data'!$C$2:$C$5860,">="&'Initial Conditions and Settings'!F$3,'Historical Data'!$C$2:$C$5860,"<="&'Initial Conditions and Settings'!F$4,'Historical Data'!$B$2:$B$5860,Table1[[Country Code]:[Country Code]]))),".") -> . | M20: =IFERROR(INDEX('Historical Data'!Z$2:Z$5860, MATCH(Table1[[#This Row],[Country Code]],'Historical Data'!B$2:B$5860,0)),".") -> . | N20: =IFERROR(INDEX('Historical Data'!W$2:W$5860, MATCH(Table1[[#This Row],[Country Code]],'Historical Data'!B$2:B$5860,0)),".") -> . | O20: =IFERROR(INDEX('Historical Data'!X$2:X$5860, MATCH(Table1[[#This Row],[Country Code]],'Historical Data'!B$2:B$5860,0)),".") -> . | P20: =IFERROR(Table1[[#This Row],[Formal Employment % of Labor Force2]]/(Table1[[#This Row],[Formal Employment % of Labor Force2]]+Table1[[#This Row],[Informal Employment (modern, type 2) % of Labor Force2]]),".") -> . | Q20: =IFERROR(Table1[[#This Row],[Informal Employment (modern, type 2) % of Labor Force2]]/(Table1[[#This Row],[Formal Employment % of Labor Force2]]+Table1[[#This Row],[Informal Employment (modern, type 2) % of Labor Force2]]),".") -> . | R20: =IFERROR((1/(miu))*(1-((1-pi)*Table1[[#This Row],[Li/L]])),".") -> . | S20: =IFERROR(Table1[[#This Row],[bA/W]]*miu,".") -> . | T20: =IFERROR(Table1[[#This Row],[Capital (2010 US dollars, thousands)]]/((Table1[[#This Row],[Formal Employment % of Labor Force2]]+Table1[[#This Row],[Informal Employment (modern, type 2) % of Labor Force2]])*Table1[[#This Row],[Labor Force (thousands)]]),".") -> . | U20: =IFERROR((((pi/psi)*Table1[[#This Row],[Li/L]]+Table1[[#This Row],[Lf/L]])/((1-capshare)^(1/(capshare))*Table1[[#This Row],[K/L]]))^(capshare),".") -> . | V20: =IFERROR(Table1[[#This Row],[GDP (2010 US dollars, thousands)]]*Table1[[#This Row],[A/W]]/(Table1[[#This Row],[Labor Force (thousands)]]*((1/(1-capshare))*(Table1[[#This Row],[Formal Employment % of Labor Force2]]+pi*Table1[[#This Row],[Informal Employment (modern, type 2) % of Labor Force2]])+(Table1[[#This Row],[Informal Employment (rudimentary, type 1) % of Labor Force2]]/miu)*(1-(1-pi)*Table1[[#This Row],[Li/L]]))),".") -> . | W20: =IFERROR(MAX(Table1[[#This Row],[A]]/Table1[[#This Row],[A/W]],0),".") -> . | X20: =IFERROR(MAX((1/(miu*Table1[[#This Row],[A/W]]))*(1-(1-pi)*Table1[[#This Row],[Li/L]]),0.001),".") -> . | Y20: =IFERROR(Table1[[#This Row],[Formal Employment % of Employment]]/(Table1[[#This Row],[Formal Employment % of Employment]]+Table1[Informal Employment (modern, type 2) % of Employment]),".") -> . | Z20: =IFERROR(Table1[[#This Row],[Informal Employment (modern, type 2) % of Employment]]/(Table1[[#This Row],[Formal Employment % of Employment]]+Table1[[#This Row],[Informal Employment (modern, type 2) % of Employment]]),".") -> . | AA20: =IFERROR((1/(miu))*(1-((1-pi)*Table1[[#This Row],[Li/L2]])),".") -> . | AB20: =IFERROR(Table1[[#This Row],[bA/W2]]*miu,".") -> . | AC20: =IFERROR(Table1[[#This Row],[Capital (2010 US dollars, thousands)]]/((Table1[[#This Row],[Formal Employment % of Employment]]+Table1[[#This Row],[Informal Employment (modern, type 2) % of Employment]])*Table1[[#This Row],[Employment (thousands)]]),".") -> . | AD20: =IFERROR((((pi/psi)*Table1[[#This Row],[Li/L2]]+Table1[[#This Row],[Lf/L2]])/((1-capshare)^(1/(capshare))*Table1[[#This Row],[K/L2]]))^(capshare),".") -> . | AE20: =IFERROR(Table1[[#This Row],[GDP (2010 US dollars, thousands)]]*Table1[[#This Row],[A/W2]]/(Table1[[#This Row],[Employment (thousands)]]*((1/(1-capshare))*(Table1[[#This Row],[Formal Employment % of Employment]]+pi*Table1[[#This Row],[Informal Employment (modern, type 2) % of Employment]])+(Table1[[#This Row],[Informal Employment (rudimentary, type 1) % of Employment]]/miu)*(1-(1-pi)*Table1[[#This Row],[Li/L2]]))),".") -> . | AF20: =IFERROR(MAX(Table1[[#This Row],[A2]]/Table1[[#This Row],[A/W2]],0),".") -> . | AG20: =IFERROR(MAX((1/(miu*Table1[[#This Row],[A/W2]]))*(1-(1-pi)*Table1[[#This Row],[Li/L2]]),0.001),".") -> . | AH20: 0 | AI20: 0 | AJ20: 0 | AK20: 0 | AL20: 0 | AM20: =SUM(Table1[[#This Row],[OPEC members]]+Table1[[#This Row],[Questionable data]]+Table1[[#This Row],[Pension/GDP outliers]]+Table1[[#This Row],[K/GDP outliers]])+Table1[[#This Row],[GDP/TFP outlier]] -> 0 | AN20: 0 | AO20: 0 | AP20: =IFERROR(MAX(0,AVERAGEIFS('Historical Data'!R$2:R$5860,'Historical Data'!$C$2:$C$5860,">="&'Initial Conditions and Settings'!G$3,'Historical Data'!$C$2:$C$5860,"<="&'Initial Conditions and Settings'!G$4,'Historical Data'!$B$2:$B$5860,Table1[[Country Code]:[Country Code]])),".") -> . | AQ20: =IFERROR(MAX((((Table1[[#This Row],[A]]*((capshare)^(capshare))*((1-capshare)^(1-capshare)))^(1/(capshare)))*(Table1[[#This Row],[Minimum wage, W]]^(-(1-capshare)/(capshare))))-Table1[[#This Row],[Growth Rate of Capital]],0.01),".") -> . | AR20: =IFERROR(MAX((((Table1[[#This Row],[A2]]*((capshare)^(capshare))*((1-capshare)^(1-capshare)))^(1/(capshare)))*(Table1[[#This Row],[Minimum wage, W2]]^(-(1-capshare)/(capshare))))-Table1[[#This Row],[Growth Rate of Capital]],0.01),".") -> . | AS20: =IFERROR(AVERAGEIFS('Historical Data'!S$2:S$5860,'Historical Data'!$C$2:$C$5860,">="&'Initial Conditions and Settings'!H$3,'Historical Data'!$C$2:$C$5860,"<="&'Initial Conditions and Settings'!H$4,'Historical Data'!$B$2:$B$5860,Table1[[Country Code]:[Country Code]]),".") -> .
A21: LAC | B21: ARG | C21: Argentina | D21: =IFERROR(AVERAGEIFS('Historical Data'!E$2:E$5860,'Historical Data'!$C$2:$C$5860,">="&'Initial Conditions and Settings'!B$3,'Historical Data'!$C$2:$C$5860,"<="&'Initial Conditions and Settings'!B$4,'Historical Data'!$B$2:$B$5860,Table1[[Country Code]:[Country Code]]),".") -> 19313.2 | E21: =IFERROR(AVERAGEIFS('Historical Data'!F$2:F$5860,'Historical Data'!$C$2:$C$5860,">="&'Initial Conditions and Settings'!C$3,'Historical Data'!$C$2:$C$5860,"<="&'Initial Conditions and Settings'!C$4,'Historical Data'!$B$2:$B$5860,Table1[[Country Code]:[Country Code]]),".") -> 17865.8 | F21: =IFERROR((AVERAGEIFS('Historical Data'!I$2:I$5860,'Historical Data'!$C$2:$C$5860,">="&'Initial Conditions and Settings'!D$3,'Historical Data'!$C$2:$C$5860,"<="&'Initial Conditions and Settings'!D$4,'Historical Data'!$B$2:$B$5860,Table1[[Country Code]:[Country Code]])),".") -> 1172939802 | G21: =IFERROR(AVERAGEIFS('Historical Data'!Q$2:Q$5860,'Historical Data'!$C$2:$C$5860,">="&'Initial Conditions and Settings'!E$3,'Historical Data'!$C$2:$C$5860,"<="&'Initial Conditions and Settings'!E$4,'Historical Data'!$B$2:$B$5860,Table1[[Country Code]:[Country Code]]),".") -> 0.02255385507 | H21: =IFERROR((AVERAGEIFS('Historical Data'!M$2:M$5860,'Historical Data'!$C$2:$C$5860,">="&'Initial Conditions and Settings'!F$3,'Historical Data'!$C$2:$C$5860,"<="&'Initial Conditions and Settings'!F$4,'Historical Data'!$B$2:$B$5860,Table1[[Country Code]:[Country Code]])),".") -> 448748396.1 | I21: =IFERROR(Table1[[#This Row],[Capital (2010 US dollars, thousands)]]/Table1[[#This Row],[GDP (2010 US dollars, thousands)]],".") -> 2.613802772 | J21: =IFERROR(INDEX('Historical Data'!Z$2:Z$5860, MATCH(Table1[[#This Row],[Country Code]],'Historical Data'!B$2:B$5860,0))*Table1[[#This Row],[Employment (thousands)]]/Table1[[#This Row],[Labor Force (thousands)]]+natump,".") -> 0.5384297967 | K21: =IFERROR((1-Table1[[#This Row],[Formal Employment % of Labor Force2]])*(AVERAGEIFS('Historical Data'!W$2:W$5860,'Historical Data'!$C$2:$C$5860,">="&'Initial Conditions and Settings'!F$3,'Historical Data'!$C$2:$C$5860,"<="&'Initial Conditions and Settings'!F$4,'Historical Data'!$B$2:$B$5860,Table1[[Country Code]:[Country Code]]))/((AVERAGEIFS('Historical Data'!W$2:W$5860,'Historical Data'!$C$2:$C$5860,">="&'Initial Conditions and Settings'!F$3,'Historical Data'!$C$2:$C$5860,"<="&'Initial Conditions and Settings'!F$4,'Historical Data'!$B$2:$B$5860,Table1[[Country Code]:[Country Code]]))+(AVERAGEIFS('Historical Data'!X$2:X$5860,'Historical Data'!$C$2:$C$5860,">="&'Initial Conditions and Settings'!F$3,'Historical Data'!$C$2:$C$5860,"<="&'Initial Conditions and Settings'!F$4,'Historical Data'!$B$2:$B$5860,Table1[[Country Code]:[Country Code]]))),".") -> 0.2513632894 | L21: =IFERROR((1-Table1[[#This Row],[Formal Employment % of Labor Force2]])*(AVERAGEIFS('Historical Data'!X$2:X$5860,'Historical Data'!$C$2:$C$5860,">="&'Initial Conditions and Settings'!F$3,'Historical Data'!$C$2:$C$5860,"<="&'Initial Conditions and Settings'!F$4,'Historical Data'!$B$2:$B$5860,Table1[[Country Code]:[Country Code]]))/((AVERAGEIFS('Historical Data'!W$2:W$5860,'Historical Data'!$C$2:$C$5860,">="&'Initial Conditions and Settings'!F$3,'Historical Data'!$C$2:$C$5860,"<="&'Initial Conditions and Settings'!F$4,'Historical Data'!$B$2:$B$5860,Table1[[Country Code]:[Country Code]]))+(AVERAGEIFS('Historical Data'!X$2:X$5860,'Historical Data'!$C$2:$C$5860,">="&'Initial Conditions and Settings'!F$3,'Historical Data'!$C$2:$C$5860,"<="&'Initial Conditions and Settings'!F$4,'Historical Data'!$B$2:$B$5860,Table1[[Country Code]:[Country Code]]))),".") -> 0.2102069139 | M21: =IFERROR(INDEX('Historical Data'!Z$2:Z$5860, MATCH(Table1[[#This Row],[Country Code]],'Historical Data'!B$2:B$5860,0)),".") -> 0.5279999971 | N21: =IFERROR(INDEX('Historical Data'!W$2:W$5860, MATCH(Table1[[#This Row],[Country Code]],'Historical Data'!B$2:B$5860,0)),".") -> 0.256498605 | O21: =IFERROR(INDEX('Historical Data'!X$2:X$5860, MATCH(Table1[[#This Row],[Country Code]],'Historical Data'!B$2:B$5860,0)),".") -> 0.2145014107 | P21: =IFERROR(Table1[[#This Row],[Formal Employment % of Labor Force2]]/(Table1[[#This Row],[Formal Employment % of Labor Force2]]+Table1[[#This Row],[Informal Employment (modern, type 2) % of Labor Force2]]),".") -> 0.7192137242 | Q21: =IFERROR(Table1[[#This Row],[Informal Employment (modern, type 2) % of Labor Force2]]/(Table1[[#This Row],[Formal Employment % of Labor Force2]]+Table1[[#This Row],[Informal Employment (modern, type 2) % of Labor Force2]]),".") -> 0.2807862758 | R21: =IFERROR((1/(miu))*(1-((1-pi)*Table1[[#This Row],[Li/L]])),".") -> 0.4580374125 | S21: =IFERROR(Table1[[#This Row],[bA/W]]*miu,".") -> 0.8280940063 | T21: =IFERROR(Table1[[#This Row],[Capital (2010 US dollars, thousands)]]/((Table1[[#This Row],[Formal Employment % of Labor Force2]]+Table1[[#This Row],[Informal Employment (modern, type 2) % of Labor Force2]])*Table1[[#This Row],[Labor Force (thousands)]]),".") -> 81124.1886 | U21: =IFERROR((((pi/psi)*Table1[[#This Row],[Li/L]]+Table1[[#This Row],[Lf/L]])/((1-capshare)^(1/(capshare))*Table1[[#This Row],[K/L]]))^(capshare),".") -> 0.006292219655 | V21: =IFERROR(Table1[[#This Row],[GDP (2010 US dollars, thousands)]]*Table1[[#This Row],[A/W]]/(Table1[[#This Row],[Labor Force (thousands)]]*((1/(1-capshare))*(Table1[[#This Row],[Formal Employment % of Labor Force2]]+pi*Table1[[#This Row],[Informal Employment (modern, type 2) % of Labor Force2]])+(Table1[[#This Row],[Informal Employment (rudimentary, type 1) % of Labor Force2]]/miu)*(1-(1-pi)*Table1[[#This Row],[Li/L]]))),".") -> 107.8966157 | W21: =IFERROR(MAX(Table1[[#This Row],[A]]/Table1[[#This Row],[A/W]],0),".") -> 17147.62384 | X21: =IFERROR(MAX((1/(miu*Table1[[#This Row],[A/W]]))*(1-(1-pi)*Table1[[#This Row],[Li/L]]),0.001),".") -> 72.79425029 | Y21: =IFERROR(Table1[[#This Row],[Formal Employment % of Employment]]/(Table1[[#This Row],[Formal Employment % of Employment]]+Table1[Informal Employment (modern, type 2) % of Employment]),".") -> 0.7111097589 | Z21: =IFERROR(Table1[[#This Row],[Informal Employment (modern, type 2) % of Employment]]/(Table1[[#This Row],[Formal Employment % of Employment]]+Table1[[#This Row],[Informal Employment (modern, type 2) % of Employment]]),".") -> 0.2888902411 | AA21: =IFERROR((1/(miu))*(1-((1-pi)*Table1[[#This Row],[Li/L2]])),".") -> 0.4552930971 | AB21: =IFERROR(Table1[[#This Row],[bA/W2]]*miu,".") -> 0.8231325096 | AC21: =IFERROR(Table1[[#This Row],[Capital (2010 US dollars, thousands)]]/((Table1[[#This Row],[Formal Employment % of Employment]]+Table1[[#This Row],[Informal Employment (modern, type 2) % of Employment]])*Table1[[#This Row],[Employment (thousands)]]),".") -> 88421.11236 | AD21: =IFERROR((((pi/psi)*Table1[[#This Row],[Li/L2]]+Table1[[#This Row],[Lf/L2]])/((1-capshare)^(1/(capshare))*Table1[[#This Row],[K/L2]]))^(capshare),".") -> 0.006005618566 | AE21: =IFERROR(Table1[[#This Row],[GDP (2010 US dollars, thousands)]]*Table1[[#This Row],[A/W2]]/(Table1[[#This Row],[Employment (thousands)]]*((1/(1-capshare))*(Table1[[#This Row],[Formal Employment % of Employment]]+pi*Table1[[#This Row],[Informal Employment (modern, type 2) % of Employment]])+(Table1[[#This Row],[Informal Employment (rudimentary, type 1) % of Employment]]/miu)*(1-(1-pi)*Table1[[#This Row],[Li/L2]]))),".") -> 112.6453987 | AF21: =IFERROR(MAX(Table1[[#This Row],[A2]]/Table1[[#This Row],[A/W2]],0),".") -> 18756.66886 | AG21: =IFERROR(MAX((1/(miu*Table1[[#This Row],[A/W2]]))*(1-(1-pi)*Table1[[#This Row],[Li/L2]]),0.001),".") -> 75.81119114 | AH21: 0 | AI21: 0 | AJ21: 0 | AK21: 0 | AL21: 0 | AM21: =SUM(Table1[[#This Row],[OPEC members]]+Table1[[#This Row],[Questionable data]]+Table1[[#This Row],[Pension/GDP outliers]]+Table1[[#This Row],[K/GDP outliers]])+Table1[[#This Row],[GDP/TFP outlier]] -> 0 | AN21: 0 | AO21: 0 | AP21: =IFERROR(MAX(0,AVERAGEIFS('Historical Data'!R$2:R$5860,'Historical Data'!$C$2:$C$5860,">="&'Initial Conditions and Settings'!G$3,'Historical Data'!$C$2:$C$5860,"<="&'Initial Conditions and Settings'!G$4,'Historical Data'!$B$2:$B$5860,Table1[[Country Code]:[Country Code]])),".") -> 0.003268915064 | AQ21: =IFERROR(MAX((((Table1[[#This Row],[A]]*((capshare)^(capshare))*((1-capshare)^(1-capshare)))^(1/(capshare)))*(Table1[[#This Row],[Minimum wage, W]]^(-(1-capshare)/(capshare))))-Table1[[#This Row],[Growth Rate of Capital]],0.01),".") -> 0.1471734465 | AR21: =IFERROR(MAX((((Table1[[#This Row],[A2]]*((capshare)^(capshare))*((1-capshare)^(1-capshare)))^(1/(capshare)))*(Table1[[#This Row],[Minimum wage, W2]]^(-(1-capshare)/(capshare))))-Table1[[#This Row],[Growth Rate of Capital]],0.01),".") -> 0.1465724694 | AS21: =IFERROR(AVERAGEIFS('Historical Data'!S$2:S$5860,'Historical Data'!$C$2:$C$5860,">="&'Initial Conditions and Settings'!H$3,'Historical Data'!$C$2:$C$5860,"<="&'Initial Conditions and Settings'!H$4,'Historical Data'!$B$2:$B$5860,Table1[[Country Code]:[Country Code]]),".") -> 0.01154731575
A22: ECA | B22: ARM | C22: Armenia | D22: =IFERROR(AVERAGEIFS('Historical Data'!E$2:E$5860,'Historical Data'!$C$2:$C$5860,">="&'Initial Conditions and Settings'!B$3,'Historical Data'!$C$2:$C$5860,"<="&'Initial Conditions and Settings'!B$4,'Historical Data'!$B$2:$B$5860,Table1[[Country Code]:[Country Code]]),".") -> 1405.6 | E22: =IFERROR(AVERAGEIFS('Historical Data'!F$2:F$5860,'Historical Data'!$C$2:$C$5860,">="&'Initial Conditions and Settings'!C$3,'Historical Data'!$C$2:$C$5860,"<="&'Initial Conditions and Settings'!C$4,'Historical Data'!$B$2:$B$5860,Table1[[Country Code]:[Country Code]]),".") -> 1160.6 | F22: =IFERROR((AVERAGEIFS('Historical Data'!I$2:I$5860,'Historical Data'!$C$2:$C$5860,">="&'Initial Conditions and Settings'!D$3,'Historical Data'!$C$2:$C$5860,"<="&'Initial Conditions and Settings'!D$4,'Historical Data'!$B$2:$B$5860,Table1[[Country Code]:[Country Code]])),".") -> . | G22: =IFERROR(AVERAGEIFS('Historical Data'!Q$2:Q$5860,'Historical Data'!$C$2:$C$5860,">="&'Initial Conditions and Settings'!E$3,'Historical Data'!$C$2:$C$5860,"<="&'Initial Conditions and Settings'!E$4,'Historical Data'!$B$2:$B$5860,Table1[[Country Code]:[Country Code]]),".") -> . | H22: =IFERROR((AVERAGEIFS('Historical Data'!M$2:M$5860,'Historical Data'!$C$2:$C$5860,">="&'Initial Conditions and Settings'!F$3,'Historical Data'!$C$2:$C$5860,"<="&'Initial Conditions and Settings'!F$4,'Historical Data'!$B$2:$B$5860,Table1[[Country Code]:[Country Code]])),".") -> 11037956.73 | I22: =IFERROR(Table1[[#This Row],[Capital (2010 US dollars, thousands)]]/Table1[[#This Row],[GDP (2010 US dollars, thousands)]],".") -> . | J22: =IFERROR(INDEX('Historical Data'!Z$2:Z$5860, MATCH(Table1[[#This Row],[Country Code]],'Historical Data'!B$2:B$5860,0))*Table1[[#This Row],[Employment (thousands)]]/Table1[[#This Row],[Labor Force (thousands)]]+natump,".") -> 0.4455089413 | K22: =IFERROR((1-Table1[[#This Row],[Formal Employment % of Labor Force2]])*(AVERAGEIFS('Historical Data'!W$2:W$5860,'Historical Data'!$C$2:$C$5860,">="&'Initial Conditions and Settings'!F$3,'Historical Data'!$C$2:$C$5860,"<="&'Initial Conditions and Settings'!F$4,'Historical Data'!$B$2:$B$5860,Table1[[Country Code]:[Country Code]]))/((AVERAGEIFS('Historical Data'!W$2:W$5860,'Historical Data'!$C$2:$C$5860,">="&'Initial Conditions and Settings'!F$3,'Historical Data'!$C$2:$C$5860,"<="&'Initial Conditions and Settings'!F$4,'Historical Data'!$B$2:$B$5860,Table1[[Country Code]:[Country Code]]))+(AVERAGEIFS('Historical Data'!X$2:X$5860,'Historical Data'!$C$2:$C$5860,">="&'Initial Conditions and Settings'!F$3,'Historical Data'!$C$2:$C$5860,"<="&'Initial Conditions and Settings'!F$4,'Historical Data'!$B$2:$B$5860,Table1[[Country Code]:[Country Code]]))),".") -> 0.4123271257 | L22: =IFERROR((1-Table1[[#This Row],[Formal Employment % of Labor Force2]])*(AVERAGEIFS('Historical Data'!X$2:X$5860,'Historical Data'!$C$2:$C$5860,">="&'Initial Conditions and Settings'!F$3,'Historical Data'!$C$2:$C$5860,"<="&'Initial Conditions and Settings'!F$4,'Historical Data'!$B$2:$B$5860,Table1[[Country Code]:[Country Code]]))/((AVERAGEIFS('Historical Data'!W$2:W$5860,'Historical Data'!$C$2:$C$5860,">="&'Initial Conditions and Settings'!F$3,'Historical Data'!$C$2:$C$5860,"<="&'Initial Conditions and Settings'!F$4,'Historical Data'!$B$2:$B$5860,Table1[[Country Code]:[Country Code]]))+(AVERAGEIFS('Historical Data'!X$2:X$5860,'Historical Data'!$C$2:$C$5860,">="&'Initial Conditions and Settings'!F$3,'Historical Data'!$C$2:$C$5860,"<="&'Initial Conditions and Settings'!F$4,'Historical Data'!$B$2:$B$5860,Table1[[Country Code]:[Country Code]]))),".") -> 0.142163933 | M22: =IFERROR(INDEX('Historical Data'!Z$2:Z$5860, MATCH(Table1[[#This Row],[Country Code]],'Historical Data'!B$2:B$5860,0)),".") -> 0.4789999723 | N22: =IFERROR(INDEX('Historical Data'!W$2:W$5860, MATCH(Table1[[#This Row],[Country Code]],'Historical Data'!B$2:B$5860,0)),".") -> 0.3881663084 | O22: =IFERROR(INDEX('Historical Data'!X$2:X$5860, MATCH(Table1[[#This Row],[Country Code]],'Historical Data'!B$2:B$5860,0)),".") -> 0.1338336617 | P22: =IFERROR(Table1[[#This Row],[Formal Employment % of Labor Force2]]/(Table1[[#This Row],[Formal Employment % of Labor Force2]]+Table1[[#This Row],[Informal Employment (modern, type 2) % of Labor Force2]]),".") -> 0.7580900205 | Q22: =IFERROR(Table1[[#This Row],[Informal Employment (modern, type 2) % of Labor Force2]]/(Table1[[#This Row],[Formal Employment % of Labor Force2]]+Table1[[#This Row],[Informal Employment (modern, type 2) % of Labor Force2]]),".") -> 0.2419099795 | R22: =IFERROR((1/(miu))*(1-((1-pi)*Table1[[#This Row],[Li/L]])),".") -> 0.4712024269 | S22: =IFERROR(Table1[[#This Row],[bA/W]]*miu,".") -> 0.8518952706 | T22: =IFERROR(Table1[[#This Row],[Capital (2010 US dollars, thousands)]]/((Table1[[#This Row],[Formal Employment % of Labor Force2]]+Table1[[#This Row],[Informal Employment (modern, type 2) % of Labor Force2]])*Table1[[#This Row],[Labor Force (thousands)]]),".") -> . | U22: =IFERROR((((pi/psi)*Table1[[#This Row],[Li/L]]+Table1[[#This Row],[Lf/L]])/((1-capshare)^(1/(capshare))*Table1[[#This Row],[K/L]]))^(capshare),".") -> . | V22: =IFERROR(Table1[[#This Row],[GDP (2010 US dollars, thousands)]]*Table1[[#This Row],[A/W]]/(Table1[[#This Row],[Labor Force (thousands)]]*((1/(1-capshare))*(Table1[[#This Row],[Formal Employment % of Labor Force2]]+pi*Table1[[#This Row],[Informal Employment (modern, type 2) % of Labor Force2]])+(Table1[[#This Row],[Informal Employment (rudimentary, type 1) % of Labor Force2]]/miu)*(1-(1-pi)*Table1[[#This Row],[Li/L]]))),".") -> . | W22: =IFERROR(MAX(Table1[[#This Row],[A]]/Table1[[#This Row],[A/W]],0),".") -> . | X22: =IFERROR(MAX((1/(miu*Table1[[#This Row],[A/W]]))*(1-(1-pi)*Table1[[#This Row],[Li/L]]),0.001),".") -> . | Y22: =IFERROR(Table1[[#This Row],[Formal Employment % of Employment]]/(Table1[[#This Row],[Formal Employment % of Employment]]+Table1[Informal Employment (modern, type 2) % of Employment]),".") -> 0.7816150187 | Z22: =IFERROR(Table1[[#This Row],[Informal Employment (modern, type 2) % of Employment]]/(Table1[[#This Row],[Formal Employment % of Employment]]+Table1[[#This Row],[Informal Employment (modern, type 2) % of Employment]]),".") -> 0.2183849813 | AA22: =IFERROR((1/(miu))*(1-((1-pi)*Table1[[#This Row],[Li/L2]])),".") -> 0.4791688992 | AB22: =IFERROR(Table1[[#This Row],[bA/W2]]*miu,".") -> 0.866297998 | AC22: =IFERROR(Table1[[#This Row],[Capital (2010 US dollars, thousands)]]/((Table1[[#This Row],[Formal Employment % of Employment]]+Table1[[#This Row],[Informal Employment (modern, type 2) % of Employment]])*Table1[[#This Row],[Employment (thousands)]]),".") -> . | AD22: =IFERROR((((pi/psi)*Table1[[#This Row],[Li/L2]]+Table1[[#This Row],[Lf/L2]])/((1-capshare)^(1/(capshare))*Table1[[#This Row],[K/L2]]))^(capshare),".") -> . | AE22: =IFERROR(Table1[[#This Row],[GDP (2010 US dollars, thousands)]]*Table1[[#This Row],[A/W2]]/(Table1[[#This Row],[Employment (thousands)]]*((1/(1-capshare))*(Table1[[#This Row],[Formal Employment % of Employment]]+pi*Table1[[#This Row],[Informal Employment (modern, type 2) % of Employment]])+(Table1[[#This Row],[Informal Employment (rudimentary, type 1) % of Employment]]/miu)*(1-(1-pi)*Table1[[#This Row],[Li/L2]]))),".") -> . | AF22: =IFERROR(MAX(Table1[[#This Row],[A2]]/Table1[[#This Row],[A/W2]],0),".") -> . | AG22: =IFERROR(MAX((1/(miu*Table1[[#This Row],[A/W2]]))*(1-(1-pi)*Table1[[#This Row],[Li/L2]]),0.001),".") -> . | AH22: 0 | AI22: 0 | AJ22: 0 | AK22: 0 | AL22: 0 | AM22: =SUM(Table1[[#This Row],[OPEC members]]+Table1[[#This Row],[Questionable data]]+Table1[[#This Row],[Pension/GDP outliers]]+Table1[[#This Row],[K/GDP outliers]])+Table1[[#This Row],[GDP/TFP outlier]] -> 0 | AN22: 0 | AO22: 0 | AP22: =IFERROR(MAX(0,AVERAGEIFS('Historical Data'!R$2:R$5860,'Historical Data'!$C$2:$C$5860,">="&'Initial Conditions and Settings'!G$3,'Historical Data'!$C$2:$C$5860,"<="&'Initial Conditions and Settings'!G$4,'Historical Data'!$B$2:$B$5860,Table1[[Country Code]:[Country Code]])),".") -> . | AQ22: =IFERROR(MAX((((Table1[[#This Row],[A]]*((capshare)^(capshare))*((1-capshare)^(1-capshare)))^(1/(capshare)))*(Table1[[#This Row],[Minimum wage, W]]^(-(1-capshare)/(capshare))))-Table1[[#This Row],[Growth Rate of Capital]],0.01),".") -> . | AR22: =IFERROR(MAX((((Table1[[#This Row],[A2]]*((capshare)^(capshare))*((1-capshare)^(1-capshare)))^(1/(capshare)))*(Table1[[#This Row],[Minimum wage, W2]]^(-(1-capshare)/(capshare))))-Table1[[#This Row],[Growth Rate of Capital]],0.01),".") -> . | AS22: =IFERROR(AVERAGEIFS('Historical Data'!S$2:S$5860,'Historical Data'!$C$2:$C$5860,">="&'Initial Conditions and Settings'!H$3,'Historical Data'!$C$2:$C$5860,"<="&'Initial Conditions and Settings'!H$4,'Historical Data'!$B$2:$B$5860,Table1[[Country Code]:[Country Code]]),".") -> 0.005076404265
A23: . | B23: ABW | C23: Aruba | D23: =IFERROR(AVERAGEIFS('Historical Data'!E$2:E$5860,'Historical Data'!$C$2:$C$5860,">="&'Initial Conditions and Settings'!B$3,'Historical Data'!$C$2:$C$5860,"<="&'Initial Conditions and Settings'!B$4,'Historical Data'!$B$2:$B$5860,Table1[[Country Code]:[Country Code]]),".") -> . | E23: =IFERROR(AVERAGEIFS('Historical Data'!F$2:F$5860,'Historical Data'!$C$2:$C$5860,">="&'Initial Conditions and Settings'!C$3,'Historical Data'!$C$2:$C$5860,"<="&'Initial Conditions and Settings'!C$4,'Historical Data'!$B$2:$B$5860,Table1[[Country Code]:[Country Code]]),".") -> . | F23: =IFERROR((AVERAGEIFS('Historical Data'!I$2:I$5860,'Historical Data'!$C$2:$C$5860,">="&'Initial Conditions and Settings'!D$3,'Historical Data'!$C$2:$C$5860,"<="&'Initial Conditions and Settings'!D$4,'Historical Data'!$B$2:$B$5860,Table1[[Country Code]:[Country Code]])),".") -> 11104363 | G23: =IFERROR(AVERAGEIFS('Historical Data'!Q$2:Q$5860,'Historical Data'!$C$2:$C$5860,">="&'Initial Conditions and Settings'!E$3,'Historical Data'!$C$2:$C$5860,"<="&'Initial Conditions and Settings'!E$4,'Historical Data'!$B$2:$B$5860,Table1[[Country Code]:[Country Code]]),".") -> 0.03139651991 | H23: =IFERROR((AVERAGEIFS('Historical Data'!M$2:M$5860,'Historical Data'!$C$2:$C$5860,">="&'Initial Conditions and Settings'!F$3,'Historical Data'!$C$2:$C$5860,"<="&'Initial Conditions and Settings'!F$4,'Historical Data'!$B$2:$B$5860,Table1[[Country Code]:[Country Code]])),".") -> . | I23: =IFERROR(Table1[[#This Row],[Capital (2010 US dollars, thousands)]]/Table1[[#This Row],[GDP (2010 US dollars, thousands)]],".") -> . | J23: =IFERROR(INDEX('Historical Data'!Z$2:Z$5860, MATCH(Table1[[#This Row],[Country Code]],'Historical Data'!B$2:B$5860,0))*Table1[[#This Row],[Employment (thousands)]]/Table1[[#This Row],[Labor Force (thousands)]]+natump,".") -> . | K23: =IFERROR((1-Table1[[#This Row],[Formal Employment % of Labor Force2]])*(AVERAGEIFS('Historical Data'!W$2:W$5860,'Historical Data'!$C$2:$C$5860,">="&'Initial Conditions and Settings'!F$3,'Historical Data'!$C$2:$C$5860,"<="&'Initial Conditions and Settings'!F$4,'Historical Data'!$B$2:$B$5860,Table1[[Country Code]:[Country Code]]))/((AVERAGEIFS('Historical Data'!W$2:W$5860,'Historical Data'!$C$2:$C$5860,">="&'Initial Conditions and Settings'!F$3,'Historical Data'!$C$2:$C$5860,"<="&'Initial Conditions and Settings'!F$4,'Historical Data'!$B$2:$B$5860,Table1[[Country Code]:[Country Code]]))+(AVERAGEIFS('Historical Data'!X$2:X$5860,'Historical Data'!$C$2:$C$5860,">="&'Initial Conditions and Settings'!F$3,'Historical Data'!$C$2:$C$5860,"<="&'Initial Conditions and Settings'!F$4,'Historical Data'!$B$2:$B$5860,Table1[[Country Code]:[Country Code]]))),".") -> . | L23: =IFERROR((1-Table1[[#This Row],[Formal Employment % of Labor Force2]])*(AVERAGEIFS('Historical Data'!X$2:X$5860,'Historical Data'!$C$2:$C$5860,">="&'Initial Conditions and Settings'!F$3,'Historical Data'!$C$2:$C$5860,"<="&'Initial Conditions and Settings'!F$4,'Historical Data'!$B$2:$B$5860,Table1[[Country Code]:[Country Code]]))/((AVERAGEIFS('Historical Data'!W$2:W$5860,'Historical Data'!$C$2:$C$5860,">="&'Initial Conditions and Settings'!F$3,'Historical Data'!$C$2:$C$5860,"<="&'Initial Conditions and Settings'!F$4,'Historical Data'!$B$2:$B$5860,Table1[[Country Code]:[Country Code]]))+(AVERAGEIFS('Historical Data'!X$2:X$5860,'Historical Data'!$C$2:$C$5860,">="&'Initial Conditions and Settings'!F$3,'Historical Data'!$C$2:$C$5860,"<="&'Initial Conditions and Settings'!F$4,'Historical Data'!$B$2:$B$5860,Table1[[Country Code]:[Country Code]]))),".") -> . | M23: =IFERROR(INDEX('Historical Data'!Z$2:Z$5860, MATCH(Table1[[#This Row],[Country Code]],'Historical Data'!B$2:B$5860,0)),".") -> . | N23: =IFERROR(INDEX('Historical Data'!W$2:W$5860, MATCH(Table1[[#This Row],[Country Code]],'Historical Data'!B$2:B$5860,0)),".") -> . | O23: =IFERROR(INDEX('Historical Data'!X$2:X$5860, MATCH(Table1[[#This Row],[Country Code]],'Historical Data'!B$2:B$5860,0)),".") -> . | P23: =IFERROR(Table1[[#This Row],[Formal Employment % of Labor Force2]]/(Table1[[#This Row],[Formal Employment % of Labor Force2]]+Table1[[#This Row],[Informal Employment (modern, type 2) % of Labor Force2]]),".") -> . | Q23: =IFERROR(Table1[[#This Row],[Informal Employment (modern, type 2) % of Labor Force2]]/(Table1[[#This Row],[Formal Employment % of Labor Force2]]+Table1[[#This Row],[Informal Employment (modern, type 2) % of Labor Force2]]),".") -> . | R23: =IFERROR((1/(miu))*(1-((1-pi)*Table1[[#This Row],[Li/L]])),".") -> . | S23: =IFERROR(Table1[[#This Row],[bA/W]]*miu,".") -> . | T23: =IFERROR(Table1[[#This Row],[Capital (2010 US dollars, thousands)]]/((Table1[[#This Row],[Formal Employment % of Labor Force2]]+Table1[[#This Row],[Informal Employment (modern, type 2) % of Labor Force2]])*Table1[[#This Row],[Labor Force (thousands)]]),".") -> . | U23: =IFERROR((((pi/psi)*Table1[[#This Row],[Li/L]]+Table1[[#This Row],[Lf/L]])/((1-capshare)^(1/(capshare))*Table1[[#This Row],[K/L]]))^(capshare),".") -> . | V23: =IFERROR(Table1[[#This Row],[GDP (2010 US dollars, thousands)]]*Table1[[#This Row],[A/W]]/(Table1[[#This Row],[Labor Force (thousands)]]*((1/(1-capshare))*(Table1[[#This Row],[Formal Employment % of Labor Force2]]+pi*Table1[[#This Row],[Informal Employment (modern, type 2) % of Labor Force2]])+(Table1[[#This Row],[Informal Employment (rudimentary, type 1) % of Labor Force2]]/miu)*(1-(1-pi)*Table1[[#This Row],[Li/L]]))),".") -> . | W23: =IFERROR(MAX(Table1[[#This Row],[A]]/Table1[[#This Row],[A/W]],0),".") -> . | X23: =IFERROR(MAX((1/(miu*Table1[[#This Row],[A/W]]))*(1-(1-pi)*Table1[[#This Row],[Li/L]]),0.001),".") -> . | Y23: =IFERROR(Table1[[#This Row],[Formal Employment % of Employment]]/(Table1[[#This Row],[Formal Employment % of Employment]]+Table1[Informal Employment (modern, type 2) % of Employment]),".") -> . | Z23: =IFERROR(Table1[[#This Row],[Informal Employment (modern, type 2) % of Employment]]/(Table1[[#This Row],[Formal Employment % of Employment]]+Table1[[#This Row],[Informal Employment (modern, type 2) % of Employment]]),".") -> . | AA23: =IFERROR((1/(miu))*(1-((1-pi)*Table1[[#This Row],[Li/L2]])),".") -> . | AB23: =IFERROR(Table1[[#This Row],[bA/W2]]*miu,".") -> . | AC23: =IFERROR(Table1[[#This Row],[Capital (2010 US dollars, thousands)]]/((Table1[[#This Row],[Formal Employment % of Employment]]+Table1[[#This Row],[Informal Employment (modern, type 2) % of Employment]])*Table1[[#This Row],[Employment (thousands)]]),".") -> . | AD23: =IFERROR((((pi/psi)*Table1[[#This Row],[Li/L2]]+Table1[[#This Row],[Lf/L2]])/((1-capshare)^(1/(capshare))*Table1[[#This Row],[K/L2]]))^(capshare),".") -> . | AE23: =IFERROR(Table1[[#This Row],[GDP (2010 US dollars, thousands)]]*Table1[[#This Row],[A/W2]]/(Table1[[#This Row],[Employment (thousands)]]*((1/(1-capshare))*(Table1[[#This Row],[Formal Employment % of Employment]]+pi*Table1[[#This Row],[Informal Employment (modern, type 2) % of Employment]])+(Table1[[#This Row],[Informal Employment (rudimentary, type 1) % of Employment]]/miu)*(1-(1-pi)*Table1[[#This Row],[Li/L2]]))),".") -> . | AF23: =IFERROR(MAX(Table1[[#This Row],[A2]]/Table1[[#This Row],[A/W2]],0),".") -> . | AG23: =IFERROR(MAX((1/(miu*Table1[[#This Row],[A/W2]]))*(1-(1-pi)*Table1[[#This Row],[Li/L2]]),0.001),".") -> . | AH23: 0 | AI23: 0 | AJ23: 0 | AK23: 0 | AL23: 0 | AM23: =SUM(Table1[[#This Row],[OPEC members]]+Table1[[#This Row],[Questionable data]]+Table1[[#This Row],[Pension/GDP outliers]]+Table1[[#This Row],[K/GDP outliers]])+Table1[[#This Row],[GDP/TFP outlier]] -> 0 | AN23: 0 | AO23: 0 | AP23: =IFERROR(MAX(0,AVERAGEIFS('Historical Data'!R$2:R$5860,'Historical Data'!$C$2:$C$5860,">="&'Initial Conditions and Settings'!G$3,'Historical Data'!$C$2:$C$5860,"<="&'Initial Conditions and Settings'!G$4,'Historical Data'!$B$2:$B$5860,Table1[[Country Code]:[Country Code]])),".") -> . | AQ23: =IFERROR(MAX((((Table1[[#This Row],[A]]*((capshare)^(capshare))*((1-capshare)^(1-capshare)))^(1/(capshare)))*(Table1[[#This Row],[Minimum wage, W]]^(-(1-capshare)/(capshare))))-Table1[[#This Row],[Growth Rate of Capital]],0.01),".") -> . | AR23: =IFERROR(MAX((((Table1[[#This Row],[A2]]*((capshare)^(capshare))*((1-capshare)^(1-capshare)))^(1/(capshare)))*(Table1[[#This Row],[Minimum wage, W2]]^(-(1-capshare)/(capshare))))-Table1[[#This Row],[Growth Rate of Capital]],0.01),".") -> . | AS23: =IFERROR(AVERAGEIFS('Historical Data'!S$2:S$5860,'Historical Data'!$C$2:$C$5860,">="&'Initial Conditions and Settings'!H$3,'Historical Data'!$C$2:$C$5860,"<="&'Initial Conditions and Settings'!H$4,'Historical Data'!$B$2:$B$5860,Table1[[Country Code]:[Country Code]]),".") -> .
A24: OECD | B24: AUS | C24: Australia | D24: =IFERROR(AVERAGEIFS('Historical Data'!E$2:E$5860,'Historical Data'!$C$2:$C$5860,">="&'Initial Conditions and Settings'!B$3,'Historical Data'!$C$2:$C$5860,"<="&'Initial Conditions and Settings'!B$4,'Historical Data'!$B$2:$B$5860,Table1[[Country Code]:[Country Code]]),".") -> 12375.6 | E24: =IFERROR(AVERAGEIFS('Historical Data'!F$2:F$5860,'Historical Data'!$C$2:$C$5860,">="&'Initial Conditions and Settings'!C$3,'Historical Data'!$C$2:$C$5860,"<="&'Initial Conditions and Settings'!C$4,'Historical Data'!$B$2:$B$5860,Table1[[Country Code]:[Country Code]]),".") -> 11664.2 | F24: =IFERROR((AVERAGEIFS('Historical Data'!I$2:I$5860,'Historical Data'!$C$2:$C$5860,">="&'Initial Conditions and Settings'!D$3,'Historical Data'!$C$2:$C$5860,"<="&'Initial Conditions and Settings'!D$4,'Historical Data'!$B$2:$B$5860,Table1[[Country Code]:[Country Code]])),".") -> 4465235456 | G24: =IFERROR(AVERAGEIFS('Historical Data'!Q$2:Q$5860,'Historical Data'!$C$2:$C$5860,">="&'Initial Conditions and Settings'!E$3,'Historical Data'!$C$2:$C$5860,"<="&'Initial Conditions and Settings'!E$4,'Historical Data'!$B$2:$B$5860,Table1[[Country Code]:[Country Code]]),".") -> 0.04592604835 | H24: =IFERROR((AVERAGEIFS('Historical Data'!M$2:M$5860,'Historical Data'!$C$2:$C$5860,">="&'Initial Conditions and Settings'!F$3,'Historical Data'!$C$2:$C$5860,"<="&'Initial Conditions and Settings'!F$4,'Historical Data'!$B$2:$B$5860,Table1[[Country Code]:[Country Code]])),".") -> 1276506630 | I24: =IFERROR(Table1[[#This Row],[Capital (2010 US dollars, thousands)]]/Table1[[#This Row],[GDP (2010 US dollars, thousands)]],".") -> 3.498011957 | J24: =IFERROR(INDEX('Historical Data'!Z$2:Z$5860, MATCH(Table1[[#This Row],[Country Code]],'Historical Data'!B$2:B$5860,0))*Table1[[#This Row],[Employment (thousands)]]/Table1[[#This Row],[Labor Force (thousands)]]+natump,".") -> 0.8765756078 | K24: =IFERROR((1-Table1[[#This Row],[Formal Employment % of Labor Force2]])*(AVERAGEIFS('Historical Data'!W$2:W$5860,'Historical Data'!$C$2:$C$5860,">="&'Initial Conditions and Settings'!F$3,'Historical Data'!$C$2:$C$5860,"<="&'Initial Conditions and Settings'!F$4,'Historical Data'!$B$2:$B$5860,Table1[[Country Code]:[Country Code]]))/((AVERAGEIFS('Historical Data'!W$2:W$5860,'Historical Data'!$C$2:$C$5860,">="&'Initial Conditions and Settings'!F$3,'Historical Data'!$C$2:$C$5860,"<="&'Initial Conditions and Settings'!F$4,'Historical Data'!$B$2:$B$5860,Table1[[Country Code]:[Country Code]]))+(AVERAGEIFS('Historical Data'!X$2:X$5860,'Historical Data'!$C$2:$C$5860,">="&'Initial Conditions and Settings'!F$3,'Historical Data'!$C$2:$C$5860,"<="&'Initial Conditions and Settings'!F$4,'Historical Data'!$B$2:$B$5860,Table1[[Country Code]:[Country Code]]))),".") -> 0.06362248538 | L24: =IFERROR((1-Table1[[#This Row],[Formal Employment % of Labor Force2]])*(AVERAGEIFS('Historical Data'!X$2:X$5860,'Historical Data'!$C$2:$C$5860,">="&'Initial Conditions and Settings'!F$3,'Historical Data'!$C$2:$C$5860,"<="&'Initial Conditions and Settings'!F$4,'Historical Data'!$B$2:$B$5860,Table1[[Country Code]:[Country Code]]))/((AVERAGEIFS('Historical Data'!W$2:W$5860,'Historical Data'!$C$2:$C$5860,">="&'Initial Conditions and Settings'!F$3,'Historical Data'!$C$2:$C$5860,"<="&'Initial Conditions and Settings'!F$4,'Historical Data'!$B$2:$B$5860,Table1[[Country Code]:[Country Code]]))+(AVERAGEIFS('Historical Data'!X$2:X$5860,'Historical Data'!$C$2:$C$5860,">="&'Initial Conditions and Settings'!F$3,'Historical Data'!$C$2:$C$5860,"<="&'Initial Conditions and Settings'!F$4,'Historical Data'!$B$2:$B$5860,Table1[[Country Code]:[Country Code]]))),".") -> 0.05980190681 | M24: =IFERROR(INDEX('Historical Data'!Z$2:Z$5860, MATCH(Table1[[#This Row],[Country Code]],'Historical Data'!B$2:B$5860,0)),".") -> 0.8769884855 | N24: =IFERROR(INDEX('Historical Data'!W$2:W$5860, MATCH(Table1[[#This Row],[Country Code]],'Historical Data'!B$2:B$5860,0)),".") -> 0.06340965629 | O24: =IFERROR(INDEX('Historical Data'!X$2:X$5860, MATCH(Table1[[#This Row],[Country Code]],'Historical Data'!B$2:B$5860,0)),".") -> 0.05960185826 | P24: =IFERROR(Table1[[#This Row],[Formal Employment % of Labor Force2]]/(Table1[[#This Row],[Formal Employment % of Labor Force2]]+Table1[[#This Row],[Informal Employment (modern, type 2) % of Labor Force2]]),".") -> 0.9361348325 | Q24: =IFERROR(Table1[[#This Row],[Informal Employment (modern, type 2) % of Labor Force2]]/(Table1[[#This Row],[Formal Employment % of Labor Force2]]+Table1[[#This Row],[Informal Employment (modern, type 2) % of Labor Force2]]),".") -> 0.06386516749 | R24: =IFERROR((1/(miu))*(1-((1-pi)*Table1[[#This Row],[Li/L]])),".") -> 0.5314952718 | S24: =IFERROR(Table1[[#This Row],[bA/W]]*miu,".") -> 0.9608997803 | T24: =IFERROR(Table1[[#This Row],[Capital (2010 US dollars, thousands)]]/((Table1[[#This Row],[Formal Employment % of Labor Force2]]+Table1[[#This Row],[Informal Employment (modern, type 2) % of Labor Force2]])*Table1[[#This Row],[Labor Force (thousands)]]),".") -> 385324.9444 | U24: =IFERROR((((pi/psi)*Table1[[#This Row],[Li/L]]+Table1[[#This Row],[Lf/L]])/((1-capshare)^(1/(capshare))*Table1[[#This Row],[K/L]]))^(capshare),".") -> 0.003148909168 | V24: =IFERROR(Table1[[#This Row],[GDP (2010 US dollars, thousands)]]*Table1[[#This Row],[A/W]]/(Table1[[#This Row],[Labor Force (thousands)]]*((1/(1-capshare))*(Table1[[#This Row],[Formal Employment % of Labor Force2]]+pi*Table1[[#This Row],[Informal Employment (modern, type 2) % of Labor Force2]])+(Table1[[#This Row],[Informal Employment (rudimentary, type 1) % of Labor Force2]]/miu)*(1-(1-pi)*Table1[[#This Row],[Li/L]]))),".") -> 177.162891 | W24: =IFERROR(MAX(Table1[[#This Row],[A]]/Table1[[#This Row],[A/W]],0),".") -> 56261.67082 | X24: =IFERROR(MAX((1/(miu*Table1[[#This Row],[A/W]]))*(1-(1-pi)*Table1[[#This Row],[Li/L]]),0.001),".") -> 168.787108 | Y24: =IFERROR(Table1[[#This Row],[Formal Employment % of Employment]]/(Table1[[#This Row],[Formal Employment % of Employment]]+Table1[Informal Employment (modern, type 2) % of Employment]),".") -> 0.9363629375 | Z24: =IFERROR(Table1[[#This Row],[Informal Employment (modern, type 2) % of Employment]]/(Table1[[#This Row],[Formal Employment % of Employment]]+Table1[[#This Row],[Informal Employment (modern, type 2) % of Employment]]),".") -> 0.06363706252 | AA24: =IFERROR((1/(miu))*(1-((1-pi)*Table1[[#This Row],[Li/L2]])),".") -> 0.531572517 | AB24: =IFERROR(Table1[[#This Row],[bA/W2]]*miu,".") -> 0.9610394332 | AC24: =IFERROR(Table1[[#This Row],[Capital (2010 US dollars, thousands)]]/((Table1[[#This Row],[Formal Employment % of Employment]]+Table1[[#This Row],[Informal Employment (modern, type 2) % of Employment]])*Table1[[#This Row],[Employment (thousands)]]),".") -> 408733.0265 | AD24: =IFERROR((((pi/psi)*Table1[[#This Row],[Li/L2]]+Table1[[#This Row],[Lf/L2]])/((1-capshare)^(1/(capshare))*Table1[[#This Row],[K/L2]]))^(capshare),".") -> 0.003057667206 | AE24: =IFERROR(Table1[[#This Row],[GDP (2010 US dollars, thousands)]]*Table1[[#This Row],[A/W2]]/(Table1[[#This Row],[Employment (thousands)]]*((1/(1-capshare))*(Table1[[#This Row],[Formal Employment % of Employment]]+pi*Table1[[#This Row],[Informal Employment (modern, type 2) % of Employment]])+(Table1[[#This Row],[Informal Employment (rudimentary, type 1) % of Employment]]/miu)*(1-(1-pi)*Table1[[#This Row],[Li/L2]]))),".") -> 182.4655769 | AF24: =IFERROR(MAX(Table1[[#This Row],[A2]]/Table1[[#This Row],[A/W2]],0),".") -> 59674.76663 | AG24: =IFERROR(MAX((1/(miu*Table1[[#This Row],[A/W2]]))*(1-(1-pi)*Table1[[#This Row],[Li/L2]]),0.001),".") -> 173.8490428 | AH24: 0 | AI24: 0 | AJ24: 0 | AK24: 0 | AL24: 0 | AM24: =SUM(Table1[[#This Row],[OPEC members]]+Table1[[#This Row],[Questionable data]]+Table1[[#This Row],[Pension/GDP outliers]]+Table1[[#This Row],[K/GDP outliers]])+Table1[[#This Row],[GDP/TFP outlier]] -> 0 | AN24: 0 | AO24: 0 | AP24: =IFERROR(MAX(0,AVERAGEIFS('Historical Data'!R$2:R$5860,'Historical Data'!$C$2:$C$5860,">="&'Initial Conditions and Settings'!G$3,'Historical Data'!$C$2:$C$5860,"<="&'Initial Conditions and Settings'!G$4,'Historical Data'!$B$2:$B$5860,Table1[[Country Code]:[Country Code]])),".") -> 0 | AQ24: =IFERROR(MAX((((Table1[[#This Row],[A]]*((capshare)^(capshare))*((1-capshare)^(1-capshare)))^(1/(capshare)))*(Table1[[#This Row],[Minimum wage, W]]^(-(1-capshare)/(capshare))))-Table1[[#This Row],[Growth Rate of Capital]],0.01),".") -> 0.09354141457 | AR24: =IFERROR(MAX((((Table1[[#This Row],[A2]]*((capshare)^(capshare))*((1-capshare)^(1-capshare)))^(1/(capshare)))*(Table1[[#This Row],[Minimum wage, W2]]^(-(1-capshare)/(capshare))))-Table1[[#This Row],[Growth Rate of Capital]],0.01),".") -> 0.09355370434 | AS24: =IFERROR(AVERAGEIFS('Historical Data'!S$2:S$5860,'Historical Data'!$C$2:$C$5860,">="&'Initial Conditions and Settings'!H$3,'Historical Data'!$C$2:$C$5860,"<="&'Initial Conditions and Settings'!H$4,'Historical Data'!$B$2:$B$5860,Table1[[Country Code]:[Country Code]]),".") -> 0.01777332516
A25: OECD | B25: AUT | C25: Austria | D25: =IFERROR(AVERAGEIFS('Historical Data'!E$2:E$5860,'Historical Data'!$C$2:$C$5860,">="&'Initial Conditions and Settings'!B$3,'Historical Data'!$C$2:$C$5860,"<="&'Initial Conditions and Settings'!B$4,'Historical Data'!$B$2:$B$5860,Table1[[Country Code]:[Country Code]]),".") -> 4460 | E25: =IFERROR(AVERAGEIFS('Historical Data'!F$2:F$5860,'Historical Data'!$C$2:$C$5860,">="&'Initial Conditions and Settings'!C$3,'Historical Data'!$C$2:$C$5860,"<="&'Initial Conditions and Settings'!C$4,'Historical Data'!$B$2:$B$5860,Table1[[Country Code]:[Country Code]]),".") -> 4214 | F25: =IFERROR((AVERAGEIFS('Historical Data'!I$2:I$5860,'Historical Data'!$C$2:$C$5860,">="&'Initial Conditions and Settings'!D$3,'Historical Data'!$C$2:$C$5860,"<="&'Initial Conditions and Settings'!D$4,'Historical Data'!$B$2:$B$5860,Table1[[Country Code]:[Country Code]])),".") -> 1744839142 | G25: =IFERROR(AVERAGEIFS('Historical Data'!Q$2:Q$5860,'Historical Data'!$C$2:$C$5860,">="&'Initial Conditions and Settings'!E$3,'Historical Data'!$C$2:$C$5860,"<="&'Initial Conditions and Settings'!E$4,'Historical Data'!$B$2:$B$5860,Table1[[Country Code]:[Country Code]]),".") -> 0.02060188447 | H25: =IFERROR((AVERAGEIFS('Historical Data'!M$2:M$5860,'Historical Data'!$C$2:$C$5860,">="&'Initial Conditions and Settings'!F$3,'Historical Data'!$C$2:$C$5860,"<="&'Initial Conditions and Settings'!F$4,'Historical Data'!$B$2:$B$5860,Table1[[Country Code]:[Country Code]])),".") -> 408914721.2 | I25: =IFERROR(Table1[[#This Row],[Capital (2010 US dollars, thousands)]]/Table1[[#This Row],[GDP (2010 US dollars, thousands)]],".") -> 4.267000067 | J25: =IFERROR(INDEX('Historical Data'!Z$2:Z$5860, MATCH(Table1[[#This Row],[Country Code]],'Historical Data'!B$2:B$5860,0))*Table1[[#This Row],[Employment (thousands)]]/Table1[[#This Row],[Labor Force (thousands)]]+natump,".") -> 0.900358743 | K25: =IFERROR((1-Table1[[#This Row],[Formal Employment % of Labor Force2]])*(AVERAGEIFS('Historical Data'!W$2:W$5860,'Historical Data'!$C$2:$C$5860,">="&'Initial Conditions and Settings'!F$3,'Historical Data'!$C$2:$C$5860,"<="&'Initial Conditions and Settings'!F$4,'Historical Data'!$B$2:$B$5860,Table1[[Country Code]:[Country Code]]))/((AVERAGEIFS('Historical Data'!W$2:W$5860,'Historical Data'!$C$2:$C$5860,">="&'Initial Conditions and Settings'!F$3,'Historical Data'!$C$2:$C$5860,"<="&'Initial Conditions and Settings'!F$4,'Historical Data'!$B$2:$B$5860,Table1[[Country Code]:[Country Code]]))+(AVERAGEIFS('Historical Data'!X$2:X$5860,'Historical Data'!$C$2:$C$5860,">="&'Initial Conditions and Settings'!F$3,'Historical Data'!$C$2:$C$5860,"<="&'Initial Conditions and Settings'!F$4,'Historical Data'!$B$2:$B$5860,Table1[[Country Code]:[Country Code]]))),".") -> 0.04139272428 | L25: =IFERROR((1-Table1[[#This Row],[Formal Employment % of Labor Force2]])*(AVERAGEIFS('Historical Data'!X$2:X$5860,'Historical Data'!$C$2:$C$5860,">="&'Initial Conditions and Settings'!F$3,'Historical Data'!$C$2:$C$5860,"<="&'Initial Conditions and Settings'!F$4,'Historical Data'!$B$2:$B$5860,Table1[[Country Code]:[Country Code]]))/((AVERAGEIFS('Historical Data'!W$2:W$5860,'Historical Data'!$C$2:$C$5860,">="&'Initial Conditions and Settings'!F$3,'Historical Data'!$C$2:$C$5860,"<="&'Initial Conditions and Settings'!F$4,'Historical Data'!$B$2:$B$5860,Table1[[Country Code]:[Country Code]]))+(AVERAGEIFS('Historical Data'!X$2:X$5860,'Historical Data'!$C$2:$C$5860,">="&'Initial Conditions and Settings'!F$3,'Historical Data'!$C$2:$C$5860,"<="&'Initial Conditions and Settings'!F$4,'Historical Data'!$B$2:$B$5860,Table1[[Country Code]:[Country Code]]))),".") -> 0.05824853273 | M25: =IFERROR(INDEX('Historical Data'!Z$2:Z$5860, MATCH(Table1[[#This Row],[Country Code]],'Historical Data'!B$2:B$5860,0)),".") -> 0.8999999985 | N25: =IFERROR(INDEX('Historical Data'!W$2:W$5860, MATCH(Table1[[#This Row],[Country Code]],'Historical Data'!B$2:B$5860,0)),".") -> 0.04154175147 | O25: =IFERROR(INDEX('Historical Data'!X$2:X$5860, MATCH(Table1[[#This Row],[Country Code]],'Historical Data'!B$2:B$5860,0)),".") -> 0.05845824629 | P25: =IFERROR(Table1[[#This Row],[Formal Employment % of Labor Force2]]/(Table1[[#This Row],[Formal Employment % of Labor Force2]]+Table1[[#This Row],[Informal Employment (modern, type 2) % of Labor Force2]]),".") -> 0.9392362918 | Q25: =IFERROR(Table1[[#This Row],[Informal Employment (modern, type 2) % of Labor Force2]]/(Table1[[#This Row],[Formal Employment % of Labor Force2]]+Table1[[#This Row],[Informal Employment (modern, type 2) % of Labor Force2]]),".") -> 0.06076370815 | R25: =IFERROR((1/(miu))*(1-((1-pi)*Table1[[#This Row],[Li/L]])),".") -> 0.5325455457 | S25: =IFERROR(Table1[[#This Row],[bA/W]]*miu,".") -> 0.9627985891 | T25: =IFERROR(Table1[[#This Row],[Capital (2010 US dollars, thousands)]]/((Table1[[#This Row],[Formal Employment % of Labor Force2]]+Table1[[#This Row],[Informal Employment (modern, type 2) % of Labor Force2]])*Table1[[#This Row],[Labor Force (thousands)]]),".") -> 408112.4237 | U25: =IFERROR((((pi/psi)*Table1[[#This Row],[Li/L]]+Table1[[#This Row],[Lf/L]])/((1-capshare)^(1/(capshare))*Table1[[#This Row],[K/L]]))^(capshare),".") -> 0.003063218559 | V25: =IFERROR(Table1[[#This Row],[GDP (2010 US dollars, thousands)]]*Table1[[#This Row],[A/W]]/(Table1[[#This Row],[Labor Force (thousands)]]*((1/(1-capshare))*(Table1[[#This Row],[Formal Employment % of Labor Force2]]+pi*Table1[[#This Row],[Informal Employment (modern, type 2) % of Labor Force2]])+(Table1[[#This Row],[Informal Employment (rudimentary, type 1) % of Labor Force2]]/miu)*(1-(1-pi)*Table1[[#This Row],[Li/L]]))),".") -> 150.3536991 | W25: =IFERROR(MAX(Table1[[#This Row],[A]]/Table1[[#This Row],[A/W]],0),".") -> 49083.56888 | X25: =IFERROR(MAX((1/(miu*Table1[[#This Row],[A/W]]))*(1-(1-pi)*Table1[[#This Row],[Li/L]]),0.001),".") -> 173.851632 | Y25: =IFERROR(Table1[[#This Row],[Formal Employment % of Employment]]/(Table1[[#This Row],[Formal Employment % of Employment]]+Table1[Informal Employment (modern, type 2) % of Employment]),".") -> 0.9390080407 | Z25: =IFERROR(Table1[[#This Row],[Informal Employment (modern, type 2) % of Employment]]/(Table1[[#This Row],[Formal Employment % of Employment]]+Table1[[#This Row],[Informal Employment (modern, type 2) % of Employment]]),".") -> 0.06099195933 | AA25: =IFERROR((1/(miu))*(1-((1-pi)*Table1[[#This Row],[Li/L2]])),".") -> 0.532468251 | AB25: =IFERROR(Table1[[#This Row],[bA/W2]]*miu,".") -> 0.9626588467 | AC25: =IFERROR(Table1[[#This Row],[Capital (2010 US dollars, thousands)]]/((Table1[[#This Row],[Formal Employment % of Employment]]+Table1[[#This Row],[Informal Employment (modern, type 2) % of Employment]])*Table1[[#This Row],[Employment (thousands)]]),".") -> 432003.8989 | AD25: =IFERROR((((pi/psi)*Table1[[#This Row],[Li/L2]]+Table1[[#This Row],[Lf/L2]])/((1-capshare)^(1/(capshare))*Table1[[#This Row],[K/L2]]))^(capshare),".") -> 0.002977060958 | AE25: =IFERROR(Table1[[#This Row],[GDP (2010 US dollars, thousands)]]*Table1[[#This Row],[A/W2]]/(Table1[[#This Row],[Employment (thousands)]]*((1/(1-capshare))*(Table1[[#This Row],[Formal Employment % of Employment]]+pi*Table1[[#This Row],[Informal Employment (modern, type 2) % of Employment]])+(Table1[[#This Row],[Informal Employment (rudimentary, type 1) % of Employment]]/miu)*(1-(1-pi)*Table1[[#This Row],[Li/L2]]))),".") -> 154.6947227 | AF25: =IFERROR(MAX(Table1[[#This Row],[A2]]/Table1[[#This Row],[A/W2]],0),".") -> 51962.22883 | AG25: =IFERROR(MAX((1/(miu*Table1[[#This Row],[A/W2]]))*(1-(1-pi)*Table1[[#This Row],[Li/L2]]),0.001),".") -> 178.8570199 | AH25: 0 | AI25: 0 | AJ25: 0 | AK25: 0 | AL25: 0 | AM25: =SUM(Table1[[#This Row],[OPEC members]]+Table1[[#This Row],[Questionable data]]+Table1[[#This Row],[Pension/GDP outliers]]+Table1[[#This Row],[K/GDP outliers]])+Table1[[#This Row],[GDP/TFP outlier]] -> 0 | AN25: 0 | AO25: 0 | AP25: =IFERROR(MAX(0,AVERAGEIFS('Historical Data'!R$2:R$5860,'Historical Data'!$C$2:$C$5860,">="&'Initial Conditions and Settings'!G$3,'Historical Data'!$C$2:$C$5860,"<="&'Initial Conditions and Settings'!G$4,'Historical Data'!$B$2:$B$5860,Table1[[Country Code]:[Country Code]])),".") -> 0.0005584324107 | AQ25: =IFERROR(MAX((((Table1[[#This Row],[A]]*((capshare)^(capshare))*((1-capshare)^(1-capshare)))^(1/(capshare)))*(Table1[[#This Row],[Minimum wage, W]]^(-(1-capshare)/(capshare))))-Table1[[#This Row],[Growth Rate of Capital]],0.01),".") -> 0.09453967594 | AR25: =IFERROR(MAX((((Table1[[#This Row],[A2]]*((capshare)^(capshare))*((1-capshare)^(1-capshare)))^(1/(capshare)))*(Table1[[#This Row],[Minimum wage, W2]]^(-(1-capshare)/(capshare))))-Table1[[#This Row],[Growth Rate of Capital]],0.01),".") -> 0.09453202036 | AS25: =IFERROR(AVERAGEIFS('Historical Data'!S$2:S$5860,'Historical Data'!$C$2:$C$5860,">="&'Initial Conditions and Settings'!H$3,'Historical Data'!$C$2:$C$5860,"<="&'Initial Conditions and Settings'!H$4,'Historical Data'!$B$2:$B$5860,Table1[[Country Code]:[Country Code]]),".") -> 0.008448724657
A26: ECA | B26: AZE | C26: Azerbaijan | D26: =IFERROR(AVERAGEIFS('Historical Data'!E$2:E$5860,'Historical Data'!$C$2:$C$5860,">="&'Initial Conditions and Settings'!B$3,'Historical Data'!$C$2:$C$5860,"<="&'Initial Conditions and Settings'!B$4,'Historical Data'!$B$2:$B$5860,Table1[[Country Code]:[Country Code]]),".") -> 4775 | E26: =IFERROR(AVERAGEIFS('Historical Data'!F$2:F$5860,'Historical Data'!$C$2:$C$5860,">="&'Initial Conditions and Settings'!C$3,'Historical Data'!$C$2:$C$5860,"<="&'Initial Conditions and Settings'!C$4,'Historical Data'!$B$2:$B$5860,Table1[[Country Code]:[Country Code]]),".") -> 4536.2 | F26: =IFERROR((AVERAGEIFS('Historical Data'!I$2:I$5860,'Historical Data'!$C$2:$C$5860,">="&'Initial Conditions and Settings'!D$3,'Historical Data'!$C$2:$C$5860,"<="&'Initial Conditions and Settings'!D$4,'Historical Data'!$B$2:$B$5860,Table1[[Country Code]:[Country Code]])),".") -> . | G26: =IFERROR(AVERAGEIFS('Historical Data'!Q$2:Q$5860,'Historical Data'!$C$2:$C$5860,">="&'Initial Conditions and Settings'!E$3,'Historical Data'!$C$2:$C$5860,"<="&'Initial Conditions and Settings'!E$4,'Historical Data'!$B$2:$B$5860,Table1[[Country Code]:[Country Code]]),".") -> . | H26: =IFERROR((AVERAGEIFS('Historical Data'!M$2:M$5860,'Historical Data'!$C$2:$C$5860,">="&'Initial Conditions and Settings'!F$3,'Historical Data'!$C$2:$C$5860,"<="&'Initial Conditions and Settings'!F$4,'Historical Data'!$B$2:$B$5860,Table1[[Country Code]:[Country Code]])),".") -> 57188898.45 | I26: =IFERROR(Table1[[#This Row],[Capital (2010 US dollars, thousands)]]/Table1[[#This Row],[GDP (2010 US dollars, thousands)]],".") -> . | J26: =IFERROR(INDEX('Historical Data'!Z$2:Z$5860, MATCH(Table1[[#This Row],[Country Code]],'Historical Data'!B$2:B$5860,0))*Table1[[#This Row],[Employment (thousands)]]/Table1[[#This Row],[Labor Force (thousands)]]+natump,".") -> 0.4525065193 | K26: =IFERROR((1-Table1[[#This Row],[Formal Employment % of Labor Force2]])*(AVERAGEIFS('Historical Data'!W$2:W$5860,'Historical Data'!$C$2:$C$5860,">="&'Initial Conditions and Settings'!F$3,'Historical Data'!$C$2:$C$5860,"<="&'Initial Conditions and Settings'!F$4,'Historical Data'!$B$2:$B$5860,Table1[[Country Code]:[Country Code]]))/((AVERAGEIFS('Historical Data'!W$2:W$5860,'Historical Data'!$C$2:$C$5860,">="&'Initial Conditions and Settings'!F$3,'Historical Data'!$C$2:$C$5860,"<="&'Initial Conditions and Settings'!F$4,'Historical Data'!$B$2:$B$5860,Table1[[Country Code]:[Country Code]]))+(AVERAGEIFS('Historical Data'!X$2:X$5860,'Historical Data'!$C$2:$C$5860,">="&'Initial Conditions and Settings'!F$3,'Historical Data'!$C$2:$C$5860,"<="&'Initial Conditions and Settings'!F$4,'Historical Data'!$B$2:$B$5860,Table1[[Country Code]:[Country Code]]))),".") -> 0.4344087994 | L26: =IFERROR((1-Table1[[#This Row],[Formal Employment % of Labor Force2]])*(AVERAGEIFS('Historical Data'!X$2:X$5860,'Historical Data'!$C$2:$C$5860,">="&'Initial Conditions and Settings'!F$3,'Historical Data'!$C$2:$C$5860,"<="&'Initial Conditions and Settings'!F$4,'Historical Data'!$B$2:$B$5860,Table1[[Country Code]:[Country Code]]))/((AVERAGEIFS('Historical Data'!W$2:W$5860,'Historical Data'!$C$2:$C$5860,">="&'Initial Conditions and Settings'!F$3,'Historical Data'!$C$2:$C$5860,"<="&'Initial Conditions and Settings'!F$4,'Historical Data'!$B$2:$B$5860,Table1[[Country Code]:[Country Code]]))+(AVERAGEIFS('Historical Data'!X$2:X$5860,'Historical Data'!$C$2:$C$5860,">="&'Initial Conditions and Settings'!F$3,'Historical Data'!$C$2:$C$5860,"<="&'Initial Conditions and Settings'!F$4,'Historical Data'!$B$2:$B$5860,Table1[[Country Code]:[Country Code]]))),".") -> 0.1130846813 | M26: =IFERROR(INDEX('Historical Data'!Z$2:Z$5860, MATCH(Table1[[#This Row],[Country Code]],'Historical Data'!B$2:B$5860,0)),".") -> 0.4236957431 | N26: =IFERROR(INDEX('Historical Data'!W$2:W$5860, MATCH(Table1[[#This Row],[Country Code]],'Historical Data'!B$2:B$5860,0)),".") -> 0.4572687149 | O26: =IFERROR(INDEX('Historical Data'!X$2:X$5860, MATCH(Table1[[#This Row],[Country Code]],'Historical Data'!B$2:B$5860,0)),".") -> 0.119035542 | P26: =IFERROR(Table1[[#This Row],[Formal Employment % of Labor Force2]]/(Table1[[#This Row],[Formal Employment % of Labor Force2]]+Table1[[#This Row],[Informal Employment (modern, type 2) % of Labor Force2]]),".") -> 0.8000593341 | Q26: =IFERROR(Table1[[#This Row],[Informal Employment (modern, type 2) % of Labor Force2]]/(Table1[[#This Row],[Formal Employment % of Labor Force2]]+Table1[[#This Row],[Informal Employment (modern, type 2) % of Labor Force2]]),".") -> 0.1999406659 | R26: =IFERROR((1/(miu))*(1-((1-pi)*Table1[[#This Row],[Li/L]])),".") -> 0.4854148562 | S26: =IFERROR(Table1[[#This Row],[bA/W]]*miu,".") -> 0.8775901751 | T26: =IFERROR(Table1[[#This Row],[Capital (2010 US dollars, thousands)]]/((Table1[[#This Row],[Formal Employment % of Labor Force2]]+Table1[[#This Row],[Informal Employment (modern, type 2) % of Labor Force2]])*Table1[[#This Row],[Labor Force (thousands)]]),".") -> . | U26: =IFERROR((((pi/psi)*Table1[[#This Row],[Li/L]]+Table1[[#This Row],[Lf/L]])/((1-capshare)^(1/(capshare))*Table1[[#This Row],[K/L]]))^(capshare),".") -> . | V26: =IFERROR(Table1[[#This Row],[GDP (2010 US dollars, thousands)]]*Table1[[#This Row],[A/W]]/(Table1[[#This Row],[Labor Force (thousands)]]*((1/(1-capshare))*(Table1[[#This Row],[Formal Employment % of Labor Force2]]+pi*Table1[[#This Row],[Informal Employment (modern, type 2) % of Labor Force2]])+(Table1[[#This Row],[Informal Employment (rudimentary, type 1) % of Labor Force2]]/miu)*(1-(1-pi)*Table1[[#This Row],[Li/L]]))),".") -> . | W26: =IFERROR(MAX(Table1[[#This Row],[A]]/Table1[[#This Row],[A/W]],0),".") -> . | X26: =IFERROR(MAX((1/(miu*Table1[[#This Row],[A/W]]))*(1-(1-pi)*Table1[[#This Row],[Li/L]]),0.001),".") -> . | Y26: =IFERROR(Table1[[#This Row],[Formal Employment % of Employment]]/(Table1[[#This Row],[Formal Employment % of Employment]]+Table1[Informal Employment (modern, type 2) % of Employment]),".") -> 0.7806731521 | Z26: =IFERROR(Table1[[#This Row],[Informal Employment (modern, type 2) % of Employment]]/(Table1[[#This Row],[Formal Employment % of Employment]]+Table1[[#This Row],[Informal Employment (modern, type 2) % of Employment]]),".") -> 0.2193268479 | AA26: =IFERROR((1/(miu))*(1-((1-pi)*Table1[[#This Row],[Li/L2]])),".") -> 0.4788499468 | AB26: =IFERROR(Table1[[#This Row],[bA/W2]]*miu,".") -> 0.8657213583 | AC26: =IFERROR(Table1[[#This Row],[Capital (2010 US dollars, thousands)]]/((Table1[[#This Row],[Formal Employment % of Employment]]+Table1[[#This Row],[Informal Employment (modern, type 2) % of Employment]])*Table1[[#This Row],[Employment (thousands)]]),".") -> . | AD26: =IFERROR((((pi/psi)*Table1[[#This Row],[Li/L2]]+Table1[[#This Row],[Lf/L2]])/((1-capshare)^(1/(capshare))*Table1[[#This Row],[K/L2]]))^(capshare),".") -> . | AE26: =IFERROR(Table1[[#This Row],[GDP (2010 US dollars, thousands)]]*Table1[[#This Row],[A/W2]]/(Table1[[#This Row],[Employment (thousands)]]*((1/(1-capshare))*(Table1[[#This Row],[Formal Employment % of Employment]]+pi*Table1[[#This Row],[Informal Employment (modern, type 2) % of Employment]])+(Table1[[#This Row],[Informal Employment (rudimentary, type 1) % of Employment]]/miu)*(1-(1-pi)*Table1[[#This Row],[Li/L2]]))),".") -> . | AF26: =IFERROR(MAX(Table1[[#This Row],[A2]]/Table1[[#This Row],[A/W2]],0),".") -> . | AG26: =IFERROR(MAX((1/(miu*Table1[[#This Row],[A/W2]]))*(1-(1-pi)*Table1[[#This Row],[Li/L2]]),0.001),".") -> . | AH26: 0 | AI26: 0 | AJ26: 0 | AK26: 0 | AL26: 0 | AM26: =SUM(Table1[[#This Row],[OPEC members]]+Table1[[#This Row],[Questionable data]]+Table1[[#This Row],[Pension/GDP outliers]]+Table1[[#This Row],[K/GDP outliers]])+Table1[[#This Row],[GDP/TFP outlier]] -> 0 | AN26: 0 | AO26: 0 | AP26: =IFERROR(MAX(0,AVERAGEIFS('Historical Data'!R$2:R$5860,'Historical Data'!$C$2:$C$5860,">="&'Initial Conditions and Settings'!G$3,'Historical Data'!$C$2:$C$5860,"<="&'Initial Conditions and Settings'!G$4,'Historical Data'!$B$2:$B$5860,Table1[[Country Code]:[Country Code]])),".") -> . | AQ26: =IFERROR(MAX((((Table1[[#This Row],[A]]*((capshare)^(capshare))*((1-capshare)^(1-capshare)))^(1/(capshare)))*(Table1[[#This Row],[Minimum wage, W]]^(-(1-capshare)/(capshare))))-Table1[[#This Row],[Growth Rate of Capital]],0.01),".") -> . | AR26: =IFERROR(MAX((((Table1[[#This Row],[A2]]*((capshare)^(capshare))*((1-capshare)^(1-capshare)))^(1/(capshare)))*(Table1[[#This Row],[Minimum wage, W2]]^(-(1-capshare)/(capshare))))-Table1[[#This Row],[Growth Rate of Capital]],0.01),".") -> . | AS26: =IFERROR(AVERAGEIFS('Historical Data'!S$2:S$5860,'Historical Data'!$C$2:$C$5860,">="&'Initial Conditions and Settings'!H$3,'Historical Data'!$C$2:$C$5860,"<="&'Initial Conditions and Settings'!H$4,'Historical Data'!$B$2:$B$5860,Table1[[Country Code]:[Country Code]]),".") -> 0.0208960578
A27: . | B27: BHS | C27: Bahamas, The | D27: =IFERROR(AVERAGEIFS('Historical Data'!E$2:E$5860,'Historical Data'!$C$2:$C$5860,">="&'Initial Conditions and Settings'!B$3,'Historical Data'!$C$2:$C$5860,"<="&'Initial Conditions and Settings'!B$4,'Historical Data'!$B$2:$B$5860,Table1[[Country Code]:[Country Code]]),".") -> 228.4 | E27: =IFERROR(AVERAGEIFS('Historical Data'!F$2:F$5860,'Historical Data'!$C$2:$C$5860,">="&'Initial Conditions and Settings'!C$3,'Historical Data'!$C$2:$C$5860,"<="&'Initial Conditions and Settings'!C$4,'Historical Data'!$B$2:$B$5860,Table1[[Country Code]:[Country Code]]),".") -> 197.2 | F27: =IFERROR((AVERAGEIFS('Historical Data'!I$2:I$5860,'Historical Data'!$C$2:$C$5860,">="&'Initial Conditions and Settings'!D$3,'Historical Data'!$C$2:$C$5860,"<="&'Initial Conditions and Settings'!D$4,'Historical Data'!$B$2:$B$5860,Table1[[Country Code]:[Country Code]])),".") -> 32181553.6 | G27: =IFERROR(AVERAGEIFS('Historical Data'!Q$2:Q$5860,'Historical Data'!$C$2:$C$5860,">="&'Initial Conditions and Settings'!E$3,'Historical Data'!$C$2:$C$5860,"<="&'Initial Conditions and Settings'!E$4,'Historical Data'!$B$2:$B$5860,Table1[[Country Code]:[Country Code]]),".") -> 0.05115773156 | H27: =IFERROR((AVERAGEIFS('Historical Data'!M$2:M$5860,'Historical Data'!$C$2:$C$5860,">="&'Initial Conditions and Settings'!F$3,'Historical Data'!$C$2:$C$5860,"<="&'Initial Conditions and Settings'!F$4,'Historical Data'!$B$2:$B$5860,Table1[[Country Code]:[Country Code]])),".") -> . | I27: =IFERROR(Table1[[#This Row],[Capital (2010 US dollars, thousands)]]/Table1[[#This Row],[GDP (2010 US dollars, thousands)]],".") -> . | J27: =IFERROR(INDEX('Historical Data'!Z$2:Z$5860, MATCH(Table1[[#This Row],[Country Code]],'Historical Data'!B$2:B$5860,0))*Table1[[#This Row],[Employment (thousands)]]/Table1[[#This Row],[Labor Force (thousands)]]+natump,".") -> . | K27: =IFERROR((1-Table1[[#This Row],[Formal Employment % of Labor Force2]])*(AVERAGEIFS('Historical Data'!W$2:W$5860,'Historical Data'!$C$2:$C$5860,">="&'Initial Conditions and Settings'!F$3,'Historical Data'!$C$2:$C$5860,"<="&'Initial Conditions and Settings'!F$4,'Historical Data'!$B$2:$B$5860,Table1[[Country Code]:[Country Code]]))/((AVERAGEIFS('Historical Data'!W$2:W$5860,'Historical Data'!$C$2:$C$5860,">="&'Initial Conditions and Settings'!F$3,'Historical Data'!$C$2:$C$5860,"<="&'Initial Conditions and Settings'!F$4,'Historical Data'!$B$2:$B$5860,Table1[[Country Code]:[Country Code]]))+(AVERAGEIFS('Historical Data'!X$2:X$5860,'Historical Data'!$C$2:$C$5860,">="&'Initial Conditions and Settings'!F$3,'Historical Data'!$C$2:$C$5860,"<="&'Initial Conditions and Settings'!F$4,'Historical Data'!$B$2:$B$5860,Table1[[Country Code]:[Country Code]]))),".") -> . | L27: =IFERROR((1-Table1[[#This Row],[Formal Employment % of Labor Force2]])*(AVERAGEIFS('Historical Data'!X$2:X$5860,'Historical Data'!$C$2:$C$5860,">="&'Initial Conditions and Settings'!F$3,'Historical Data'!$C$2:$C$5860,"<="&'Initial Conditions and Settings'!F$4,'Historical Data'!$B$2:$B$5860,Table1[[Country Code]:[Country Code]]))/((AVERAGEIFS('Historical Data'!W$2:W$5860,'Historical Data'!$C$2:$C$5860,">="&'Initial Conditions and Settings'!F$3,'Historical Data'!$C$2:$C$5860,"<="&'Initial Conditions and Settings'!F$4,'Historical Data'!$B$2:$B$5860,Table1[[Country Code]:[Country Code]]))+(AVERAGEIFS('Historical Data'!X$2:X$5860,'Historical Data'!$C$2:$C$5860,">="&'Initial Conditions and Settings'!F$3,'Historical Data'!$C$2:$C$5860,"<="&'Initial Conditions and Settings'!F$4,'Historical Data'!$B$2:$B$5860,Table1[[Country Code]:[Country Code]]))),".") -> . | M27: =IFERROR(INDEX('Historical Data'!Z$2:Z$5860, MATCH(Table1[[#This Row],[Country Code]],'Historical Data'!B$2:B$5860,0)),".") -> . | N27: =IFERROR(INDEX('Historical Data'!W$2:W$5860, MATCH(Table1[[#This Row],[Country Code]],'Historical Data'!B$2:B$5860,0)),".") -> . | O27: =IFERROR(INDEX('Historical Data'!X$2:X$5860, MATCH(Table1[[#This Row],[Country Code]],'Historical Data'!B$2:B$5860,0)),".") -> . | P27: =IFERROR(Table1[[#This Row],[Formal Employment % of Labor Force2]]/(Table1[[#This Row],[Formal Employment % of Labor Force2]]+Table1[[#This Row],[Informal Employment (modern, type 2) % of Labor Force2]]),".") -> . | Q27: =IFERROR(Table1[[#This Row],[Informal Employment (modern, type 2) % of Labor Force2]]/(Table1[[#This Row],[Formal Employment % of Labor Force2]]+Table1[[#This Row],[Informal Employment (modern, type 2) % of Labor Force2]]),".") -> . | R27: =IFERROR((1/(miu))*(1-((1-pi)*Table1[[#This Row],[Li/L]])),".") -> . | S27: =IFERROR(Table1[[#This Row],[bA/W]]*miu,".") -> . | T27: =IFERROR(Table1[[#This Row],[Capital (2010 US dollars, thousands)]]/((Table1[[#This Row],[Formal Employment % of Labor Force2]]+Table1[[#This Row],[Informal Employment (modern, type 2) % of Labor Force2]])*Table1[[#This Row],[Labor Force (thousands)]]),".") -> . | U27: =IFERROR((((pi/psi)*Table1[[#This Row],[Li/L]]+Table1[[#This Row],[Lf/L]])/((1-capshare)^(1/(capshare))*Table1[[#This Row],[K/L]]))^(capshare),".") -> . | V27: =IFERROR(Table1[[#This Row],[GDP (2010 US dollars, thousands)]]*Table1[[#This Row],[A/W]]/(Table1[[#This Row],[Labor Force (thousands)]]*((1/(1-capshare))*(Table1[[#This Row],[Formal Employment % of Labor Force2]]+pi*Table1[[#This Row],[Informal Employment (modern, type 2) % of Labor Force2]])+(Table1[[#This Row],[Informal Employment (rudimentary, type 1) % of Labor Force2]]/miu)*(1-(1-pi)*Table1[[#This Row],[Li/L]]))),".") -> . | W27: =IFERROR(MAX(Table1[[#This Row],[A]]/Table1[[#This Row],[A/W]],0),".") -> . | X27: =IFERROR(MAX((1/(miu*Table1[[#This Row],[A/W]]))*(1-(1-pi)*Table1[[#This Row],[Li/L]]),0.001),".") -> . | Y27: =IFERROR(Table1[[#This Row],[Formal Employment % of Employment]]/(Table1[[#This Row],[Formal Employment % of Employment]]+Table1[Informal Employment (modern, type 2) % of Employment]),".") -> . | Z27: =IFERROR(Table1[[#This Row],[Informal Employment (modern, type 2) % of Employment]]/(Table1[[#This Row],[Formal Employment % of Employment]]+Table1[[#This Row],[Informal Employment (modern, type 2) % of Employment]]),".") -> . | AA27: =IFERROR((1/(miu))*(1-((1-pi)*Table1[[#This Row],[Li/L2]])),".") -> . | AB27: =IFERROR(Table1[[#This Row],[bA/W2]]*miu,".") -> . | AC27: =IFERROR(Table1[[#This Row],[Capital (2010 US dollars, thousands)]]/((Table1[[#This Row],[Formal Employment % of Employment]]+Table1[[#This Row],[Informal Employment (modern, type 2) % of Employment]])*Table1[[#This Row],[Employment (thousands)]]),".") -> . | AD27: =IFERROR((((pi/psi)*Table1[[#This Row],[Li/L2]]+Table1[[#This Row],[Lf/L2]])/((1-capshare)^(1/(capshare))*Table1[[#This Row],[K/L2]]))^(capshare),".") -> . | AE27: =IFERROR(Table1[[#This Row],[GDP (2010 US dollars, thousands)]]*Table1[[#This Row],[A/W2]]/(Table1[[#This Row],[Employment (thousands)]]*((1/(1-capshare))*(Table1[[#This Row],[Formal Employment % of Employment]]+pi*Table1[[#This Row],[Informal Employment (modern, type 2) % of Employment]])+(Table1[[#This Row],[Informal Employment (rudimentary, type 1) % of Employment]]/miu)*(1-(1-pi)*Table1[[#This Row],[Li/L2]]))),".") -> . | AF27: =IFERROR(MAX(Table1[[#This Row],[A2]]/Table1[[#This Row],[A/W2]],0),".") -> . | AG27: =IFERROR(MAX((1/(miu*Table1[[#This Row],[A/W2]]))*(1-(1-pi)*Table1[[#This Row],[Li/L2]]),0.001),".") -> . | AH27: 0 | AI27: 0 | AJ27: 0 | AK27: 0 | AL27: 0 | AM27: =SUM(Table1[[#This Row],[OPEC members]]+Table1[[#This Row],[Questionable data]]+Table1[[#This Row],[Pension/GDP outliers]]+Table1[[#This Row],[K/GDP outliers]])+Table1[[#This Row],[GDP/TFP outlier]] -> 0 | AN27: 0 | AO27: 0 | AP27: =IFERROR(MAX(0,AVERAGEIFS('Historical Data'!R$2:R$5860,'Historical Data'!$C$2:$C$5860,">="&'Initial Conditions and Settings'!G$3,'Historical Data'!$C$2:$C$5860,"<="&'Initial Conditions and Settings'!G$4,'Historical Data'!$B$2:$B$5860,Table1[[Country Code]:[Country Code]])),".") -> . | AQ27: =IFERROR(MAX((((Table1[[#This Row],[A]]*((capshare)^(capshare))*((1-capshare)^(1-capshare)))^(1/(capshare)))*(Table1[[#This Row],[Minimum wage, W]]^(-(1-capshare)/(capshare))))-Table1[[#This Row],[Growth Rate of Capital]],0.01),".") -> . | AR27: =IFERROR(MAX((((Table1[[#This Row],[A2]]*((capshare)^(capshare))*((1-capshare)^(1-capshare)))^(1/(capshare)))*(Table1[[#This Row],[Minimum wage, W2]]^(-(1-capshare)/(capshare))))-Table1[[#This Row],[Growth Rate of Capital]],0.01),".") -> . | AS27: =IFERROR(AVERAGEIFS('Historical Data'!S$2:S$5860,'Historical Data'!$C$2:$C$5860,">="&'Initial Conditions and Settings'!H$3,'Historical Data'!$C$2:$C$5860,"<="&'Initial Conditions and Settings'!H$4,'Historical Data'!$B$2:$B$5860,Table1[[Country Code]:[Country Code]]),".") -> 0.02448002337
A28: MENA | B28: BHR | C28: Bahrain | D28: =IFERROR(AVERAGEIFS('Historical Data'!E$2:E$5860,'Historical Data'!$C$2:$C$5860,">="&'Initial Conditions and Settings'!B$3,'Historical Data'!$C$2:$C$5860,"<="&'Initial Conditions and Settings'!B$4,'Historical Data'!$B$2:$B$5860,Table1[[Country Code]:[Country Code]]),".") -> 768.2 | E28: =IFERROR(AVERAGEIFS('Historical Data'!F$2:F$5860,'Historical Data'!$C$2:$C$5860,">="&'Initial Conditions and Settings'!C$3,'Historical Data'!$C$2:$C$5860,"<="&'Initial Conditions and Settings'!C$4,'Historical Data'!$B$2:$B$5860,Table1[[Country Code]:[Country Code]]),".") -> 758.6 | F28: =IFERROR((AVERAGEIFS('Historical Data'!I$2:I$5860,'Historical Data'!$C$2:$C$5860,">="&'Initial Conditions and Settings'!D$3,'Historical Data'!$C$2:$C$5860,"<="&'Initial Conditions and Settings'!D$4,'Historical Data'!$B$2:$B$5860,Table1[[Country Code]:[Country Code]])),".") -> 79061502 | G28: =IFERROR(AVERAGEIFS('Historical Data'!Q$2:Q$5860,'Historical Data'!$C$2:$C$5860,">="&'Initial Conditions and Settings'!E$3,'Historical Data'!$C$2:$C$5860,"<="&'Initial Conditions and Settings'!E$4,'Historical Data'!$B$2:$B$5860,Table1[[Country Code]:[Country Code]]),".") -> 0.04384165102 | H28: =IFERROR((AVERAGEIFS('Historical Data'!M$2:M$5860,'Historical Data'!$C$2:$C$5860,">="&'Initial Conditions and Settings'!F$3,'Historical Data'!$C$2:$C$5860,"<="&'Initial Conditions and Settings'!F$4,'Historical Data'!$B$2:$B$5860,Table1[[Country Code]:[Country Code]])),".") -> . | I28: =IFERROR(Table1[[#This Row],[Capital (2010 US dollars, thousands)]]/Table1[[#This Row],[GDP (2010 US dollars, thousands)]],".") -> . | J28: =IFERROR(INDEX('Historical Data'!Z$2:Z$5860, MATCH(Table1[[#This Row],[Country Code]],'Historical Data'!B$2:B$5860,0))*Table1[[#This Row],[Employment (thousands)]]/Table1[[#This Row],[Labor Force (thousands)]]+natump,".") -> 0.6682526005 | K28: =IFERROR((1-Table1[[#This Row],[Formal Employment % of Labor Force2]])*(AVERAGEIFS('Historical Data'!W$2:W$5860,'Historical Data'!$C$2:$C$5860,">="&'Initial Conditions and Settings'!F$3,'Historical Data'!$C$2:$C$5860,"<="&'Initial Conditions and Settings'!F$4,'Historical Data'!$B$2:$B$5860,Table1[[Country Code]:[Country Code]]))/((AVERAGEIFS('Historical Data'!W$2:W$5860,'Historical Data'!$C$2:$C$5860,">="&'Initial Conditions and Settings'!F$3,'Historical Data'!$C$2:$C$5860,"<="&'Initial Conditions and Settings'!F$4,'Historical Data'!$B$2:$B$5860,Table1[[Country Code]:[Country Code]]))+(AVERAGEIFS('Historical Data'!X$2:X$5860,'Historical Data'!$C$2:$C$5860,">="&'Initial Conditions and Settings'!F$3,'Historical Data'!$C$2:$C$5860,"<="&'Initial Conditions and Settings'!F$4,'Historical Data'!$B$2:$B$5860,Table1[[Country Code]:[Country Code]]))),".") -> 0.07748700869 | L28: =IFERROR((1-Table1[[#This Row],[Formal Employment % of Labor Force2]])*(AVERAGEIFS('Historical Data'!X$2:X$5860,'Historical Data'!$C$2:$C$5860,">="&'Initial Conditions and Settings'!F$3,'Historical Data'!$C$2:$C$5860,"<="&'Initial Conditions and Settings'!F$4,'Historical Data'!$B$2:$B$5860,Table1[[Country Code]:[Country Code]]))/((AVERAGEIFS('Historical Data'!W$2:W$5860,'Historical Data'!$C$2:$C$5860,">="&'Initial Conditions and Settings'!F$3,'Historical Data'!$C$2:$C$5860,"<="&'Initial Conditions and Settings'!F$4,'Historical Data'!$B$2:$B$5860,Table1[[Country Code]:[Country Code]]))+(AVERAGEIFS('Historical Data'!X$2:X$5860,'Historical Data'!$C$2:$C$5860,">="&'Initial Conditions and Settings'!F$3,'Historical Data'!$C$2:$C$5860,"<="&'Initial Conditions and Settings'!F$4,'Historical Data'!$B$2:$B$5860,Table1[[Country Code]:[Country Code]]))),".") -> 0.2542603908 | M28: =IFERROR(INDEX('Historical Data'!Z$2:Z$5860, MATCH(Table1[[#This Row],[Country Code]],'Historical Data'!B$2:B$5860,0)),".") -> 0.6260765195 | N28: =IFERROR(INDEX('Historical Data'!W$2:W$5860, MATCH(Table1[[#This Row],[Country Code]],'Historical Data'!B$2:B$5860,0)),".") -> 0.0873381719 | O28: =IFERROR(INDEX('Historical Data'!X$2:X$5860, MATCH(Table1[[#This Row],[Country Code]],'Historical Data'!B$2:B$5860,0)),".") -> 0.2865853012 | P28: =IFERROR(Table1[[#This Row],[Formal Employment % of Labor Force2]]/(Table1[[#This Row],[Formal Employment % of Labor Force2]]+Table1[[#This Row],[Informal Employment (modern, type 2) % of Labor Force2]]),".") -> 0.7243828616 | Q28: =IFERROR(Table1[[#This Row],[Informal Employment (modern, type 2) % of Labor Force2]]/(Table1[[#This Row],[Formal Employment % of Labor Force2]]+Table1[[#This Row],[Informal Employment (modern, type 2) % of Labor Force2]]),".") -> 0.2756171384 | R28: =IFERROR((1/(miu))*(1-((1-pi)*Table1[[#This Row],[Li/L]])),".") -> 0.4597878819 | S28: =IFERROR(Table1[[#This Row],[bA/W]]*miu,".") -> 0.8312587112 | T28: =IFERROR(Table1[[#This Row],[Capital (2010 US dollars, thousands)]]/((Table1[[#This Row],[Formal Employment % of Labor Force2]]+Table1[[#This Row],[Informal Employment (modern, type 2) % of Labor Force2]])*Table1[[#This Row],[Labor Force (thousands)]]),".") -> 111562.5075 | U28: =IFERROR((((pi/psi)*Table1[[#This Row],[Li/L]]+Table1[[#This Row],[Lf/L]])/((1-capshare)^(1/(capshare))*Table1[[#This Row],[K/L]]))^(capshare),".") -> 0.005377725621 | V28: =IFERROR(Table1[[#This Row],[GDP (2010 US dollars, thousands)]]*Table1[[#This Row],[A/W]]/(Table1[[#This Row],[Labor Force (thousands)]]*((1/(1-capshare))*(Table1[[#This Row],[Formal Employment % of Labor Force2]]+pi*Table1[[#This Row],[Informal Employment (modern, type 2) % of Labor Force2]])+(Table1[[#This Row],[Informal Employment (rudimentary, type 1) % of Labor Force2]]/miu)*(1-(1-pi)*Table1[[#This Row],[Li/L]]))),".") -> . | W28: =IFERROR(MAX(Table1[[#This Row],[A]]/Table1[[#This Row],[A/W]],0),".") -> . | X28: =IFERROR(MAX((1/(miu*Table1[[#This Row],[A/W]]))*(1-(1-pi)*Table1[[#This Row],[Li/L]]),0.001),".") -> 85.49857585 | Y28: =IFERROR(Table1[[#This Row],[Formal Employment % of Employment]]/(Table1[[#This Row],[Formal Employment % of Employment]]+Table1[Informal Employment (modern, type 2) % of Employment]),".") -> 0.6859896024 | Z28: =IFERROR(Table1[[#This Row],[Informal Employment (modern, type 2) % of Employment]]/(Table1[[#This Row],[Formal Employment % of Employment]]+Table1[[#This Row],[Informal Employment (modern, type 2) % of Employment]]),".") -> 0.3140103976 | AA28: =IFERROR((1/(miu))*(1-((1-pi)*Table1[[#This Row],[Li/L2]])),".") -> 0.4467864426 | AB28: =IFERROR(Table1[[#This Row],[bA/W2]]*miu,".") -> 0.8077531772 | AC28: =IFERROR(Table1[[#This Row],[Capital (2010 US dollars, thousands)]]/((Table1[[#This Row],[Formal Employment % of Employment]]+Table1[[#This Row],[Informal Employment (modern, type 2) % of Employment]])*Table1[[#This Row],[Employment (thousands)]]),".") -> 114193.7511 | AD28: =IFERROR((((pi/psi)*Table1[[#This Row],[Li/L2]]+Table1[[#This Row],[Lf/L2]])/((1-capshare)^(1/(capshare))*Table1[[#This Row],[K/L2]]))^(capshare),".") -> 0.005225883842 | AE28: =IFERROR(Table1[[#This Row],[GDP (2010 US dollars, thousands)]]*Table1[[#This Row],[A/W2]]/(Table1[[#This Row],[Employment (thousands)]]*((1/(1-capshare))*(Table1[[#This Row],[Formal Employment % of Employment]]+pi*Table1[[#This Row],[Informal Employment (modern, type 2) % of Employment]])+(Table1[[#This Row],[Informal Employment (rudimentary, type 1) % of Employment]]/miu)*(1-(1-pi)*Table1[[#This Row],[Li/L2]]))),".") -> . | AF28: =IFERROR(MAX(Table1[[#This Row],[A2]]/Table1[[#This Row],[A/W2]],0),".") -> . | AG28: =IFERROR(MAX((1/(miu*Table1[[#This Row],[A/W2]]))*(1-(1-pi)*Table1[[#This Row],[Li/L2]]),0.001),".") -> 85.494905 | AH28: 0 | AI28: 0 | AJ28: 0 | AK28: 0 | AL28: 0 | AM28: =SUM(Table1[[#This Row],[OPEC members]]+Table1[[#This Row],[Questionable data]]+Table1[[#This Row],[Pension/GDP outliers]]+Table1[[#This Row],[K/GDP outliers]])+Table1[[#This Row],[GDP/TFP outlier]] -> 0 | AN28: 0 | AO28: 0 | AP28: =IFERROR(MAX(0,AVERAGEIFS('Historical Data'!R$2:R$5860,'Historical Data'!$C$2:$C$5860,">="&'Initial Conditions and Settings'!G$3,'Historical Data'!$C$2:$C$5860,"<="&'Initial Conditions and Settings'!G$4,'Historical Data'!$B$2:$B$5860,Table1[[Country Code]:[Country Code]])),".") -> . | AQ28: =IFERROR(MAX((((Table1[[#This Row],[A]]*((capshare)^(capshare))*((1-capshare)^(1-capshare)))^(1/(capshare)))*(Table1[[#This Row],[Minimum wage, W]]^(-(1-capshare)/(capshare))))-Table1[[#This Row],[Growth Rate of Capital]],0.01),".") -> . | AR28: =IFERROR(MAX((((Table1[[#This Row],[A2]]*((capshare)^(capshare))*((1-capshare)^(1-capshare)))^(1/(capshare)))*(Table1[[#This Row],[Minimum wage, W2]]^(-(1-capshare)/(capshare))))-Table1[[#This Row],[Growth Rate of Capital]],0.01),".") -> . | AS28: =IFERROR(AVERAGEIFS('Historical Data'!S$2:S$5860,'Historical Data'!$C$2:$C$5860,">="&'Initial Conditions and Settings'!H$3,'Historical Data'!$C$2:$C$5860,"<="&'Initial Conditions and Settings'!H$4,'Historical Data'!$B$2:$B$5860,Table1[[Country Code]:[Country Code]]),".") -> 0.06065241693
A29: SA | B29: BGD | C29: Bangladesh | D29: =IFERROR(AVERAGEIFS('Historical Data'!E$2:E$5860,'Historical Data'!$C$2:$C$5860,">="&'Initial Conditions and Settings'!B$3,'Historical Data'!$C$2:$C$5860,"<="&'Initial Conditions and Settings'!B$4,'Historical Data'!$B$2:$B$5860,Table1[[Country Code]:[Country Code]]),".") -> 63208.8 | E29: =IFERROR(AVERAGEIFS('Historical Data'!F$2:F$5860,'Historical Data'!$C$2:$C$5860,">="&'Initial Conditions and Settings'!C$3,'Historical Data'!$C$2:$C$5860,"<="&'Initial Conditions and Settings'!C$4,'Historical Data'!$B$2:$B$5860,Table1[[Country Code]:[Country Code]]),".") -> 60482.4 | F29: =IFERROR((AVERAGEIFS('Historical Data'!I$2:I$5860,'Historical Data'!$C$2:$C$5860,">="&'Initial Conditions and Settings'!D$3,'Historical Data'!$C$2:$C$5860,"<="&'Initial Conditions and Settings'!D$4,'Historical Data'!$B$2:$B$5860,Table1[[Country Code]:[Country Code]])),".") -> 370497126.4 | G29: =IFERROR(AVERAGEIFS('Historical Data'!Q$2:Q$5860,'Historical Data'!$C$2:$C$5860,">="&'Initial Conditions and Settings'!E$3,'Historical Data'!$C$2:$C$5860,"<="&'Initial Conditions and Settings'!E$4,'Historical Data'!$B$2:$B$5860,Table1[[Country Code]:[Country Code]]),".") -> 0.07964219224 | H29: =IFERROR((AVERAGEIFS('Historical Data'!M$2:M$5860,'Historical Data'!$C$2:$C$5860,">="&'Initial Conditions and Settings'!F$3,'Historical Data'!$C$2:$C$5860,"<="&'Initial Conditions and Settings'!F$4,'Historical Data'!$B$2:$B$5860,Table1[[Country Code]:[Country Code]])),".") -> 148146027.3 | I29: =IFERROR(Table1[[#This Row],[Capital (2010 US dollars, thousands)]]/Table1[[#This Row],[GDP (2010 US dollars, thousands)]],".") -> 2.500891406 | J29: =IFERROR(INDEX('Historical Data'!Z$2:Z$5860, MATCH(Table1[[#This Row],[Country Code]],'Historical Data'!B$2:B$5860,0))*Table1[[#This Row],[Employment (thousands)]]/Table1[[#This Row],[Labor Force (thousands)]]+natump,".") -> 0.1552553579 | K29: =IFERROR((1-Table1[[#This Row],[Formal Employment % of Labor Force2]])*(AVERAGEIFS('Historical Data'!W$2:W$5860,'Historical Data'!$C$2:$C$5860,">="&'Initial Conditions and Settings'!F$3,'Historical Data'!$C$2:$C$5860,"<="&'Initial Conditions and Settings'!F$4,'Historical Data'!$B$2:$B$5860,Table1[[Country Code]:[Country Code]]))/((AVERAGEIFS('Historical Data'!W$2:W$5860,'Historical Data'!$C$2:$C$5860,">="&'Initial Conditions and Settings'!F$3,'Historical Data'!$C$2:$C$5860,"<="&'Initial Conditions and Settings'!F$4,'Historical Data'!$B$2:$B$5860,Table1[[Country Code]:[Country Code]]))+(AVERAGEIFS('Historical Data'!X$2:X$5860,'Historical Data'!$C$2:$C$5860,">="&'Initial Conditions and Settings'!F$3,'Historical Data'!$C$2:$C$5860,"<="&'Initial Conditions and Settings'!F$4,'Historical Data'!$B$2:$B$5860,Table1[[Country Code]:[Country Code]]))),".") -> 0.573362908 | L29: =IFERROR((1-Table1[[#This Row],[Formal Employment % of Labor Force2]])*(AVERAGEIFS('Historical Data'!X$2:X$5860,'Historical Data'!$C$2:$C$5860,">="&'Initial Conditions and Settings'!F$3,'Historical Data'!$C$2:$C$5860,"<="&'Initial Conditions and Settings'!F$4,'Historical Data'!$B$2:$B$5860,Table1[[Country Code]:[Country Code]]))/((AVERAGEIFS('Historical Data'!W$2:W$5860,'Historical Data'!$C$2:$C$5860,">="&'Initial Conditions and Settings'!F$3,'Historical Data'!$C$2:$C$5860,"<="&'Initial Conditions and Settings'!F$4,'Historical Data'!$B$2:$B$5860,Table1[[Country Code]:[Country Code]]))+(AVERAGEIFS('Historical Data'!X$2:X$5860,'Historical Data'!$C$2:$C$5860,">="&'Initial Conditions and Settings'!F$3,'Historical Data'!$C$2:$C$5860,"<="&'Initial Conditions and Settings'!F$4,'Historical Data'!$B$2:$B$5860,Table1[[Country Code]:[Country Code]]))),".") -> 0.2713817342 | M29: =IFERROR(INDEX('Historical Data'!Z$2:Z$5860, MATCH(Table1[[#This Row],[Country Code]],'Historical Data'!B$2:B$5860,0)),".") -> 0.1100000143 | N29: =IFERROR(INDEX('Historical Data'!W$2:W$5860, MATCH(Table1[[#This Row],[Country Code]],'Historical Data'!B$2:B$5860,0)),".") -> 0.6047583222 | O29: =IFERROR(INDEX('Historical Data'!X$2:X$5860, MATCH(Table1[[#This Row],[Country Code]],'Historical Data'!B$2:B$5860,0)),".") -> 0.2862416804 | P29: =IFERROR(Table1[[#This Row],[Formal Employment % of Labor Force2]]/(Table1[[#This Row],[Formal Employment % of Labor Force2]]+Table1[[#This Row],[Informal Employment (modern, type 2) % of Labor Force2]]),".") -> 0.3639049693 | Q29: =IFERROR(Table1[[#This Row],[Informal Employment (modern, type 2) % of Labor Force2]]/(Table1[[#This Row],[Formal Employment % of Labor Force2]]+Table1[[#This Row],[Informal Employment (modern, type 2) % of Labor Force2]]),".") -> 0.6360950307 | R29: =IFERROR((1/(miu))*(1-((1-pi)*Table1[[#This Row],[Li/L]])),".") -> 0.3377161549 | S29: =IFERROR(Table1[[#This Row],[bA/W]]*miu,".") -> 0.6105630591 | T29: =IFERROR(Table1[[#This Row],[Capital (2010 US dollars, thousands)]]/((Table1[[#This Row],[Formal Employment % of Labor Force2]]+Table1[[#This Row],[Informal Employment (modern, type 2) % of Labor Force2]])*Table1[[#This Row],[Labor Force (thousands)]]),".") -> 13738.79641 | U29: =IFERROR((((pi/psi)*Table1[[#This Row],[Li/L]]+Table1[[#This Row],[Lf/L]])/((1-capshare)^(1/(capshare))*Table1[[#This Row],[K/L]]))^(capshare),".") -> 0.01269609472 | V29: =IFERROR(Table1[[#This Row],[GDP (2010 US dollars, thousands)]]*Table1[[#This Row],[A/W]]/(Table1[[#This Row],[Labor Force (thousands)]]*((1/(1-capshare))*(Table1[[#This Row],[Formal Employment % of Labor Force2]]+pi*Table1[[#This Row],[Informal Employment (modern, type 2) % of Labor Force2]])+(Table1[[#This Row],[Informal Employment (rudimentary, type 1) % of Labor Force2]]/miu)*(1-(1-pi)*Table1[[#This Row],[Li/L]]))),".") -> 41.64017525 | W29: =IFERROR(MAX(Table1[[#This Row],[A]]/Table1[[#This Row],[A/W]],0),".") -> 3279.762493 | X29: =IFERROR(MAX((1/(miu*Table1[[#This Row],[A/W]]))*(1-(1-pi)*Table1[[#This Row],[Li/L]]),0.001),".") -> 26.60000279 | Y29: =IFERROR(Table1[[#This Row],[Formal Employment % of Employment]]/(Table1[[#This Row],[Formal Employment % of Employment]]+Table1[Informal Employment (modern, type 2) % of Employment]),".") -> 0.2776083784 | Z29: =IFERROR(Table1[[#This Row],[Informal Employment (modern, type 2) % of Employment]]/(Table1[[#This Row],[Formal Employment % of Employment]]+Table1[[#This Row],[Informal Employment (modern, type 2) % of Employment]]),".") -> 0.7223916216 | AA29: =IFERROR((1/(miu))*(1-((1-pi)*Table1[[#This Row],[Li/L2]])),".") -> 0.3084927986 | AB29: =IFERROR(Table1[[#This Row],[bA/W2]]*miu,".") -> 0.5577296321 | AC29: =IFERROR(Table1[[#This Row],[Capital (2010 US dollars, thousands)]]/((Table1[[#This Row],[Formal Employment % of Employment]]+Table1[[#This Row],[Informal Employment (modern, type 2) % of Employment]])*Table1[[#This Row],[Employment (thousands)]]),".") -> 15459.50754 | AD29: =IFERROR((((pi/psi)*Table1[[#This Row],[Li/L2]]+Table1[[#This Row],[Lf/L2]])/((1-capshare)^(1/(capshare))*Table1[[#This Row],[K/L2]]))^(capshare),".") -> 0.01129519218 | AE29: =IFERROR(Table1[[#This Row],[GDP (2010 US dollars, thousands)]]*Table1[[#This Row],[A/W2]]/(Table1[[#This Row],[Employment (thousands)]]*((1/(1-capshare))*(Table1[[#This Row],[Formal Employment % of Employment]]+pi*Table1[[#This Row],[Informal Employment (modern, type 2) % of Employment]])+(Table1[[#This Row],[Informal Employment (rudimentary, type 1) % of Employment]]/miu)*(1-(1-pi)*Table1[[#This Row],[Li/L2]]))),".") -> 44.01607304 | AF29: =IFERROR(MAX(Table1[[#This Row],[A2]]/Table1[[#This Row],[A/W2]],0),".") -> 3896.885715 | AG29: =IFERROR(MAX((1/(miu*Table1[[#This Row],[A/W2]]))*(1-(1-pi)*Table1[[#This Row],[Li/L2]]),0.001),".") -> 27.31186807 | AH29: 0 | AI29: 0 | AJ29: 0 | AK29: 0 | AL29: 0 | AM29: =SUM(Table1[[#This Row],[OPEC members]]+Table1[[#This Row],[Questionable data]]+Table1[[#This Row],[Pension/GDP outliers]]+Table1[[#This Row],[K/GDP outliers]])+Table1[[#This Row],[GDP/TFP outlier]] -> 0 | AN29: 0 | AO29: 0 | AP29: =IFERROR(MAX(0,AVERAGEIFS('Historical Data'!R$2:R$5860,'Historical Data'!$C$2:$C$5860,">="&'Initial Conditions and Settings'!G$3,'Historical Data'!$C$2:$C$5860,"<="&'Initial Conditions and Settings'!G$4,'Historical Data'!$B$2:$B$5860,Table1[[Country Code]:[Country Code]])),".") -> 0.007298665888 | AQ29: =IFERROR(MAX((((Table1[[#This Row],[A]]*((capshare)^(capshare))*((1-capshare)^(1-capshare)))^(1/(capshare)))*(Table1[[#This Row],[Minimum wage, W]]^(-(1-capshare)/(capshare))))-Table1[[#This Row],[Growth Rate of Capital]],0.01),".") -> 0.05252471003 | AR29: =IFERROR(MAX((((Table1[[#This Row],[A2]]*((capshare)^(capshare))*((1-capshare)^(1-capshare)))^(1/(capshare)))*(Table1[[#This Row],[Minimum wage, W2]]^(-(1-capshare)/(capshare))))-Table1[[#This Row],[Growth Rate of Capital]],0.01),".") -> 0.04465030875 | AS29: =IFERROR(AVERAGEIFS('Historical Data'!S$2:S$5860,'Historical Data'!$C$2:$C$5860,">="&'Initial Conditions and Settings'!H$3,'Historical Data'!$C$2:$C$5860,"<="&'Initial Conditions and Settings'!H$4,'Historical Data'!$B$2:$B$5860,Table1[[Country Code]:[Country Code]]),".") -> 0.02054015731
A30: LAC | B30: BRB | C30: Barbados | D30: =IFERROR(AVERAGEIFS('Historical Data'!E$2:E$5860,'Historical Data'!$C$2:$C$5860,">="&'Initial Conditions and Settings'!B$3,'Historical Data'!$C$2:$C$5860,"<="&'Initial Conditions and Settings'!B$4,'Historical Data'!$B$2:$B$5860,Table1[[Country Code]:[Country Code]]),".") -> 151.2 | E30: =IFERROR(AVERAGEIFS('Historical Data'!F$2:F$5860,'Historical Data'!$C$2:$C$5860,">="&'Initial Conditions and Settings'!C$3,'Historical Data'!$C$2:$C$5860,"<="&'Initial Conditions and Settings'!C$4,'Historical Data'!$B$2:$B$5860,Table1[[Country Code]:[Country Code]]),".") -> 134.4 | F30: =IFERROR((AVERAGEIFS('Historical Data'!I$2:I$5860,'Historical Data'!$C$2:$C$5860,">="&'Initial Conditions and Settings'!D$3,'Historical Data'!$C$2:$C$5860,"<="&'Initial Conditions and Settings'!D$4,'Historical Data'!$B$2:$B$5860,Table1[[Country Code]:[Country Code]])),".") -> 12703736.75 | G30: =IFERROR(AVERAGEIFS('Historical Data'!Q$2:Q$5860,'Historical Data'!$C$2:$C$5860,">="&'Initial Conditions and Settings'!E$3,'Historical Data'!$C$2:$C$5860,"<="&'Initial Conditions and Settings'!E$4,'Historical Data'!$B$2:$B$5860,Table1[[Country Code]:[Country Code]]),".") -> 0.0152843448 | H30: =IFERROR((AVERAGEIFS('Historical Data'!M$2:M$5860,'Historical Data'!$C$2:$C$5860,">="&'Initial Conditions and Settings'!F$3,'Historical Data'!$C$2:$C$5860,"<="&'Initial Conditions and Settings'!F$4,'Historical Data'!$B$2:$B$5860,Table1[[Country Code]:[Country Code]])),".") -> . | I30: =IFERROR(Table1[[#This Row],[Capital (2010 US dollars, thousands)]]/Table1[[#This Row],[GDP (2010 US dollars, thousands)]],".") -> . | J30: =IFERROR(INDEX('Historical Data'!Z$2:Z$5860, MATCH(Table1[[#This Row],[Country Code]],'Historical Data'!B$2:B$5860,0))*Table1[[#This Row],[Employment (thousands)]]/Table1[[#This Row],[Labor Force (thousands)]]+natump,".") -> 0.6875337442 | K30: =IFERROR((1-Table1[[#This Row],[Formal Employment % of Labor Force2]])*(AVERAGEIFS('Historical Data'!W$2:W$5860,'Historical Data'!$C$2:$C$5860,">="&'Initial Conditions and Settings'!F$3,'Historical Data'!$C$2:$C$5860,"<="&'Initial Conditions and Settings'!F$4,'Historical Data'!$B$2:$B$5860,Table1[[Country Code]:[Country Code]]))/((AVERAGEIFS('Historical Data'!W$2:W$5860,'Historical Data'!$C$2:$C$5860,">="&'Initial Conditions and Settings'!F$3,'Historical Data'!$C$2:$C$5860,"<="&'Initial Conditions and Settings'!F$4,'Historical Data'!$B$2:$B$5860,Table1[[Country Code]:[Country Code]]))+(AVERAGEIFS('Historical Data'!X$2:X$5860,'Historical Data'!$C$2:$C$5860,">="&'Initial Conditions and Settings'!F$3,'Historical Data'!$C$2:$C$5860,"<="&'Initial Conditions and Settings'!F$4,'Historical Data'!$B$2:$B$5860,Table1[[Country Code]:[Country Code]]))),".") -> 0.1549182347 | L30: =IFERROR((1-Table1[[#This Row],[Formal Employment % of Labor Force2]])*(AVERAGEIFS('Historical Data'!X$2:X$5860,'Historical Data'!$C$2:$C$5860,">="&'Initial Conditions and Settings'!F$3,'Historical Data'!$C$2:$C$5860,"<="&'Initial Conditions and Settings'!F$4,'Historical Data'!$B$2:$B$5860,Table1[[Country Code]:[Country Code]]))/((AVERAGEIFS('Historical Data'!W$2:W$5860,'Historical Data'!$C$2:$C$5860,">="&'Initial Conditions and Settings'!F$3,'Historical Data'!$C$2:$C$5860,"<="&'Initial Conditions and Settings'!F$4,'Historical Data'!$B$2:$B$5860,Table1[[Country Code]:[Country Code]]))+(AVERAGEIFS('Historical Data'!X$2:X$5860,'Historical Data'!$C$2:$C$5860,">="&'Initial Conditions and Settings'!F$3,'Historical Data'!$C$2:$C$5860,"<="&'Initial Conditions and Settings'!F$4,'Historical Data'!$B$2:$B$5860,Table1[[Country Code]:[Country Code]]))),".") -> 0.1575480211 | M30: =IFERROR(INDEX('Historical Data'!Z$2:Z$5860, MATCH(Table1[[#This Row],[Country Code]],'Historical Data'!B$2:B$5860,0)),".") -> 0.7172254622 | N30: =IFERROR(INDEX('Historical Data'!W$2:W$5860, MATCH(Table1[[#This Row],[Country Code]],'Historical Data'!B$2:B$5860,0)),".") -> 0.1401973218 | O30: =IFERROR(INDEX('Historical Data'!X$2:X$5860, MATCH(Table1[[#This Row],[Country Code]],'Historical Data'!B$2:B$5860,0)),".") -> 0.142577216 | P30: =IFERROR(Table1[[#This Row],[Formal Employment % of Labor Force2]]/(Table1[[#This Row],[Formal Employment % of Labor Force2]]+Table1[[#This Row],[Informal Employment (modern, type 2) % of Labor Force2]]),".") -> 0.8135706773 | Q30: =IFERROR(Table1[[#This Row],[Informal Employment (modern, type 2) % of Labor Force2]]/(Table1[[#This Row],[Formal Employment % of Labor Force2]]+Table1[[#This Row],[Informal Employment (modern, type 2) % of Labor Force2]]),".") -> 0.1864293227 | R30: =IFERROR((1/(miu))*(1-((1-pi)*Table1[[#This Row],[Li/L]])),".") -> 0.4899903185 | S30: =IFERROR(Table1[[#This Row],[bA/W]]*miu,".") -> 0.885862235 | T30: =IFERROR(Table1[[#This Row],[Capital (2010 US dollars, thousands)]]/((Table1[[#This Row],[Formal Employment % of Labor Force2]]+Table1[[#This Row],[Informal Employment (modern, type 2) % of Labor Force2]])*Table1[[#This Row],[Labor Force (thousands)]]),".") -> 99421.64936 | U30: =IFERROR((((pi/psi)*Table1[[#This Row],[Li/L]]+Table1[[#This Row],[Lf/L]])/((1-capshare)^(1/(capshare))*Table1[[#This Row],[K/L]]))^(capshare),".") -> 0.005913495473 | V30: =IFERROR(Table1[[#This Row],[GDP (2010 US dollars, thousands)]]*Table1[[#This Row],[A/W]]/(Table1[[#This Row],[Labor Force (thousands)]]*((1/(1-capshare))*(Table1[[#This Row],[Formal Employment % of Labor Force2]]+pi*Table1[[#This Row],[Informal Employment (modern, type 2) % of Labor Force2]])+(Table1[[#This Row],[Informal Employment (rudimentary, type 1) % of Labor Force2]]/miu)*(1-(1-pi)*Table1[[#This Row],[Li/L]]))),".") -> . | W30: =IFERROR(MAX(Table1[[#This Row],[A]]/Table1[[#This Row],[A/W]],0),".") -> . | X30: =IFERROR(MAX((1/(miu*Table1[[#This Row],[A/W]]))*(1-(1-pi)*Table1[[#This Row],[Li/L]]),0.001),".") -> 82.85967593 | Y30: =IFERROR(Table1[[#This Row],[Formal Employment % of Employment]]/(Table1[[#This Row],[Formal Employment % of Employment]]+Table1[Informal Employment (modern, type 2) % of Employment]),".") -> 0.8341744918 | Z30: =IFERROR(Table1[[#This Row],[Informal Employment (modern, type 2) % of Employment]]/(Table1[[#This Row],[Formal Employment % of Employment]]+Table1[[#This Row],[Informal Employment (modern, type 2) % of Employment]]),".") -> 0.1658255082 | AA30: =IFERROR((1/(miu))*(1-((1-pi)*Table1[[#This Row],[Li/L2]])),".") -> 0.4969675653 | AB30: =IFERROR(Table1[[#This Row],[bA/W2]]*miu,".") -> 0.8984765239 | AC30: =IFERROR(Table1[[#This Row],[Capital (2010 US dollars, thousands)]]/((Table1[[#This Row],[Formal Employment % of Employment]]+Table1[[#This Row],[Informal Employment (modern, type 2) % of Employment]])*Table1[[#This Row],[Employment (thousands)]]),".") -> 109934.3526 | AD30: =IFERROR((((pi/psi)*Table1[[#This Row],[Li/L2]]+Table1[[#This Row],[Lf/L2]])/((1-capshare)^(1/(capshare))*Table1[[#This Row],[K/L2]]))^(capshare),".") -> 0.005670226098 | AE30: =IFERROR(Table1[[#This Row],[GDP (2010 US dollars, thousands)]]*Table1[[#This Row],[A/W2]]/(Table1[[#This Row],[Employment (thousands)]]*((1/(1-capshare))*(Table1[[#This Row],[Formal Employment % of Employment]]+pi*Table1[[#This Row],[Informal Employment (modern, type 2) % of Employment]])+(Table1[[#This Row],[Informal Employment (rudimentary, type 1) % of Employment]]/miu)*(1-(1-pi)*Table1[[#This Row],[Li/L2]]))),".") -> . | AF30: =IFERROR(MAX(Table1[[#This Row],[A2]]/Table1[[#This Row],[A/W2]],0),".") -> . | AG30: =IFERROR(MAX((1/(miu*Table1[[#This Row],[A/W2]]))*(1-(1-pi)*Table1[[#This Row],[Li/L2]]),0.001),".") -> 87.64510563 | AH30: 0 | AI30: 0 | AJ30: 0 | AK30: 0 | AL30: 0 | AM30: =SUM(Table1[[#This Row],[OPEC members]]+Table1[[#This Row],[Questionable data]]+Table1[[#This Row],[Pension/GDP outliers]]+Table1[[#This Row],[K/GDP outliers]])+Table1[[#This Row],[GDP/TFP outlier]] -> 0 | AN30: 0 | AO30: 0 | AP30: =IFERROR(MAX(0,AVERAGEIFS('Historical Data'!R$2:R$5860,'Historical Data'!$C$2:$C$5860,">="&'Initial Conditions and Settings'!G$3,'Historical Data'!$C$2:$C$5860,"<="&'Initial Conditions and Settings'!G$4,'Historical Data'!$B$2:$B$5860,Table1[[Country Code]:[Country Code]])),".") -> . | AQ30: =IFERROR(MAX((((Table1[[#This Row],[A]]*((capshare)^(capshare))*((1-capshare)^(1-capshare)))^(1/(capshare)))*(Table1[[#This Row],[Minimum wage, W]]^(-(1-capshare)/(capshare))))-Table1[[#This Row],[Growth Rate of Capital]],0.01),".") -> . | AR30: =IFERROR(MAX((((Table1[[#This Row],[A2]]*((capshare)^(capshare))*((1-capshare)^(1-capshare)))^(1/(capshare)))*(Table1[[#This Row],[Minimum wage, W2]]^(-(1-capshare)/(capshare))))-Table1[[#This Row],[Growth Rate of Capital]],0.01),".") -> . | AS30: =IFERROR(AVERAGEIFS('Historical Data'!S$2:S$5860,'Historical Data'!$C$2:$C$5860,">="&'Initial Conditions and Settings'!H$3,'Historical Data'!$C$2:$C$5860,"<="&'Initial Conditions and Settings'!H$4,'Historical Data'!$B$2:$B$5860,Table1[[Country Code]:[Country Code]]),".") -> 0.003159069351
A31: ECA | B31: BLR | C31: Belarus | D31: =IFERROR(AVERAGEIFS('Historical Data'!E$2:E$5860,'Historical Data'!$C$2:$C$5860,">="&'Initial Conditions and Settings'!B$3,'Historical Data'!$C$2:$C$5860,"<="&'Initial Conditions and Settings'!B$4,'Historical Data'!$B$2:$B$5860,Table1[[Country Code]:[Country Code]]),".") -> 5110 | E31: =IFERROR(AVERAGEIFS('Historical Data'!F$2:F$5860,'Historical Data'!$C$2:$C$5860,">="&'Initial Conditions and Settings'!C$3,'Historical Data'!$C$2:$C$5860,"<="&'Initial Conditions and Settings'!C$4,'Historical Data'!$B$2:$B$5860,Table1[[Country Code]:[Country Code]]),".") -> 5083.6 | F31: =IFERROR((AVERAGEIFS('Historical Data'!I$2:I$5860,'Historical Data'!$C$2:$C$5860,">="&'Initial Conditions and Settings'!D$3,'Historical Data'!$C$2:$C$5860,"<="&'Initial Conditions and Settings'!D$4,'Historical Data'!$B$2:$B$5860,Table1[[Country Code]:[Country Code]])),".") -> . | G31: =IFERROR(AVERAGEIFS('Historical Data'!Q$2:Q$5860,'Historical Data'!$C$2:$C$5860,">="&'Initial Conditions and Settings'!E$3,'Historical Data'!$C$2:$C$5860,"<="&'Initial Conditions and Settings'!E$4,'Historical Data'!$B$2:$B$5860,Table1[[Country Code]:[Country Code]]),".") -> . | H31: =IFERROR((AVERAGEIFS('Historical Data'!M$2:M$5860,'Historical Data'!$C$2:$C$5860,">="&'Initial Conditions and Settings'!F$3,'Historical Data'!$C$2:$C$5860,"<="&'Initial Conditions and Settings'!F$4,'Historical Data'!$B$2:$B$5860,Table1[[Country Code]:[Country Code]])),".") -> 61306626.25 | I31: =IFERROR(Table1[[#This Row],[Capital (2010 US dollars, thousands)]]/Table1[[#This Row],[GDP (2010 US dollars, thousands)]],".") -> . | J31: =IFERROR(INDEX('Historical Data'!Z$2:Z$5860, MATCH(Table1[[#This Row],[Country Code]],'Historical Data'!B$2:B$5860,0))*Table1[[#This Row],[Employment (thousands)]]/Table1[[#This Row],[Labor Force (thousands)]]+natump,".") -> 0.8623336201 | K31: =IFERROR((1-Table1[[#This Row],[Formal Employment % of Labor Force2]])*(AVERAGEIFS('Historical Data'!W$2:W$5860,'Historical Data'!$C$2:$C$5860,">="&'Initial Conditions and Settings'!F$3,'Historical Data'!$C$2:$C$5860,"<="&'Initial Conditions and Settings'!F$4,'Historical Data'!$B$2:$B$5860,Table1[[Country Code]:[Country Code]]))/((AVERAGEIFS('Historical Data'!W$2:W$5860,'Historical Data'!$C$2:$C$5860,">="&'Initial Conditions and Settings'!F$3,'Historical Data'!$C$2:$C$5860,"<="&'Initial Conditions and Settings'!F$4,'Historical Data'!$B$2:$B$5860,Table1[[Country Code]:[Country Code]]))+(AVERAGEIFS('Historical Data'!X$2:X$5860,'Historical Data'!$C$2:$C$5860,">="&'Initial Conditions and Settings'!F$3,'Historical Data'!$C$2:$C$5860,"<="&'Initial Conditions and Settings'!F$4,'Historical Data'!$B$2:$B$5860,Table1[[Country Code]:[Country Code]]))),".") -> 0.05594903217 | L31: =IFERROR((1-Table1[[#This Row],[Formal Employment % of Labor Force2]])*(AVERAGEIFS('Historical Data'!X$2:X$5860,'Historical Data'!$C$2:$C$5860,">="&'Initial Conditions and Settings'!F$3,'Historical Data'!$C$2:$C$5860,"<="&'Initial Conditions and Settings'!F$4,'Historical Data'!$B$2:$B$5860,Table1[[Country Code]:[Country Code]]))/((AVERAGEIFS('Historical Data'!W$2:W$5860,'Historical Data'!$C$2:$C$5860,">="&'Initial Conditions and Settings'!F$3,'Historical Data'!$C$2:$C$5860,"<="&'Initial Conditions and Settings'!F$4,'Historical Data'!$B$2:$B$5860,Table1[[Country Code]:[Country Code]]))+(AVERAGEIFS('Historical Data'!X$2:X$5860,'Historical Data'!$C$2:$C$5860,">="&'Initial Conditions and Settings'!F$3,'Historical Data'!$C$2:$C$5860,"<="&'Initial Conditions and Settings'!F$4,'Historical Data'!$B$2:$B$5860,Table1[[Country Code]:[Country Code]]))),".") -> 0.0817173477 | M31: =IFERROR(INDEX('Historical Data'!Z$2:Z$5860, MATCH(Table1[[#This Row],[Country Code]],'Historical Data'!B$2:B$5860,0)),".") -> 0.8165522069 | N31: =IFERROR(INDEX('Historical Data'!W$2:W$5860, MATCH(Table1[[#This Row],[Country Code]],'Historical Data'!B$2:B$5860,0)),".") -> 0.07455506921 | O31: =IFERROR(INDEX('Historical Data'!X$2:X$5860, MATCH(Table1[[#This Row],[Country Code]],'Historical Data'!B$2:B$5860,0)),".") -> 0.1088927239 | P31: =IFERROR(Table1[[#This Row],[Formal Employment % of Labor Force2]]/(Table1[[#This Row],[Formal Employment % of Labor Force2]]+Table1[[#This Row],[Informal Employment (modern, type 2) % of Labor Force2]]),".") -> 0.9134396865 | Q31: =IFERROR(Table1[[#This Row],[Informal Employment (modern, type 2) % of Labor Force2]]/(Table1[[#This Row],[Formal Employment % of Labor Force2]]+Table1[[#This Row],[Informal Employment (modern, type 2) % of Labor Force2]]),".") -> 0.08656031346 | R31: =IFERROR((1/(miu))*(1-((1-pi)*Table1[[#This Row],[Li/L]])),".") -> 0.5238098195 | S31: =IFERROR(Table1[[#This Row],[bA/W]]*miu,".") -> 0.9470051139 | T31: =IFERROR(Table1[[#This Row],[Capital (2010 US dollars, thousands)]]/((Table1[[#This Row],[Formal Employment % of Labor Force2]]+Table1[[#This Row],[Informal Employment (modern, type 2) % of Labor Force2]])*Table1[[#This Row],[Labor Force (thousands)]]),".") -> . | U31: =IFERROR((((pi/psi)*Table1[[#This Row],[Li/L]]+Table1[[#This Row],[Lf/L]])/((1-capshare)^(1/(capshare))*Table1[[#This Row],[K/L]]))^(capshare),".") -> . | V31: =IFERROR(Table1[[#This Row],[GDP (2010 US dollars, thousands)]]*Table1[[#This Row],[A/W]]/(Table1[[#This Row],[Labor Force (thousands)]]*((1/(1-capshare))*(Table1[[#This Row],[Formal Employment % of Labor Force2]]+pi*Table1[[#This Row],[Informal Employment (modern, type 2) % of Labor Force2]])+(Table1[[#This Row],[Informal Employment (rudimentary, type 1) % of Labor Force2]]/miu)*(1-(1-pi)*Table1[[#This Row],[Li/L]]))),".") -> . | W31: =IFERROR(MAX(Table1[[#This Row],[A]]/Table1[[#This Row],[A/W]],0),".") -> . | X31: =IFERROR(MAX((1/(miu*Table1[[#This Row],[A/W]]))*(1-(1-pi)*Table1[[#This Row],[Li/L]]),0.001),".") -> . | Y31: =IFERROR(Table1[[#This Row],[Formal Employment % of Employment]]/(Table1[[#This Row],[Formal Employment % of Employment]]+Table1[Informal Employment (modern, type 2) % of Employment]),".") -> 0.882334734 | Z31: =IFERROR(Table1[[#This Row],[Informal Employment (modern, type 2) % of Employment]]/(Table1[[#This Row],[Formal Employment % of Employment]]+Table1[[#This Row],[Informal Employment (modern, type 2) % of Employment]]),".") -> 0.117665266 | AA31: =IFERROR((1/(miu))*(1-((1-pi)*Table1[[#This Row],[Li/L2]])),".") -> 0.5132764821 | AB31: =IFERROR(Table1[[#This Row],[bA/W2]]*miu,".") -> 0.9279617054 | AC31: =IFERROR(Table1[[#This Row],[Capital (2010 US dollars, thousands)]]/((Table1[[#This Row],[Formal Employment % of Employment]]+Table1[[#This Row],[Informal Employment (modern, type 2) % of Employment]])*Table1[[#This Row],[Employment (thousands)]]),".") -> . | AD31: =IFERROR((((pi/psi)*Table1[[#This Row],[Li/L2]]+Table1[[#This Row],[Lf/L2]])/((1-capshare)^(1/(capshare))*Table1[[#This Row],[K/L2]]))^(capshare),".") -> . | AE31: =IFERROR(Table1[[#This Row],[GDP (2010 US dollars, thousands)]]*Table1[[#This Row],[A/W2]]/(Table1[[#This Row],[Employment (thousands)]]*((1/(1-capshare))*(Table1[[#This Row],[Formal Employment % of Employment]]+pi*Table1[[#This Row],[Informal Employment (modern, type 2) % of Employment]])+(Table1[[#This Row],[Informal Employment (rudimentary, type 1) % of Employment]]/miu)*(1-(1-pi)*Table1[[#This Row],[Li/L2]]))),".") -> . | AF31: =IFERROR(MAX(Table1[[#This Row],[A2]]/Table1[[#This Row],[A/W2]],0),".") -> . | AG31: =IFERROR(MAX((1/(miu*Table1[[#This Row],[A/W2]]))*(1-(1-pi)*Table1[[#This Row],[Li/L2]]),0.001),".") -> . | AH31: 0 | AI31: 0 | AJ31: 0 | AK31: 0 | AL31: 0 | AM31: =SUM(Table1[[#This Row],[OPEC members]]+Table1[[#This Row],[Questionable data]]+Table1[[#This Row],[Pension/GDP outliers]]+Table1[[#This Row],[K/GDP outliers]])+Table1[[#This Row],[GDP/TFP outlier]] -> 0 | AN31: 0 | AO31: 0 | AP31: =IFERROR(MAX(0,AVERAGEIFS('Historical Data'!R$2:R$5860,'Historical Data'!$C$2:$C$5860,">="&'Initial Conditions and Settings'!G$3,'Historical Data'!$C$2:$C$5860,"<="&'Initial Conditions and Settings'!G$4,'Historical Data'!$B$2:$B$5860,Table1[[Country Code]:[Country Code]])),".") -> . | AQ31: =IFERROR(MAX((((Table1[[#This Row],[A]]*((capshare)^(capshare))*((1-capshare)^(1-capshare)))^(1/(capshare)))*(Table1[[#This Row],[Minimum wage, W]]^(-(1-capshare)/(capshare))))-Table1[[#This Row],[Growth Rate of Capital]],0.01),".") -> . | AR31: =IFERROR(MAX((((Table1[[#This Row],[A2]]*((capshare)^(capshare))*((1-capshare)^(1-capshare)))^(1/(capshare)))*(Table1[[#This Row],[Minimum wage, W2]]^(-(1-capshare)/(capshare))))-Table1[[#This Row],[Growth Rate of Capital]],0.01),".") -> . | AS31: =IFERROR(AVERAGEIFS('Historical Data'!S$2:S$5860,'Historical Data'!$C$2:$C$5860,">="&'Initial Conditions and Settings'!H$3,'Historical Data'!$C$2:$C$5860,"<="&'Initial Conditions and Settings'!H$4,'Historical Data'!$B$2:$B$5860,Table1[[Country Code]:[Country Code]]),".") -> 0.004191482625
A32: OECD | B32: BEL | C32: Belgium | D32: =IFERROR(AVERAGEIFS('Historical Data'!E$2:E$5860,'Historical Data'!$C$2:$C$5860,">="&'Initial Conditions and Settings'!B$3,'Historical Data'!$C$2:$C$5860,"<="&'Initial Conditions and Settings'!B$4,'Historical Data'!$B$2:$B$5860,Table1[[Country Code]:[Country Code]]),".") -> 4972.2 | E32: =IFERROR(AVERAGEIFS('Historical Data'!F$2:F$5860,'Historical Data'!$C$2:$C$5860,">="&'Initial Conditions and Settings'!C$3,'Historical Data'!$C$2:$C$5860,"<="&'Initial Conditions and Settings'!C$4,'Historical Data'!$B$2:$B$5860,Table1[[Country Code]:[Country Code]]),".") -> 4566.2 | F32: =IFERROR((AVERAGEIFS('Historical Data'!I$2:I$5860,'Historical Data'!$C$2:$C$5860,">="&'Initial Conditions and Settings'!D$3,'Historical Data'!$C$2:$C$5860,"<="&'Initial Conditions and Settings'!D$4,'Historical Data'!$B$2:$B$5860,Table1[[Country Code]:[Country Code]])),".") -> 1937597747 | G32: =IFERROR(AVERAGEIFS('Historical Data'!Q$2:Q$5860,'Historical Data'!$C$2:$C$5860,">="&'Initial Conditions and Settings'!E$3,'Historical Data'!$C$2:$C$5860,"<="&'Initial Conditions and Settings'!E$4,'Historical Data'!$B$2:$B$5860,Table1[[Country Code]:[Country Code]]),".") -> 0.02561747394 | H32: =IFERROR((AVERAGEIFS('Historical Data'!M$2:M$5860,'Historical Data'!$C$2:$C$5860,">="&'Initial Conditions and Settings'!F$3,'Historical Data'!$C$2:$C$5860,"<="&'Initial Conditions and Settings'!F$4,'Historical Data'!$B$2:$B$5860,Table1[[Country Code]:[Country Code]])),".") -> 501699165.8 | I32: =IFERROR(Table1[[#This Row],[Capital (2010 US dollars, thousands)]]/Table1[[#This Row],[GDP (2010 US dollars, thousands)]],".") -> 3.862070897 | J32: =IFERROR(INDEX('Historical Data'!Z$2:Z$5860, MATCH(Table1[[#This Row],[Country Code]],'Historical Data'!B$2:B$5860,0))*Table1[[#This Row],[Employment (thousands)]]/Table1[[#This Row],[Labor Force (thousands)]]+natump,".") -> 0.8443692883 | K32: =IFERROR((1-Table1[[#This Row],[Formal Employment % of Labor Force2]])*(AVERAGEIFS('Historical Data'!W$2:W$5860,'Historical Data'!$C$2:$C$5860,">="&'Initial Conditions and Settings'!F$3,'Historical Data'!$C$2:$C$5860,"<="&'Initial Conditions and Settings'!F$4,'Historical Data'!$B$2:$B$5860,Table1[[Country Code]:[Country Code]]))/((AVERAGEIFS('Historical Data'!W$2:W$5860,'Historical Data'!$C$2:$C$5860,">="&'Initial Conditions and Settings'!F$3,'Historical Data'!$C$2:$C$5860,"<="&'Initial Conditions and Settings'!F$4,'Historical Data'!$B$2:$B$5860,Table1[[Country Code]:[Country Code]]))+(AVERAGEIFS('Historical Data'!X$2:X$5860,'Historical Data'!$C$2:$C$5860,">="&'Initial Conditions and Settings'!F$3,'Historical Data'!$C$2:$C$5860,"<="&'Initial Conditions and Settings'!F$4,'Historical Data'!$B$2:$B$5860,Table1[[Country Code]:[Country Code]]))),".") -> 0.07830383332 | L32: =IFERROR((1-Table1[[#This Row],[Formal Employment % of Labor Force2]])*(AVERAGEIFS('Historical Data'!X$2:X$5860,'Historical Data'!$C$2:$C$5860,">="&'Initial Conditions and Settings'!F$3,'Historical Data'!$C$2:$C$5860,"<="&'Initial Conditions and Settings'!F$4,'Historical Data'!$B$2:$B$5860,Table1[[Country Code]:[Country Code]]))/((AVERAGEIFS('Historical Data'!W$2:W$5860,'Historical Data'!$C$2:$C$5860,">="&'Initial Conditions and Settings'!F$3,'Historical Data'!$C$2:$C$5860,"<="&'Initial Conditions and Settings'!F$4,'Historical Data'!$B$2:$B$5860,Table1[[Country Code]:[Country Code]]))+(AVERAGEIFS('Historical Data'!X$2:X$5860,'Historical Data'!$C$2:$C$5860,">="&'Initial Conditions and Settings'!F$3,'Historical Data'!$C$2:$C$5860,"<="&'Initial Conditions and Settings'!F$4,'Historical Data'!$B$2:$B$5860,Table1[[Country Code]:[Country Code]]))),".") -> 0.07732687834 | M32: =IFERROR(INDEX('Historical Data'!Z$2:Z$5860, MATCH(Table1[[#This Row],[Country Code]],'Historical Data'!B$2:B$5860,0)),".") -> 0.8649999946 | N32: =IFERROR(INDEX('Historical Data'!W$2:W$5860, MATCH(Table1[[#This Row],[Country Code]],'Historical Data'!B$2:B$5860,0)),".") -> 0.06742058694 | O32: =IFERROR(INDEX('Historical Data'!X$2:X$5860, MATCH(Table1[[#This Row],[Country Code]],'Historical Data'!B$2:B$5860,0)),".") -> 0.06657941639 | P32: =IFERROR(Table1[[#This Row],[Formal Employment % of Labor Force2]]/(Table1[[#This Row],[Formal Employment % of Labor Force2]]+Table1[[#This Row],[Informal Employment (modern, type 2) % of Labor Force2]]),".") -> 0.9161037215 | Q32: =IFERROR(Table1[[#This Row],[Informal Employment (modern, type 2) % of Labor Force2]]/(Table1[[#This Row],[Formal Employment % of Labor Force2]]+Table1[[#This Row],[Informal Employment (modern, type 2) % of Labor Force2]]),".") -> 0.08389627855 | R32: =IFERROR((1/(miu))*(1-((1-pi)*Table1[[#This Row],[Li/L]])),".") -> 0.5247119645 | S32: =IFERROR(Table1[[#This Row],[bA/W]]*miu,".") -> 0.948636118 | T32: =IFERROR(Table1[[#This Row],[Capital (2010 US dollars, thousands)]]/((Table1[[#This Row],[Formal Employment % of Labor Force2]]+Table1[[#This Row],[Informal Employment (modern, type 2) % of Labor Force2]])*Table1[[#This Row],[Labor Force (thousands)]]),".") -> 422792.4763 | U32: =IFERROR((((pi/psi)*Table1[[#This Row],[Li/L]]+Table1[[#This Row],[Lf/L]])/((1-capshare)^(1/(capshare))*Table1[[#This Row],[K/L]]))^(capshare),".") -> 0.002983945358 | V32: =IFERROR(Table1[[#This Row],[GDP (2010 US dollars, thousands)]]*Table1[[#This Row],[A/W]]/(Table1[[#This Row],[Labor Force (thousands)]]*((1/(1-capshare))*(Table1[[#This Row],[Formal Employment % of Labor Force2]]+pi*Table1[[#This Row],[Informal Employment (modern, type 2) % of Labor Force2]])+(Table1[[#This Row],[Informal Employment (rudimentary, type 1) % of Labor Force2]]/miu)*(1-(1-pi)*Table1[[#This Row],[Li/L]]))),".") -> 168.2217872 | W32: =IFERROR(MAX(Table1[[#This Row],[A]]/Table1[[#This Row],[A/W]],0),".") -> 56375.6259 | X32: =IFERROR(MAX((1/(miu*Table1[[#This Row],[A/W]]))*(1-(1-pi)*Table1[[#This Row],[Li/L]]),0.001),".") -> 175.8450312 | Y32: =IFERROR(Table1[[#This Row],[Formal Employment % of Employment]]/(Table1[[#This Row],[Formal Employment % of Employment]]+Table1[Informal Employment (modern, type 2) % of Employment]),".") -> 0.9285306055 | Z32: =IFERROR(Table1[[#This Row],[Informal Employment (modern, type 2) % of Employment]]/(Table1[[#This Row],[Formal Employment % of Employment]]+Table1[[#This Row],[Informal Employment (modern, type 2) % of Employment]]),".") -> 0.07146939446 | AA32: =IFERROR((1/(miu))*(1-((1-pi)*Table1[[#This Row],[Li/L2]])),".") -> 0.5289201871 | AB32: =IFERROR(Table1[[#This Row],[bA/W2]]*miu,".") -> 0.9562442387 | AC32: =IFERROR(Table1[[#This Row],[Capital (2010 US dollars, thousands)]]/((Table1[[#This Row],[Formal Employment % of Employment]]+Table1[[#This Row],[Informal Employment (modern, type 2) % of Employment]])*Table1[[#This Row],[Employment (thousands)]]),".") -> 455500.4492 | AD32: =IFERROR((((pi/psi)*Table1[[#This Row],[Li/L2]]+Table1[[#This Row],[Lf/L2]])/((1-capshare)^(1/(capshare))*Table1[[#This Row],[K/L2]]))^(capshare),".") -> 0.002888103992 | AE32: =IFERROR(Table1[[#This Row],[GDP (2010 US dollars, thousands)]]*Table1[[#This Row],[A/W2]]/(Table1[[#This Row],[Employment (thousands)]]*((1/(1-capshare))*(Table1[[#This Row],[Formal Employment % of Employment]]+pi*Table1[[#This Row],[Informal Employment (modern, type 2) % of Employment]])+(Table1[[#This Row],[Informal Employment (rudimentary, type 1) % of Employment]]/miu)*(1-(1-pi)*Table1[[#This Row],[Li/L2]]))),".") -> 174.6127068 | AF32: =IFERROR(MAX(Table1[[#This Row],[A2]]/Table1[[#This Row],[A/W2]],0),".") -> 60459.28652 | AG32: =IFERROR(MAX((1/(miu*Table1[[#This Row],[A/W2]]))*(1-(1-pi)*Table1[[#This Row],[Li/L2]]),0.001),".") -> 183.1375147 | AH32: 0 | AI32: 0 | AJ32: 0 | AK32: 0 | AL32: 0 | AM32: =SUM(Table1[[#This Row],[OPEC members]]+Table1[[#This Row],[Questionable data]]+Table1[[#This Row],[Pension/GDP outliers]]+Table1[[#This Row],[K/GDP outliers]])+Table1[[#This Row],[GDP/TFP outlier]] -> 0 | AN32: 0 | AO32: 0 | AP32: =IFERROR(MAX(0,AVERAGEIFS('Historical Data'!R$2:R$5860,'Historical Data'!$C$2:$C$5860,">="&'Initial Conditions and Settings'!G$3,'Historical Data'!$C$2:$C$5860,"<="&'Initial Conditions and Settings'!G$4,'Historical Data'!$B$2:$B$5860,Table1[[Country Code]:[Country Code]])),".") -> 0 | AQ32: =IFERROR(MAX((((Table1[[#This Row],[A]]*((capshare)^(capshare))*((1-capshare)^(1-capshare)))^(1/(capshare)))*(Table1[[#This Row],[Minimum wage, W]]^(-(1-capshare)/(capshare))))-Table1[[#This Row],[Growth Rate of Capital]],0.01),".") -> 0.09987368131 | AR32: =IFERROR(MAX((((Table1[[#This Row],[A2]]*((capshare)^(capshare))*((1-capshare)^(1-capshare)))^(1/(capshare)))*(Table1[[#This Row],[Minimum wage, W2]]^(-(1-capshare)/(capshare))))-Table1[[#This Row],[Growth Rate of Capital]],0.01),".") -> 0.1004574399 | AS32: =IFERROR(AVERAGEIFS('Historical Data'!S$2:S$5860,'Historical Data'!$C$2:$C$5860,">="&'Initial Conditions and Settings'!H$3,'Historical Data'!$C$2:$C$5860,"<="&'Initial Conditions and Settings'!H$4,'Historical Data'!$B$2:$B$5860,Table1[[Country Code]:[Country Code]]),".") -> 0.008000691628
A33: LAC | B33: BLZ | C33: Belize | D33: =IFERROR(AVERAGEIFS('Historical Data'!E$2:E$5860,'Historical Data'!$C$2:$C$5860,">="&'Initial Conditions and Settings'!B$3,'Historical Data'!$C$2:$C$5860,"<="&'Initial Conditions and Settings'!B$4,'Historical Data'!$B$2:$B$5860,Table1[[Country Code]:[Country Code]]),".") -> 158.6 | E33: =IFERROR(AVERAGEIFS('Historical Data'!F$2:F$5860,'Historical Data'!$C$2:$C$5860,">="&'Initial Conditions and Settings'!C$3,'Historical Data'!$C$2:$C$5860,"<="&'Initial Conditions and Settings'!C$4,'Historical Data'!$B$2:$B$5860,Table1[[Country Code]:[Country Code]]),".") -> 141.2 | F33: =IFERROR((AVERAGEIFS('Historical Data'!I$2:I$5860,'Historical Data'!$C$2:$C$5860,">="&'Initial Conditions and Settings'!D$3,'Historical Data'!$C$2:$C$5860,"<="&'Initial Conditions and Settings'!D$4,'Historical Data'!$B$2:$B$5860,Table1[[Country Code]:[Country Code]])),".") -> 4730458.5 | G33: =IFERROR(AVERAGEIFS('Historical Data'!Q$2:Q$5860,'Historical Data'!$C$2:$C$5860,">="&'Initial Conditions and Settings'!E$3,'Historical Data'!$C$2:$C$5860,"<="&'Initial Conditions and Settings'!E$4,'Historical Data'!$B$2:$B$5860,Table1[[Country Code]:[Country Code]]),".") -> 0.03975872598 | H33: =IFERROR((AVERAGEIFS('Historical Data'!M$2:M$5860,'Historical Data'!$C$2:$C$5860,">="&'Initial Conditions and Settings'!F$3,'Historical Data'!$C$2:$C$5860,"<="&'Initial Conditions and Settings'!F$4,'Historical Data'!$B$2:$B$5860,Table1[[Country Code]:[Country Code]])),".") -> . | I33: =IFERROR(Table1[[#This Row],[Capital (2010 US dollars, thousands)]]/Table1[[#This Row],[GDP (2010 US dollars, thousands)]],".") -> . | J33: =IFERROR(INDEX('Historical Data'!Z$2:Z$5860, MATCH(Table1[[#This Row],[Country Code]],'Historical Data'!B$2:B$5860,0))*Table1[[#This Row],[Employment (thousands)]]/Table1[[#This Row],[Labor Force (thousands)]]+natump,".") -> 0.5252762551 | K33: =IFERROR((1-Table1[[#This Row],[Formal Employment % of Labor Force2]])*(AVERAGEIFS('Historical Data'!W$2:W$5860,'Historical Data'!$C$2:$C$5860,">="&'Initial Conditions and Settings'!F$3,'Historical Data'!$C$2:$C$5860,"<="&'Initial Conditions and Settings'!F$4,'Historical Data'!$B$2:$B$5860,Table1[[Country Code]:[Country Code]]))/((AVERAGEIFS('Historical Data'!W$2:W$5860,'Historical Data'!$C$2:$C$5860,">="&'Initial Conditions and Settings'!F$3,'Historical Data'!$C$2:$C$5860,"<="&'Initial Conditions and Settings'!F$4,'Historical Data'!$B$2:$B$5860,Table1[[Country Code]:[Country Code]]))+(AVERAGEIFS('Historical Data'!X$2:X$5860,'Historical Data'!$C$2:$C$5860,">="&'Initial Conditions and Settings'!F$3,'Historical Data'!$C$2:$C$5860,"<="&'Initial Conditions and Settings'!F$4,'Historical Data'!$B$2:$B$5860,Table1[[Country Code]:[Country Code]]))),".") -> 0.2265044901 | L33: =IFERROR((1-Table1[[#This Row],[Formal Employment % of Labor Force2]])*(AVERAGEIFS('Historical Data'!X$2:X$5860,'Historical Data'!$C$2:$C$5860,">="&'Initial Conditions and Settings'!F$3,'Historical Data'!$C$2:$C$5860,"<="&'Initial Conditions and Settings'!F$4,'Historical Data'!$B$2:$B$5860,Table1[[Country Code]:[Country Code]]))/((AVERAGEIFS('Historical Data'!W$2:W$5860,'Historical Data'!$C$2:$C$5860,">="&'Initial Conditions and Settings'!F$3,'Historical Data'!$C$2:$C$5860,"<="&'Initial Conditions and Settings'!F$4,'Historical Data'!$B$2:$B$5860,Table1[[Country Code]:[Country Code]]))+(AVERAGEIFS('Historical Data'!X$2:X$5860,'Historical Data'!$C$2:$C$5860,">="&'Initial Conditions and Settings'!F$3,'Historical Data'!$C$2:$C$5860,"<="&'Initial Conditions and Settings'!F$4,'Historical Data'!$B$2:$B$5860,Table1[[Country Code]:[Country Code]]))),".") -> 0.2482192548 | M33: =IFERROR(INDEX('Historical Data'!Z$2:Z$5860, MATCH(Table1[[#This Row],[Country Code]],'Historical Data'!B$2:B$5860,0)),".") -> 0.5338442922 | N33: =IFERROR(INDEX('Historical Data'!W$2:W$5860, MATCH(Table1[[#This Row],[Country Code]],'Historical Data'!B$2:B$5860,0)),".") -> 0.2224164307 | O33: =IFERROR(INDEX('Historical Data'!X$2:X$5860, MATCH(Table1[[#This Row],[Country Code]],'Historical Data'!B$2:B$5860,0)),".") -> 0.2437392771 | P33: =IFERROR(Table1[[#This Row],[Formal Employment % of Labor Force2]]/(Table1[[#This Row],[Formal Employment % of Labor Force2]]+Table1[[#This Row],[Informal Employment (modern, type 2) % of Labor Force2]]),".") -> 0.6790941232 | Q33: =IFERROR(Table1[[#This Row],[Informal Employment (modern, type 2) % of Labor Force2]]/(Table1[[#This Row],[Formal Employment % of Labor Force2]]+Table1[[#This Row],[Informal Employment (modern, type 2) % of Labor Force2]]),".") -> 0.3209058768 | R33: =IFERROR((1/(miu))*(1-((1-pi)*Table1[[#This Row],[Li/L]])),".") -> 0.4444513672 | S33: =IFERROR(Table1[[#This Row],[bA/W]]*miu,".") -> 0.8035315528 | T33: =IFERROR(Table1[[#This Row],[Capital (2010 US dollars, thousands)]]/((Table1[[#This Row],[Formal Employment % of Labor Force2]]+Table1[[#This Row],[Informal Employment (modern, type 2) % of Labor Force2]])*Table1[[#This Row],[Labor Force (thousands)]]),".") -> 38560.46451 | U33: =IFERROR((((pi/psi)*Table1[[#This Row],[Li/L]]+Table1[[#This Row],[Lf/L]])/((1-capshare)^(1/(capshare))*Table1[[#This Row],[K/L]]))^(capshare),".") -> 0.00896515785 | V33: =IFERROR(Table1[[#This Row],[GDP (2010 US dollars, thousands)]]*Table1[[#This Row],[A/W]]/(Table1[[#This Row],[Labor Force (thousands)]]*((1/(1-capshare))*(Table1[[#This Row],[Formal Employment % of Labor Force2]]+pi*Table1[[#This Row],[Informal Employment (modern, type 2) % of Labor Force2]])+(Table1[[#This Row],[Informal Employment (rudimentary, type 1) % of Labor Force2]]/miu)*(1-(1-pi)*Table1[[#This Row],[Li/L]]))),".") -> . | W33: =IFERROR(MAX(Table1[[#This Row],[A]]/Table1[[#This Row],[A/W]],0),".") -> . | X33: =IFERROR(MAX((1/(miu*Table1[[#This Row],[A/W]]))*(1-(1-pi)*Table1[[#This Row],[Li/L]]),0.001),".") -> 49.575409 | Y33: =IFERROR(Table1[[#This Row],[Formal Employment % of Employment]]/(Table1[[#This Row],[Formal Employment % of Employment]]+Table1[Informal Employment (modern, type 2) % of Employment]),".") -> 0.6865426602 | Z33: =IFERROR(Table1[[#This Row],[Informal Employment (modern, type 2) % of Employment]]/(Table1[[#This Row],[Formal Employment % of Employment]]+Table1[[#This Row],[Informal Employment (modern, type 2) % of Employment]]),".") -> 0.3134573398 | AA33: =IFERROR((1/(miu))*(1-((1-pi)*Table1[[#This Row],[Li/L2]])),".") -> 0.4469737293 | AB33: =IFERROR(Table1[[#This Row],[bA/W2]]*miu,".") -> 0.8080917762 | AC33: =IFERROR(Table1[[#This Row],[Capital (2010 US dollars, thousands)]]/((Table1[[#This Row],[Formal Employment % of Employment]]+Table1[[#This Row],[Informal Employment (modern, type 2) % of Employment]])*Table1[[#This Row],[Employment (thousands)]]),".") -> 43084.54044 | AD33: =IFERROR((((pi/psi)*Table1[[#This Row],[Li/L2]]+Table1[[#This Row],[Lf/L2]])/((1-capshare)^(1/(capshare))*Table1[[#This Row],[K/L2]]))^(capshare),".") -> 0.008509974372 | AE33: =IFERROR(Table1[[#This Row],[GDP (2010 US dollars, thousands)]]*Table1[[#This Row],[A/W2]]/(Table1[[#This Row],[Employment (thousands)]]*((1/(1-capshare))*(Table1[[#This Row],[Formal Employment % of Employment]]+pi*Table1[[#This Row],[Informal Employment (modern, type 2) % of Employment]])+(Table1[[#This Row],[Informal Employment (rudimentary, type 1) % of Employment]]/miu)*(1-(1-pi)*Table1[[#This Row],[Li/L2]]))),".") -> . | AF33: =IFERROR(MAX(Table1[[#This Row],[A2]]/Table1[[#This Row],[A/W2]],0),".") -> . | AG33: =IFERROR(MAX((1/(miu*Table1[[#This Row],[A/W2]]))*(1-(1-pi)*Table1[[#This Row],[Li/L2]]),0.001),".") -> 52.52351061 | AH33: 0 | AI33: 0 | AJ33: 0 | AK33: 0 | AL33: 0 | AM33: =SUM(Table1[[#This Row],[OPEC members]]+Table1[[#This Row],[Questionable data]]+Table1[[#This Row],[Pension/GDP outliers]]+Table1[[#This Row],[K/GDP outliers]])+Table1[[#This Row],[GDP/TFP outlier]] -> 0 | AN33: 0 | AO33: 0 | AP33: =IFERROR(MAX(0,AVERAGEIFS('Historical Data'!R$2:R$5860,'Historical Data'!$C$2:$C$5860,">="&'Initial Conditions and Settings'!G$3,'Historical Data'!$C$2:$C$5860,"<="&'Initial Conditions and Settings'!G$4,'Historical Data'!$B$2:$B$5860,Table1[[Country Code]:[Country Code]])),".") -> . | AQ33: =IFERROR(MAX((((Table1[[#This Row],[A]]*((capshare)^(capshare))*((1-capshare)^(1-capshare)))^(1/(capshare)))*(Table1[[#This Row],[Minimum wage, W]]^(-(1-capshare)/(capshare))))-Table1[[#This Row],[Growth Rate of Capital]],0.01),".") -> . | AR33: =IFERROR(MAX((((Table1[[#This Row],[A2]]*((capshare)^(capshare))*((1-capshare)^(1-capshare)))^(1/(capshare)))*(Table1[[#This Row],[Minimum wage, W2]]^(-(1-capshare)/(capshare))))-Table1[[#This Row],[Growth Rate of Capital]],0.01),".") -> . | AS33: =IFERROR(AVERAGEIFS('Historical Data'!S$2:S$5860,'Historical Data'!$C$2:$C$5860,">="&'Initial Conditions and Settings'!H$3,'Historical Data'!$C$2:$C$5860,"<="&'Initial Conditions and Settings'!H$4,'Historical Data'!$B$2:$B$5860,Table1[[Country Code]:[Country Code]]),".") -> 0.0397260327
A34: SSA | B34: BEN | C34: Benin | D34: =IFERROR(AVERAGEIFS('Historical Data'!E$2:E$5860,'Historical Data'!$C$2:$C$5860,">="&'Initial Conditions and Settings'!B$3,'Historical Data'!$C$2:$C$5860,"<="&'Initial Conditions and Settings'!B$4,'Historical Data'!$B$2:$B$5860,Table1[[Country Code]:[Country Code]]),".") -> 4138.4 | E34: =IFERROR(AVERAGEIFS('Historical Data'!F$2:F$5860,'Historical Data'!$C$2:$C$5860,">="&'Initial Conditions and Settings'!C$3,'Historical Data'!$C$2:$C$5860,"<="&'Initial Conditions and Settings'!C$4,'Historical Data'!$B$2:$B$5860,Table1[[Country Code]:[Country Code]]),".") -> 4030 | F34: =IFERROR((AVERAGEIFS('Historical Data'!I$2:I$5860,'Historical Data'!$C$2:$C$5860,">="&'Initial Conditions and Settings'!D$3,'Historical Data'!$C$2:$C$5860,"<="&'Initial Conditions and Settings'!D$4,'Historical Data'!$B$2:$B$5860,Table1[[Country Code]:[Country Code]])),".") -> 25546904 | G34: =IFERROR(AVERAGEIFS('Historical Data'!Q$2:Q$5860,'Historical Data'!$C$2:$C$5860,">="&'Initial Conditions and Settings'!E$3,'Historical Data'!$C$2:$C$5860,"<="&'Initial Conditions and Settings'!E$4,'Historical Data'!$B$2:$B$5860,Table1[[Country Code]:[Country Code]]),".") -> 0.0426104386 | H34: =IFERROR((AVERAGEIFS('Historical Data'!M$2:M$5860,'Historical Data'!$C$2:$C$5860,">="&'Initial Conditions and Settings'!F$3,'Historical Data'!$C$2:$C$5860,"<="&'Initial Conditions and Settings'!F$4,'Historical Data'!$B$2:$B$5860,Table1[[Country Code]:[Country Code]])),".") -> 8403949.381 | I34: =IFERROR(Table1[[#This Row],[Capital (2010 US dollars, thousands)]]/Table1[[#This Row],[GDP (2010 US dollars, thousands)]],".") -> 3.039868857 | J34: =IFERROR(INDEX('Historical Data'!Z$2:Z$5860, MATCH(Table1[[#This Row],[Country Code]],'Historical Data'!B$2:B$5860,0))*Table1[[#This Row],[Employment (thousands)]]/Table1[[#This Row],[Labor Force (thousands)]]+natump,".") -> 0.1035593536 | K34: =IFERROR((1-Table1[[#This Row],[Formal Employment % of Labor Force2]])*(AVERAGEIFS('Historical Data'!W$2:W$5860,'Historical Data'!$C$2:$C$5860,">="&'Initial Conditions and Settings'!F$3,'Historical Data'!$C$2:$C$5860,"<="&'Initial Conditions and Settings'!F$4,'Historical Data'!$B$2:$B$5860,Table1[[Country Code]:[Country Code]]))/((AVERAGEIFS('Historical Data'!W$2:W$5860,'Historical Data'!$C$2:$C$5860,">="&'Initial Conditions and Settings'!F$3,'Historical Data'!$C$2:$C$5860,"<="&'Initial Conditions and Settings'!F$4,'Historical Data'!$B$2:$B$5860,Table1[[Country Code]:[Country Code]]))+(AVERAGEIFS('Historical Data'!X$2:X$5860,'Historical Data'!$C$2:$C$5860,">="&'Initial Conditions and Settings'!F$3,'Historical Data'!$C$2:$C$5860,"<="&'Initial Conditions and Settings'!F$4,'Historical Data'!$B$2:$B$5860,Table1[[Country Code]:[Country Code]]))),".") -> 0.8270561022 | L34: =IFERROR((1-Table1[[#This Row],[Formal Employment % of Labor Force2]])*(AVERAGEIFS('Historical Data'!X$2:X$5860,'Historical Data'!$C$2:$C$5860,">="&'Initial Conditions and Settings'!F$3,'Historical Data'!$C$2:$C$5860,"<="&'Initial Conditions and Settings'!F$4,'Historical Data'!$B$2:$B$5860,Table1[[Country Code]:[Country Code]]))/((AVERAGEIFS('Historical Data'!W$2:W$5860,'Historical Data'!$C$2:$C$5860,">="&'Initial Conditions and Settings'!F$3,'Historical Data'!$C$2:$C$5860,"<="&'Initial Conditions and Settings'!F$4,'Historical Data'!$B$2:$B$5860,Table1[[Country Code]:[Country Code]]))+(AVERAGEIFS('Historical Data'!X$2:X$5860,'Historical Data'!$C$2:$C$5860,">="&'Initial Conditions and Settings'!F$3,'Historical Data'!$C$2:$C$5860,"<="&'Initial Conditions and Settings'!F$4,'Historical Data'!$B$2:$B$5860,Table1[[Country Code]:[Country Code]]))),".") -> 0.06938454426 | M34: =IFERROR(INDEX('Historical Data'!Z$2:Z$5860, MATCH(Table1[[#This Row],[Country Code]],'Historical Data'!B$2:B$5860,0)),".") -> 0.05500000715 | N34: =IFERROR(INDEX('Historical Data'!W$2:W$5860, MATCH(Table1[[#This Row],[Country Code]],'Historical Data'!B$2:B$5860,0)),".") -> 0.8718569875 | O34: =IFERROR(INDEX('Historical Data'!X$2:X$5860, MATCH(Table1[[#This Row],[Country Code]],'Historical Data'!B$2:B$5860,0)),".") -> 0.07314304262 | P34: =IFERROR(Table1[[#This Row],[Formal Employment % of Labor Force2]]/(Table1[[#This Row],[Formal Employment % of Labor Force2]]+Table1[[#This Row],[Informal Employment (modern, type 2) % of Labor Force2]]),".") -> 0.5988031661 | Q34: =IFERROR(Table1[[#This Row],[Informal Employment (modern, type 2) % of Labor Force2]]/(Table1[[#This Row],[Formal Employment % of Labor Force2]]+Table1[[#This Row],[Informal Employment (modern, type 2) % of Labor Force2]]),".") -> 0.4011968339 | R34: =IFERROR((1/(miu))*(1-((1-pi)*Table1[[#This Row],[Li/L]])),".") -> 0.4172617503 | S34: =IFERROR(Table1[[#This Row],[bA/W]]*miu,".") -> 0.7543749595 | T34: =IFERROR(Table1[[#This Row],[Capital (2010 US dollars, thousands)]]/((Table1[[#This Row],[Formal Employment % of Labor Force2]]+Table1[[#This Row],[Informal Employment (modern, type 2) % of Labor Force2]])*Table1[[#This Row],[Labor Force (thousands)]]),".") -> 35694.43958 | U34: =IFERROR((((pi/psi)*Table1[[#This Row],[Li/L]]+Table1[[#This Row],[Lf/L]])/((1-capshare)^(1/(capshare))*Table1[[#This Row],[K/L]]))^(capshare),".") -> 0.008972948474 | V34: =IFERROR(Table1[[#This Row],[GDP (2010 US dollars, thousands)]]*Table1[[#This Row],[A/W]]/(Table1[[#This Row],[Labor Force (thousands)]]*((1/(1-capshare))*(Table1[[#This Row],[Formal Employment % of Labor Force2]]+pi*Table1[[#This Row],[Informal Employment (modern, type 2) % of Labor Force2]])+(Table1[[#This Row],[Informal Employment (rudimentary, type 1) % of Labor Force2]]/miu)*(1-(1-pi)*Table1[[#This Row],[Li/L]]))),".") -> 30.06723339 | W34: =IFERROR(MAX(Table1[[#This Row],[A]]/Table1[[#This Row],[A/W]],0),".") -> 3350.875521 | X34: =IFERROR(MAX((1/(miu*Table1[[#This Row],[A/W]]))*(1-(1-pi)*Table1[[#This Row],[Li/L]]),0.001),".") -> 46.5021895 | Y34: =IFERROR(Table1[[#This Row],[Formal Employment % of Employment]]/(Table1[[#This Row],[Formal Employment % of Employment]]+Table1[Informal Employment (modern, type 2) % of Employment]),".") -> 0.4292078833 | Z34: =IFERROR(Table1[[#This Row],[Informal Employment (modern, type 2) % of Employment]]/(Table1[[#This Row],[Formal Employment % of Employment]]+Table1[[#This Row],[Informal Employment (modern, type 2) % of Employment]]),".") -> 0.5707921167 | AA34: =IFERROR((1/(miu))*(1-((1-pi)*Table1[[#This Row],[Li/L2]])),".") -> 0.359830242 | AB34: =IFERROR(Table1[[#This Row],[bA/W2]]*miu,".") -> 0.6505435114 | AC34: =IFERROR(Table1[[#This Row],[Capital (2010 US dollars, thousands)]]/((Table1[[#This Row],[Formal Employment % of Employment]]+Table1[[#This Row],[Informal Employment (modern, type 2) % of Employment]])*Table1[[#This Row],[Employment (thousands)]]),".") -> 49469.57439 | AD34: =IFERROR((((pi/psi)*Table1[[#This Row],[Li/L2]]+Table1[[#This Row],[Lf/L2]])/((1-capshare)^(1/(capshare))*Table1[[#This Row],[K/L2]]))^(capshare),".") -> 0.006962147345 | AE34: =IFERROR(Table1[[#This Row],[GDP (2010 US dollars, thousands)]]*Table1[[#This Row],[A/W2]]/(Table1[[#This Row],[Employment (thousands)]]*((1/(1-capshare))*(Table1[[#This Row],[Formal Employment % of Employment]]+pi*Table1[[#This Row],[Informal Employment (modern, type 2) % of Employment]])+(Table1[[#This Row],[Informal Employment (rudimentary, type 1) % of Employment]]/miu)*(1-(1-pi)*Table1[[#This Row],[Li/L2]]))),".") -> 30.21880026 | AF34: =IFERROR(MAX(Table1[[#This Row],[A2]]/Table1[[#This Row],[A/W2]],0),".") -> 4340.442505 | AG34: =IFERROR(MAX((1/(miu*Table1[[#This Row],[A/W2]]))*(1-(1-pi)*Table1[[#This Row],[Li/L2]]),0.001),".") -> 51.68380158 | AH34: 0 | AI34: 0 | AJ34: 0 | AK34: 0 | AL34: 0 | AM34: =SUM(Table1[[#This Row],[OPEC members]]+Table1[[#This Row],[Questionable data]]+Table1[[#This Row],[Pension/GDP outliers]]+Table1[[#This Row],[K/GDP outliers]])+Table1[[#This Row],[GDP/TFP outlier]] -> 0 | AN34: 0 | AO34: 0 | AP34: =IFERROR(MAX(0,AVERAGEIFS('Historical Data'!R$2:R$5860,'Historical Data'!$C$2:$C$5860,">="&'Initial Conditions and Settings'!G$3,'Historical Data'!$C$2:$C$5860,"<="&'Initial Conditions and Settings'!G$4,'Historical Data'!$B$2:$B$5860,Table1[[Country Code]:[Country Code]])),".") -> 0.005592612659 | AQ34: =IFERROR(MAX((((Table1[[#This Row],[A]]*((capshare)^(capshare))*((1-capshare)^(1-capshare)))^(1/(capshare)))*(Table1[[#This Row],[Minimum wage, W]]^(-(1-capshare)/(capshare))))-Table1[[#This Row],[Growth Rate of Capital]],0.01),".") -> 0.02483749538 | AR34: =IFERROR(MAX((((Table1[[#This Row],[A2]]*((capshare)^(capshare))*((1-capshare)^(1-capshare)))^(1/(capshare)))*(Table1[[#This Row],[Minimum wage, W2]]^(-(1-capshare)/(capshare))))-Table1[[#This Row],[Growth Rate of Capital]],0.01),".") -> 0.01 | AS34: =IFERROR(AVERAGEIFS('Historical Data'!S$2:S$5860,'Historical Data'!$C$2:$C$5860,">="&'Initial Conditions and Settings'!H$3,'Historical Data'!$C$2:$C$5860,"<="&'Initial Conditions and Settings'!H$4,'Historical Data'!$B$2:$B$5860,Table1[[Country Code]:[Country Code]]),".") -> 0.03000844547
A35: . | B35: BMU | C35: Bermuda | D35: =IFERROR(AVERAGEIFS('Historical Data'!E$2:E$5860,'Historical Data'!$C$2:$C$5860,">="&'Initial Conditions and Settings'!B$3,'Historical Data'!$C$2:$C$5860,"<="&'Initial Conditions and Settings'!B$4,'Historical Data'!$B$2:$B$5860,Table1[[Country Code]:[Country Code]]),".") -> . | E35: =IFERROR(AVERAGEIFS('Historical Data'!F$2:F$5860,'Historical Data'!$C$2:$C$5860,">="&'Initial Conditions and Settings'!C$3,'Historical Data'!$C$2:$C$5860,"<="&'Initial Conditions and Settings'!C$4,'Historical Data'!$B$2:$B$5860,Table1[[Country Code]:[Country Code]]),".") -> . | F35: =IFERROR((AVERAGEIFS('Historical Data'!I$2:I$5860,'Historical Data'!$C$2:$C$5860,">="&'Initial Conditions and Settings'!D$3,'Historical Data'!$C$2:$C$5860,"<="&'Initial Conditions and Settings'!D$4,'Historical Data'!$B$2:$B$5860,Table1[[Country Code]:[Country Code]])),".") -> 15423736.33 | G35: =IFERROR(AVERAGEIFS('Historical Data'!Q$2:Q$5860,'Historical Data'!$C$2:$C$5860,">="&'Initial Conditions and Settings'!E$3,'Historical Data'!$C$2:$C$5860,"<="&'Initial Conditions and Settings'!E$4,'Historical Data'!$B$2:$B$5860,Table1[[Country Code]:[Country Code]]),".") -> 0.02295183364 | H35: =IFERROR((AVERAGEIFS('Historical Data'!M$2:M$5860,'Historical Data'!$C$2:$C$5860,">="&'Initial Conditions and Settings'!F$3,'Historical Data'!$C$2:$C$5860,"<="&'Initial Conditions and Settings'!F$4,'Historical Data'!$B$2:$B$5860,Table1[[Country Code]:[Country Code]])),".") -> . | I35: =IFERROR(Table1[[#This Row],[Capital (2010 US dollars, thousands)]]/Table1[[#This Row],[GDP (2010 US dollars, thousands)]],".") -> . | J35: =IFERROR(INDEX('Historical Data'!Z$2:Z$5860, MATCH(Table1[[#This Row],[Country Code]],'Historical Data'!B$2:B$5860,0))*Table1[[#This Row],[Employment (thousands)]]/Table1[[#This Row],[Labor Force (thousands)]]+natump,".") -> . | K35: =IFERROR((1-Table1[[#This Row],[Formal Employment % of Labor Force2]])*(AVERAGEIFS('Historical Data'!W$2:W$5860,'Historical Data'!$C$2:$C$5860,">="&'Initial Conditions and Settings'!F$3,'Historical Data'!$C$2:$C$5860,"<="&'Initial Conditions and Settings'!F$4,'Historical Data'!$B$2:$B$5860,Table1[[Country Code]:[Country Code]]))/((AVERAGEIFS('Historical Data'!W$2:W$5860,'Historical Data'!$C$2:$C$5860,">="&'Initial Conditions and Settings'!F$3,'Historical Data'!$C$2:$C$5860,"<="&'Initial Conditions and Settings'!F$4,'Historical Data'!$B$2:$B$5860,Table1[[Country Code]:[Country Code]]))+(AVERAGEIFS('Historical Data'!X$2:X$5860,'Historical Data'!$C$2:$C$5860,">="&'Initial Conditions and Settings'!F$3,'Historical Data'!$C$2:$C$5860,"<="&'Initial Conditions and Settings'!F$4,'Historical Data'!$B$2:$B$5860,Table1[[Country Code]:[Country Code]]))),".") -> . | L35: =IFERROR((1-Table1[[#This Row],[Formal Employment % of Labor Force2]])*(AVERAGEIFS('Historical Data'!X$2:X$5860,'Historical Data'!$C$2:$C$5860,">="&'Initial Conditions and Settings'!F$3,'Historical Data'!$C$2:$C$5860,"<="&'Initial Conditions and Settings'!F$4,'Historical Data'!$B$2:$B$5860,Table1[[Country Code]:[Country Code]]))/((AVERAGEIFS('Historical Data'!W$2:W$5860,'Historical Data'!$C$2:$C$5860,">="&'Initial Conditions and Settings'!F$3,'Historical Data'!$C$2:$C$5860,"<="&'Initial Conditions and Settings'!F$4,'Historical Data'!$B$2:$B$5860,Table1[[Country Code]:[Country Code]]))+(AVERAGEIFS('Historical Data'!X$2:X$5860,'Historical Data'!$C$2:$C$5860,">="&'Initial Conditions and Settings'!F$3,'Historical Data'!$C$2:$C$5860,"<="&'Initial Conditions and Settings'!F$4,'Historical Data'!$B$2:$B$5860,Table1[[Country Code]:[Country Code]]))),".") -> . | M35: =IFERROR(INDEX('Historical Data'!Z$2:Z$5860, MATCH(Table1[[#This Row],[Country Code]],'Historical Data'!B$2:B$5860,0)),".") -> . | N35: =IFERROR(INDEX('Historical Data'!W$2:W$5860, MATCH(Table1[[#This Row],[Country Code]],'Historical Data'!B$2:B$5860,0)),".") -> . | O35: =IFERROR(INDEX('Historical Data'!X$2:X$5860, MATCH(Table1[[#This Row],[Country Code]],'Historical Data'!B$2:B$5860,0)),".") -> . | P35: =IFERROR(Table1[[#This Row],[Formal Employment % of Labor Force2]]/(Table1[[#This Row],[Formal Employment % of Labor Force2]]+Table1[[#This Row],[Informal Employment (modern, type 2) % of Labor Force2]]),".") -> . | Q35: =IFERROR(Table1[[#This Row],[Informal Employment (modern, type 2) % of Labor Force2]]/(Table1[[#This Row],[Formal Employment % of Labor Force2]]+Table1[[#This Row],[Informal Employment (modern, type 2) % of Labor Force2]]),".") -> . | R35: =IFERROR((1/(miu))*(1-((1-pi)*Table1[[#This Row],[Li/L]])),".") -> . | S35: =IFERROR(Table1[[#This Row],[bA/W]]*miu,".") -> . | T35: =IFERROR(Table1[[#This Row],[Capital (2010 US dollars, thousands)]]/((Table1[[#This Row],[Formal Employment % of Labor Force2]]+Table1[[#This Row],[Informal Employment (modern, type 2) % of Labor Force2]])*Table1[[#This Row],[Labor Force (thousands)]]),".") -> . | U35: =IFERROR((((pi/psi)*Table1[[#This Row],[Li/L]]+Table1[[#This Row],[Lf/L]])/((1-capshare)^(1/(capshare))*Table1[[#This Row],[K/L]]))^(capshare),".") -> . | V35: =IFERROR(Table1[[#This Row],[GDP (2010 US dollars, thousands)]]*Table1[[#This Row],[A/W]]/(Table1[[#This Row],[Labor Force (thousands)]]*((1/(1-capshare))*(Table1[[#This Row],[Formal Employment % of Labor Force2]]+pi*Table1[[#This Row],[Informal Employment (modern, type 2) % of Labor Force2]])+(Table1[[#This Row],[Informal Employment (rudimentary, type 1) % of Labor Force2]]/miu)*(1-(1-pi)*Table1[[#This Row],[Li/L]]))),".") -> . | W35: =IFERROR(MAX(Table1[[#This Row],[A]]/Table1[[#This Row],[A/W]],0),".") -> . | X35: =IFERROR(MAX((1/(miu*Table1[[#This Row],[A/W]]))*(1-(1-pi)*Table1[[#This Row],[Li/L]]),0.001),".") -> . | Y35: =IFERROR(Table1[[#This Row],[Formal Employment % of Employment]]/(Table1[[#This Row],[Formal Employment % of Employment]]+Table1[Informal Employment (modern, type 2) % of Employment]),".") -> . | Z35: =IFERROR(Table1[[#This Row],[Informal Employment (modern, type 2) % of Employment]]/(Table1[[#This Row],[Formal Employment % of Employment]]+Table1[[#This Row],[Informal Employment (modern, type 2) % of Employment]]),".") -> . | AA35: =IFERROR((1/(miu))*(1-((1-pi)*Table1[[#This Row],[Li/L2]])),".") -> . | AB35: =IFERROR(Table1[[#This Row],[bA/W2]]*miu,".") -> . | AC35: =IFERROR(Table1[[#This Row],[Capital (2010 US dollars, thousands)]]/((Table1[[#This Row],[Formal Employment % of Employment]]+Table1[[#This Row],[Informal Employment (modern, type 2) % of Employment]])*Table1[[#This Row],[Employment (thousands)]]),".") -> . | AD35: =IFERROR((((pi/psi)*Table1[[#This Row],[Li/L2]]+Table1[[#This Row],[Lf/L2]])/((1-capshare)^(1/(capshare))*Table1[[#This Row],[K/L2]]))^(capshare),".") -> . | AE35: =IFERROR(Table1[[#This Row],[GDP (2010 US dollars, thousands)]]*Table1[[#This Row],[A/W2]]/(Table1[[#This Row],[Employment (thousands)]]*((1/(1-capshare))*(Table1[[#This Row],[Formal Employment % of Employment]]+pi*Table1[[#This Row],[Informal Employment (modern, type 2) % of Employment]])+(Table1[[#This Row],[Informal Employment (rudimentary, type 1) % of Employment]]/miu)*(1-(1-pi)*Table1[[#This Row],[Li/L2]]))),".") -> . | AF35: =IFERROR(MAX(Table1[[#This Row],[A2]]/Table1[[#This Row],[A/W2]],0),".") -> . | AG35: =IFERROR(MAX((1/(miu*Table1[[#This Row],[A/W2]]))*(1-(1-pi)*Table1[[#This Row],[Li/L2]]),0.001),".") -> . | AH35: 0 | AI35: 0 | AJ35: 0 | AK35: 0 | AL35: 0 | AM35: =SUM(Table1[[#This Row],[OPEC members]]+Table1[[#This Row],[Questionable data]]+Table1[[#This Row],[Pension/GDP outliers]]+Table1[[#This Row],[K/GDP outliers]])+Table1[[#This Row],[GDP/TFP outlier]] -> 0 | AN35: 0 | AO35: 0 | AP35: =IFERROR(MAX(0,AVERAGEIFS('Historical Data'!R$2:R$5860,'Historical Data'!$C$2:$C$5860,">="&'Initial Conditions and Settings'!G$3,'Historical Data'!$C$2:$C$5860,"<="&'Initial Conditions and Settings'!G$4,'Historical Data'!$B$2:$B$5860,Table1[[Country Code]:[Country Code]])),".") -> . | AQ35: =IFERROR(MAX((((Table1[[#This Row],[A]]*((capshare)^(capshare))*((1-capshare)^(1-capshare)))^(1/(capshare)))*(Table1[[#This Row],[Minimum wage, W]]^(-(1-capshare)/(capshare))))-Table1[[#This Row],[Growth Rate of Capital]],0.01),".") -> . | AR35: =IFERROR(MAX((((Table1[[#This Row],[A2]]*((capshare)^(capshare))*((1-capshare)^(1-capshare)))^(1/(capshare)))*(Table1[[#This Row],[Minimum wage, W2]]^(-(1-capshare)/(capshare))))-Table1[[#This Row],[Growth Rate of Capital]],0.01),".") -> . | AS35: =IFERROR(AVERAGEIFS('Historical Data'!S$2:S$5860,'Historical Data'!$C$2:$C$5860,">="&'Initial Conditions and Settings'!H$3,'Historical Data'!$C$2:$C$5860,"<="&'Initial Conditions and Settings'!H$4,'Historical Data'!$B$2:$B$5860,Table1[[Country Code]:[Country Code]]),".") -> .
A36: SA | B36: BTN | C36: Bhutan | D36: =IFERROR(AVERAGEIFS('Historical Data'!E$2:E$5860,'Historical Data'!$C$2:$C$5860,">="&'Initial Conditions and Settings'!B$3,'Historical Data'!$C$2:$C$5860,"<="&'Initial Conditions and Settings'!B$4,'Historical Data'!$B$2:$B$5860,Table1[[Country Code]:[Country Code]]),".") -> 367.8 | E36: =IFERROR(AVERAGEIFS('Historical Data'!F$2:F$5860,'Historical Data'!$C$2:$C$5860,">="&'Initial Conditions and Settings'!C$3,'Historical Data'!$C$2:$C$5860,"<="&'Initial Conditions and Settings'!C$4,'Historical Data'!$B$2:$B$5860,Table1[[Country Code]:[Country Code]]),".") -> 358.6 | F36: =IFERROR((AVERAGEIFS('Historical Data'!I$2:I$5860,'Historical Data'!$C$2:$C$5860,">="&'Initial Conditions and Settings'!D$3,'Historical Data'!$C$2:$C$5860,"<="&'Initial Conditions and Settings'!D$4,'Historical Data'!$B$2:$B$5860,Table1[[Country Code]:[Country Code]])),".") -> 9150501.7 | G36: =IFERROR(AVERAGEIFS('Historical Data'!Q$2:Q$5860,'Historical Data'!$C$2:$C$5860,">="&'Initial Conditions and Settings'!E$3,'Historical Data'!$C$2:$C$5860,"<="&'Initial Conditions and Settings'!E$4,'Historical Data'!$B$2:$B$5860,Table1[[Country Code]:[Country Code]]),".") -> 0.08710775916 | H36: =IFERROR((AVERAGEIFS('Historical Data'!M$2:M$5860,'Historical Data'!$C$2:$C$5860,">="&'Initial Conditions and Settings'!F$3,'Historical Data'!$C$2:$C$5860,"<="&'Initial Conditions and Settings'!F$4,'Historical Data'!$B$2:$B$5860,Table1[[Country Code]:[Country Code]])),".") -> . | I36: =IFERROR(Table1[[#This Row],[Capital (2010 US dollars, thousands)]]/Table1[[#This Row],[GDP (2010 US dollars, thousands)]],".") -> . | J36: =IFERROR(INDEX('Historical Data'!Z$2:Z$5860, MATCH(Table1[[#This Row],[Country Code]],'Historical Data'!B$2:B$5860,0))*Table1[[#This Row],[Employment (thousands)]]/Table1[[#This Row],[Labor Force (thousands)]]+natump,".") -> 0.1861256901 | K36: =IFERROR((1-Table1[[#This Row],[Formal Employment % of Labor Force2]])*(AVERAGEIFS('Historical Data'!W$2:W$5860,'Historical Data'!$C$2:$C$5860,">="&'Initial Conditions and Settings'!F$3,'Historical Data'!$C$2:$C$5860,"<="&'Initial Conditions and Settings'!F$4,'Historical Data'!$B$2:$B$5860,Table1[[Country Code]:[Country Code]]))/((AVERAGEIFS('Historical Data'!W$2:W$5860,'Historical Data'!$C$2:$C$5860,">="&'Initial Conditions and Settings'!F$3,'Historical Data'!$C$2:$C$5860,"<="&'Initial Conditions and Settings'!F$4,'Historical Data'!$B$2:$B$5860,Table1[[Country Code]:[Country Code]]))+(AVERAGEIFS('Historical Data'!X$2:X$5860,'Historical Data'!$C$2:$C$5860,">="&'Initial Conditions and Settings'!F$3,'Historical Data'!$C$2:$C$5860,"<="&'Initial Conditions and Settings'!F$4,'Historical Data'!$B$2:$B$5860,Table1[[Country Code]:[Country Code]]))),".") -> 0.6428181095 | L36: =IFERROR((1-Table1[[#This Row],[Formal Employment % of Labor Force2]])*(AVERAGEIFS('Historical Data'!X$2:X$5860,'Historical Data'!$C$2:$C$5860,">="&'Initial Conditions and Settings'!F$3,'Historical Data'!$C$2:$C$5860,"<="&'Initial Conditions and Settings'!F$4,'Historical Data'!$B$2:$B$5860,Table1[[Country Code]:[Country Code]]))/((AVERAGEIFS('Historical Data'!W$2:W$5860,'Historical Data'!$C$2:$C$5860,">="&'Initial Conditions and Settings'!F$3,'Historical Data'!$C$2:$C$5860,"<="&'Initial Conditions and Settings'!F$4,'Historical Data'!$B$2:$B$5860,Table1[[Country Code]:[Country Code]]))+(AVERAGEIFS('Historical Data'!X$2:X$5860,'Historical Data'!$C$2:$C$5860,">="&'Initial Conditions and Settings'!F$3,'Historical Data'!$C$2:$C$5860,"<="&'Initial Conditions and Settings'!F$4,'Historical Data'!$B$2:$B$5860,Table1[[Country Code]:[Country Code]]))),".") -> 0.1710562004 | M36: =IFERROR(INDEX('Historical Data'!Z$2:Z$5860, MATCH(Table1[[#This Row],[Country Code]],'Historical Data'!B$2:B$5860,0)),".") -> 0.1396180391 | N36: =IFERROR(INDEX('Historical Data'!W$2:W$5860, MATCH(Table1[[#This Row],[Country Code]],'Historical Data'!B$2:B$5860,0)),".") -> 0.6795510054 | O36: =IFERROR(INDEX('Historical Data'!X$2:X$5860, MATCH(Table1[[#This Row],[Country Code]],'Historical Data'!B$2:B$5860,0)),".") -> 0.1808309555 | P36: =IFERROR(Table1[[#This Row],[Formal Employment % of Labor Force2]]/(Table1[[#This Row],[Formal Employment % of Labor Force2]]+Table1[[#This Row],[Informal Employment (modern, type 2) % of Labor Force2]]),".") -> 0.5210949801 | Q36: =IFERROR(Table1[[#This Row],[Informal Employment (modern, type 2) % of Labor Force2]]/(Table1[[#This Row],[Formal Employment % of Labor Force2]]+Table1[[#This Row],[Informal Employment (modern, type 2) % of Labor Force2]]),".") -> 0.4789050199 | R36: =IFERROR((1/(miu))*(1-((1-pi)*Table1[[#This Row],[Li/L]])),".") -> 0.3909467593 | S36: =IFERROR(Table1[[#This Row],[bA/W]]*miu,".") -> 0.7067996181 | T36: =IFERROR(Table1[[#This Row],[Capital (2010 US dollars, thousands)]]/((Table1[[#This Row],[Formal Employment % of Labor Force2]]+Table1[[#This Row],[Informal Employment (modern, type 2) % of Labor Force2]])*Table1[[#This Row],[Labor Force (thousands)]]),".") -> 69653.62918 | U36: =IFERROR((((pi/psi)*Table1[[#This Row],[Li/L]]+Table1[[#This Row],[Lf/L]])/((1-capshare)^(1/(capshare))*Table1[[#This Row],[K/L]]))^(capshare),".") -> 0.006174816804 | V36: =IFERROR(Table1[[#This Row],[GDP (2010 US dollars, thousands)]]*Table1[[#This Row],[A/W]]/(Table1[[#This Row],[Labor Force (thousands)]]*((1/(1-capshare))*(Table1[[#This Row],[Formal Employment % of Labor Force2]]+pi*Table1[[#This Row],[Informal Employment (modern, type 2) % of Labor Force2]])+(Table1[[#This Row],[Informal Employment (rudimentary, type 1) % of Labor Force2]]/miu)*(1-(1-pi)*Table1[[#This Row],[Li/L]]))),".") -> . | W36: =IFERROR(MAX(Table1[[#This Row],[A]]/Table1[[#This Row],[A/W]],0),".") -> . | X36: =IFERROR(MAX((1/(miu*Table1[[#This Row],[A/W]]))*(1-(1-pi)*Table1[[#This Row],[Li/L]]),0.001),".") -> 63.31309442 | Y36: =IFERROR(Table1[[#This Row],[Formal Employment % of Employment]]/(Table1[[#This Row],[Formal Employment % of Employment]]+Table1[Informal Employment (modern, type 2) % of Employment]),".") -> 0.435695045 | Z36: =IFERROR(Table1[[#This Row],[Informal Employment (modern, type 2) % of Employment]]/(Table1[[#This Row],[Formal Employment % of Employment]]+Table1[[#This Row],[Informal Employment (modern, type 2) % of Employment]]),".") -> 0.564304955 | AA36: =IFERROR((1/(miu))*(1-((1-pi)*Table1[[#This Row],[Li/L2]])),".") -> 0.3620270453 | AB36: =IFERROR(Table1[[#This Row],[bA/W2]]*miu,".") -> 0.6545151513 | AC36: =IFERROR(Table1[[#This Row],[Capital (2010 US dollars, thousands)]]/((Table1[[#This Row],[Formal Employment % of Employment]]+Table1[[#This Row],[Informal Employment (modern, type 2) % of Employment]])*Table1[[#This Row],[Employment (thousands)]]),".") -> 79629.81512 | AD36: =IFERROR((((pi/psi)*Table1[[#This Row],[Li/L2]]+Table1[[#This Row],[Lf/L2]])/((1-capshare)^(1/(capshare))*Table1[[#This Row],[K/L2]]))^(capshare),".") -> 0.005508294579 | AE36: =IFERROR(Table1[[#This Row],[GDP (2010 US dollars, thousands)]]*Table1[[#This Row],[A/W2]]/(Table1[[#This Row],[Employment (thousands)]]*((1/(1-capshare))*(Table1[[#This Row],[Formal Employment % of Employment]]+pi*Table1[[#This Row],[Informal Employment (modern, type 2) % of Employment]])+(Table1[[#This Row],[Informal Employment (rudimentary, type 1) % of Employment]]/miu)*(1-(1-pi)*Table1[[#This Row],[Li/L2]]))),".") -> . | AF36: =IFERROR(MAX(Table1[[#This Row],[A2]]/Table1[[#This Row],[A/W2]],0),".") -> . | AG36: =IFERROR(MAX((1/(miu*Table1[[#This Row],[A/W2]]))*(1-(1-pi)*Table1[[#This Row],[Li/L2]]),0.001),".") -> 65.72398047 | AH36: 0 | AI36: 0 | AJ36: 0 | AK36: 0 | AL36: 0 | AM36: =SUM(Table1[[#This Row],[OPEC members]]+Table1[[#This Row],[Questionable data]]+Table1[[#This Row],[Pension/GDP outliers]]+Table1[[#This Row],[K/GDP outliers]])+Table1[[#This Row],[GDP/TFP outlier]] -> 0 | AN36: 0 | AO36: 0 | AP36: =IFERROR(MAX(0,AVERAGEIFS('Historical Data'!R$2:R$5860,'Historical Data'!$C$2:$C$5860,">="&'Initial Conditions and Settings'!G$3,'Historical Data'!$C$2:$C$5860,"<="&'Initial Conditions and Settings'!G$4,'Historical Data'!$B$2:$B$5860,Table1[[Country Code]:[Country Code]])),".") -> . | AQ36: =IFERROR(MAX((((Table1[[#This Row],[A]]*((capshare)^(capshare))*((1-capshare)^(1-capshare)))^(1/(capshare)))*(Table1[[#This Row],[Minimum wage, W]]^(-(1-capshare)/(capshare))))-Table1[[#This Row],[Growth Rate of Capital]],0.01),".") -> . | AR36: =IFERROR(MAX((((Table1[[#This Row],[A2]]*((capshare)^(capshare))*((1-capshare)^(1-capshare)))^(1/(capshare)))*(Table1[[#This Row],[Minimum wage, W2]]^(-(1-capshare)/(capshare))))-Table1[[#This Row],[Growth Rate of Capital]],0.01),".") -> . | AS36: =IFERROR(AVERAGEIFS('Historical Data'!S$2:S$5860,'Historical Data'!$C$2:$C$5860,">="&'Initial Conditions and Settings'!H$3,'Historical Data'!$C$2:$C$5860,"<="&'Initial Conditions and Settings'!H$4,'Historical Data'!$B$2:$B$5860,Table1[[Country Code]:[Country Code]]),".") -> 0.0366745447
A37: LAC | B37: BOL | C37: Bolivia | D37: =IFERROR(AVERAGEIFS('Historical Data'!E$2:E$5860,'Historical Data'!$C$2:$C$5860,">="&'Initial Conditions and Settings'!B$3,'Historical Data'!$C$2:$C$5860,"<="&'Initial Conditions and Settings'!B$4,'Historical Data'!$B$2:$B$5860,Table1[[Country Code]:[Country Code]]),".") -> 4874 | E37: =IFERROR(AVERAGEIFS('Historical Data'!F$2:F$5860,'Historical Data'!$C$2:$C$5860,">="&'Initial Conditions and Settings'!C$3,'Historical Data'!$C$2:$C$5860,"<="&'Initial Conditions and Settings'!C$4,'Historical Data'!$B$2:$B$5860,Table1[[Country Code]:[Country Code]]),".") -> 4750.8 | F37: =IFERROR((AVERAGEIFS('Historical Data'!I$2:I$5860,'Historical Data'!$C$2:$C$5860,">="&'Initial Conditions and Settings'!D$3,'Historical Data'!$C$2:$C$5860,"<="&'Initial Conditions and Settings'!D$4,'Historical Data'!$B$2:$B$5860,Table1[[Country Code]:[Country Code]])),".") -> 52542542.4 | G37: =IFERROR(AVERAGEIFS('Historical Data'!Q$2:Q$5860,'Historical Data'!$C$2:$C$5860,">="&'Initial Conditions and Settings'!E$3,'Historical Data'!$C$2:$C$5860,"<="&'Initial Conditions and Settings'!E$4,'Historical Data'!$B$2:$B$5860,Table1[[Country Code]:[Country Code]]),".") -> 0.0377898081 | H37: =IFERROR((AVERAGEIFS('Historical Data'!M$2:M$5860,'Historical Data'!$C$2:$C$5860,">="&'Initial Conditions and Settings'!F$3,'Historical Data'!$C$2:$C$5860,"<="&'Initial Conditions and Settings'!F$4,'Historical Data'!$B$2:$B$5860,Table1[[Country Code]:[Country Code]])),".") -> 24367336.79 | I37: =IFERROR(Table1[[#This Row],[Capital (2010 US dollars, thousands)]]/Table1[[#This Row],[GDP (2010 US dollars, thousands)]],".") -> 2.156269389 | J37: =IFERROR(INDEX('Historical Data'!Z$2:Z$5860, MATCH(Table1[[#This Row],[Country Code]],'Historical Data'!B$2:B$5860,0))*Table1[[#This Row],[Employment (thousands)]]/Table1[[#This Row],[Labor Force (thousands)]]+natump,".") -> 0.2147282192 | K37: =IFERROR((1-Table1[[#This Row],[Formal Employment % of Labor Force2]])*(AVERAGEIFS('Historical Data'!W$2:W$5860,'Historical Data'!$C$2:$C$5860,">="&'Initial Conditions and Settings'!F$3,'Historical Data'!$C$2:$C$5860,"<="&'Initial Conditions and Settings'!F$4,'Historical Data'!$B$2:$B$5860,Table1[[Country Code]:[Country Code]]))/((AVERAGEIFS('Historical Data'!W$2:W$5860,'Historical Data'!$C$2:$C$5860,">="&'Initial Conditions and Settings'!F$3,'Historical Data'!$C$2:$C$5860,"<="&'Initial Conditions and Settings'!F$4,'Historical Data'!$B$2:$B$5860,Table1[[Country Code]:[Country Code]]))+(AVERAGEIFS('Historical Data'!X$2:X$5860,'Historical Data'!$C$2:$C$5860,">="&'Initial Conditions and Settings'!F$3,'Historical Data'!$C$2:$C$5860,"<="&'Initial Conditions and Settings'!F$4,'Historical Data'!$B$2:$B$5860,Table1[[Country Code]:[Country Code]]))),".") -> 0.4114515587 | L37: =IFERROR((1-Table1[[#This Row],[Formal Employment % of Labor Force2]])*(AVERAGEIFS('Historical Data'!X$2:X$5860,'Historical Data'!$C$2:$C$5860,">="&'Initial Conditions and Settings'!F$3,'Historical Data'!$C$2:$C$5860,"<="&'Initial Conditions and Settings'!F$4,'Historical Data'!$B$2:$B$5860,Table1[[Country Code]:[Country Code]]))/((AVERAGEIFS('Historical Data'!W$2:W$5860,'Historical Data'!$C$2:$C$5860,">="&'Initial Conditions and Settings'!F$3,'Historical Data'!$C$2:$C$5860,"<="&'Initial Conditions and Settings'!F$4,'Historical Data'!$B$2:$B$5860,Table1[[Country Code]:[Country Code]]))+(AVERAGEIFS('Historical Data'!X$2:X$5860,'Historical Data'!$C$2:$C$5860,">="&'Initial Conditions and Settings'!F$3,'Historical Data'!$C$2:$C$5860,"<="&'Initial Conditions and Settings'!F$4,'Historical Data'!$B$2:$B$5860,Table1[[Country Code]:[Country Code]]))),".") -> 0.3738202221 | M37: =IFERROR(INDEX('Historical Data'!Z$2:Z$5860, MATCH(Table1[[#This Row],[Country Code]],'Historical Data'!B$2:B$5860,0)),".") -> 0.1690000296 | N37: =IFERROR(INDEX('Historical Data'!W$2:W$5860, MATCH(Table1[[#This Row],[Country Code]],'Historical Data'!B$2:B$5860,0)),".") -> 0.4348873794 | O37: =IFERROR(INDEX('Historical Data'!X$2:X$5860, MATCH(Table1[[#This Row],[Country Code]],'Historical Data'!B$2:B$5860,0)),".") -> 0.3951126039 | P37: =IFERROR(Table1[[#This Row],[Formal Employment % of Labor Force2]]/(Table1[[#This Row],[Formal Employment % of Labor Force2]]+Table1[[#This Row],[Informal Employment (modern, type 2) % of Labor Force2]]),".") -> 0.364843748 | Q37: =IFERROR(Table1[[#This Row],[Informal Employment (modern, type 2) % of Labor Force2]]/(Table1[[#This Row],[Formal Employment % of Labor Force2]]+Table1[[#This Row],[Informal Employment (modern, type 2) % of Labor Force2]]),".") -> 0.635156252 | R37: =IFERROR((1/(miu))*(1-((1-pi)*Table1[[#This Row],[Li/L]])),".") -> 0.3380340616 | S37: =IFERROR(Table1[[#This Row],[bA/W]]*miu,".") -> 0.6111378083 | T37: =IFERROR(Table1[[#This Row],[Capital (2010 US dollars, thousands)]]/((Table1[[#This Row],[Formal Employment % of Labor Force2]]+Table1[[#This Row],[Informal Employment (modern, type 2) % of Labor Force2]])*Table1[[#This Row],[Labor Force (thousands)]]),".") -> 18316.53603 | U37: =IFERROR((((pi/psi)*Table1[[#This Row],[Li/L]]+Table1[[#This Row],[Lf/L]])/((1-capshare)^(1/(capshare))*Table1[[#This Row],[K/L]]))^(capshare),".") -> 0.01100223828 | V37: =IFERROR(Table1[[#This Row],[GDP (2010 US dollars, thousands)]]*Table1[[#This Row],[A/W]]/(Table1[[#This Row],[Labor Force (thousands)]]*((1/(1-capshare))*(Table1[[#This Row],[Formal Employment % of Labor Force2]]+pi*Table1[[#This Row],[Informal Employment (modern, type 2) % of Labor Force2]])+(Table1[[#This Row],[Informal Employment (rudimentary, type 1) % of Labor Force2]]/miu)*(1-(1-pi)*Table1[[#This Row],[Li/L]]))),".") -> 64.07476753 | W37: =IFERROR(MAX(Table1[[#This Row],[A]]/Table1[[#This Row],[A/W]],0),".") -> 5823.793841 | X37: =IFERROR(MAX((1/(miu*Table1[[#This Row],[A/W]]))*(1-(1-pi)*Table1[[#This Row],[Li/L]]),0.001),".") -> 30.7241175 | Y37: =IFERROR(Table1[[#This Row],[Formal Employment % of Employment]]/(Table1[[#This Row],[Formal Employment % of Employment]]+Table1[Informal Employment (modern, type 2) % of Employment]),".") -> 0.2995856138 | Z37: =IFERROR(Table1[[#This Row],[Informal Employment (modern, type 2) % of Employment]]/(Table1[[#This Row],[Formal Employment % of Employment]]+Table1[[#This Row],[Informal Employment (modern, type 2) % of Employment]]),".") -> 0.7004143862 | AA37: =IFERROR((1/(miu))*(1-((1-pi)*Table1[[#This Row],[Li/L2]])),".") -> 0.3159351388 | AB37: =IFERROR(Table1[[#This Row],[bA/W2]]*miu,".") -> 0.5711847715 | AC37: =IFERROR(Table1[[#This Row],[Capital (2010 US dollars, thousands)]]/((Table1[[#This Row],[Formal Employment % of Employment]]+Table1[[#This Row],[Informal Employment (modern, type 2) % of Employment]])*Table1[[#This Row],[Employment (thousands)]]),".") -> 19605.5265 | AD37: =IFERROR((((pi/psi)*Table1[[#This Row],[Li/L2]]+Table1[[#This Row],[Lf/L2]])/((1-capshare)^(1/(capshare))*Table1[[#This Row],[K/L2]]))^(capshare),".") -> 0.01018567131 | AE37: =IFERROR(Table1[[#This Row],[GDP (2010 US dollars, thousands)]]*Table1[[#This Row],[A/W2]]/(Table1[[#This Row],[Employment (thousands)]]*((1/(1-capshare))*(Table1[[#This Row],[Formal Employment % of Employment]]+pi*Table1[[#This Row],[Informal Employment (modern, type 2) % of Employment]])+(Table1[[#This Row],[Informal Employment (rudimentary, type 1) % of Employment]]/miu)*(1-(1-pi)*Table1[[#This Row],[Li/L2]]))),".") -> 66.82261691 | AF37: =IFERROR(MAX(Table1[[#This Row],[A2]]/Table1[[#This Row],[A/W2]],0),".") -> 6560.452904 | AG37: =IFERROR(MAX((1/(miu*Table1[[#This Row],[A/W2]]))*(1-(1-pi)*Table1[[#This Row],[Li/L2]]),0.001),".") -> 31.01760593 | AH37: 0 | AI37: 0 | AJ37: 0 | AK37: 0 | AL37: 0 | AM37: =SUM(Table1[[#This Row],[OPEC members]]+Table1[[#This Row],[Questionable data]]+Table1[[#This Row],[Pension/GDP outliers]]+Table1[[#This Row],[K/GDP outliers]])+Table1[[#This Row],[GDP/TFP outlier]] -> 0 | AN37: 0 | AO37: 0 | AP37: =IFERROR(MAX(0,AVERAGEIFS('Historical Data'!R$2:R$5860,'Historical Data'!$C$2:$C$5860,">="&'Initial Conditions and Settings'!G$3,'Historical Data'!$C$2:$C$5860,"<="&'Initial Conditions and Settings'!G$4,'Historical Data'!$B$2:$B$5860,Table1[[Country Code]:[Country Code]])),".") -> 0.01241226757 | AQ37: =IFERROR(MAX((((Table1[[#This Row],[A]]*((capshare)^(capshare))*((1-capshare)^(1-capshare)))^(1/(capshare)))*(Table1[[#This Row],[Minimum wage, W]]^(-(1-capshare)/(capshare))))-Table1[[#This Row],[Growth Rate of Capital]],0.01),".") -> 0.1384516569 | AR37: =IFERROR(MAX((((Table1[[#This Row],[A2]]*((capshare)^(capshare))*((1-capshare)^(1-capshare)))^(1/(capshare)))*(Table1[[#This Row],[Minimum wage, W2]]^(-(1-capshare)/(capshare))))-Table1[[#This Row],[Growth Rate of Capital]],0.01),".") -> 0.1323684948 | AS37: =IFERROR(AVERAGEIFS('Historical Data'!S$2:S$5860,'Historical Data'!$C$2:$C$5860,">="&'Initial Conditions and Settings'!H$3,'Historical Data'!$C$2:$C$5860,"<="&'Initial Conditions and Settings'!H$4,'Historical Data'!$B$2:$B$5860,Table1[[Country Code]:[Country Code]]),".") -> 0.0203187564
A38: ECA | B38: BIH | C38: Bosnia and Herzegovina | D38: =IFERROR(AVERAGEIFS('Historical Data'!E$2:E$5860,'Historical Data'!$C$2:$C$5860,">="&'Initial Conditions and Settings'!B$3,'Historical Data'!$C$2:$C$5860,"<="&'Initial Conditions and Settings'!B$4,'Historical Data'!$B$2:$B$5860,Table1[[Country Code]:[Country Code]]),".") -> 1435.4 | E38: =IFERROR(AVERAGEIFS('Historical Data'!F$2:F$5860,'Historical Data'!$C$2:$C$5860,">="&'Initial Conditions and Settings'!C$3,'Historical Data'!$C$2:$C$5860,"<="&'Initial Conditions and Settings'!C$4,'Historical Data'!$B$2:$B$5860,Table1[[Country Code]:[Country Code]]),".") -> 1045.4 | F38: =IFERROR((AVERAGEIFS('Historical Data'!I$2:I$5860,'Historical Data'!$C$2:$C$5860,">="&'Initial Conditions and Settings'!D$3,'Historical Data'!$C$2:$C$5860,"<="&'Initial Conditions and Settings'!D$4,'Historical Data'!$B$2:$B$5860,Table1[[Country Code]:[Country Code]])),".") -> . | G38: =IFERROR(AVERAGEIFS('Historical Data'!Q$2:Q$5860,'Historical Data'!$C$2:$C$5860,">="&'Initial Conditions and Settings'!E$3,'Historical Data'!$C$2:$C$5860,"<="&'Initial Conditions and Settings'!E$4,'Historical Data'!$B$2:$B$5860,Table1[[Country Code]:[Country Code]]),".") -> . | H38: =IFERROR((AVERAGEIFS('Historical Data'!M$2:M$5860,'Historical Data'!$C$2:$C$5860,">="&'Initial Conditions and Settings'!F$3,'Historical Data'!$C$2:$C$5860,"<="&'Initial Conditions and Settings'!F$4,'Historical Data'!$B$2:$B$5860,Table1[[Country Code]:[Country Code]])),".") -> 17888211.42 | I38: =IFERROR(Table1[[#This Row],[Capital (2010 US dollars, thousands)]]/Table1[[#This Row],[GDP (2010 US dollars, thousands)]],".") -> . | J38: =IFERROR(INDEX('Historical Data'!Z$2:Z$5860, MATCH(Table1[[#This Row],[Country Code]],'Historical Data'!B$2:B$5860,0))*Table1[[#This Row],[Employment (thousands)]]/Table1[[#This Row],[Labor Force (thousands)]]+natump,".") -> 0.5590808144 | K38: =IFERROR((1-Table1[[#This Row],[Formal Employment % of Labor Force2]])*(AVERAGEIFS('Historical Data'!W$2:W$5860,'Historical Data'!$C$2:$C$5860,">="&'Initial Conditions and Settings'!F$3,'Historical Data'!$C$2:$C$5860,"<="&'Initial Conditions and Settings'!F$4,'Historical Data'!$B$2:$B$5860,Table1[[Country Code]:[Country Code]]))/((AVERAGEIFS('Historical Data'!W$2:W$5860,'Historical Data'!$C$2:$C$5860,">="&'Initial Conditions and Settings'!F$3,'Historical Data'!$C$2:$C$5860,"<="&'Initial Conditions and Settings'!F$4,'Historical Data'!$B$2:$B$5860,Table1[[Country Code]:[Country Code]]))+(AVERAGEIFS('Historical Data'!X$2:X$5860,'Historical Data'!$C$2:$C$5860,">="&'Initial Conditions and Settings'!F$3,'Historical Data'!$C$2:$C$5860,"<="&'Initial Conditions and Settings'!F$4,'Historical Data'!$B$2:$B$5860,Table1[[Country Code]:[Country Code]]))),".") -> 0.365615291 | L38: =IFERROR((1-Table1[[#This Row],[Formal Employment % of Labor Force2]])*(AVERAGEIFS('Historical Data'!X$2:X$5860,'Historical Data'!$C$2:$C$5860,">="&'Initial Conditions and Settings'!F$3,'Historical Data'!$C$2:$C$5860,"<="&'Initial Conditions and Settings'!F$4,'Historical Data'!$B$2:$B$5860,Table1[[Country Code]:[Country Code]]))/((AVERAGEIFS('Historical Data'!W$2:W$5860,'Historical Data'!$C$2:$C$5860,">="&'Initial Conditions and Settings'!F$3,'Historical Data'!$C$2:$C$5860,"<="&'Initial Conditions and Settings'!F$4,'Historical Data'!$B$2:$B$5860,Table1[[Country Code]:[Country Code]]))+(AVERAGEIFS('Historical Data'!X$2:X$5860,'Historical Data'!$C$2:$C$5860,">="&'Initial Conditions and Settings'!F$3,'Historical Data'!$C$2:$C$5860,"<="&'Initial Conditions and Settings'!F$4,'Historical Data'!$B$2:$B$5860,Table1[[Country Code]:[Country Code]]))),".") -> 0.07530389457 | M38: =IFERROR(INDEX('Historical Data'!Z$2:Z$5860, MATCH(Table1[[#This Row],[Country Code]],'Historical Data'!B$2:B$5860,0)),".") -> 0.699000001 | N38: =IFERROR(INDEX('Historical Data'!W$2:W$5860, MATCH(Table1[[#This Row],[Country Code]],'Historical Data'!B$2:B$5860,0)),".") -> 0.2495926917 | O38: =IFERROR(INDEX('Historical Data'!X$2:X$5860, MATCH(Table1[[#This Row],[Country Code]],'Historical Data'!B$2:B$5860,0)),".") -> 0.05140731856 | P38: =IFERROR(Table1[[#This Row],[Formal Employment % of Labor Force2]]/(Table1[[#This Row],[Formal Employment % of Labor Force2]]+Table1[[#This Row],[Informal Employment (modern, type 2) % of Labor Force2]]),".") -> 0.8812961701 | Q38: =IFERROR(Table1[[#This Row],[Informal Employment (modern, type 2) % of Labor Force2]]/(Table1[[#This Row],[Formal Employment % of Labor Force2]]+Table1[[#This Row],[Informal Employment (modern, type 2) % of Labor Force2]]),".") -> 0.1187038299 | R38: =IFERROR((1/(miu))*(1-((1-pi)*Table1[[#This Row],[Li/L]])),".") -> 0.5129247843 | S38: =IFERROR(Table1[[#This Row],[bA/W]]*miu,".") -> 0.9273258646 | T38: =IFERROR(Table1[[#This Row],[Capital (2010 US dollars, thousands)]]/((Table1[[#This Row],[Formal Employment % of Labor Force2]]+Table1[[#This Row],[Informal Employment (modern, type 2) % of Labor Force2]])*Table1[[#This Row],[Labor Force (thousands)]]),".") -> . | U38: =IFERROR((((pi/psi)*Table1[[#This Row],[Li/L]]+Table1[[#This Row],[Lf/L]])/((1-capshare)^(1/(capshare))*Table1[[#This Row],[K/L]]))^(capshare),".") -> . | V38: =IFERROR(Table1[[#This Row],[GDP (2010 US dollars, thousands)]]*Table1[[#This Row],[A/W]]/(Table1[[#This Row],[Labor Force (thousands)]]*((1/(1-capshare))*(Table1[[#This Row],[Formal Employment % of Labor Force2]]+pi*Table1[[#This Row],[Informal Employment (modern, type 2) % of Labor Force2]])+(Table1[[#This Row],[Informal Employment (rudimentary, type 1) % of Labor Force2]]/miu)*(1-(1-pi)*Table1[[#This Row],[Li/L]]))),".") -> . | W38: =IFERROR(MAX(Table1[[#This Row],[A]]/Table1[[#This Row],[A/W]],0),".") -> . | X38: =IFERROR(MAX((1/(miu*Table1[[#This Row],[A/W]]))*(1-(1-pi)*Table1[[#This Row],[Li/L]]),0.001),".") -> . | Y38: =IFERROR(Table1[[#This Row],[Formal Employment % of Employment]]/(Table1[[#This Row],[Formal Employment % of Employment]]+Table1[Informal Employment (modern, type 2) % of Employment]),".") -> 0.9314941136 | Z38: =IFERROR(Table1[[#This Row],[Informal Employment (modern, type 2) % of Employment]]/(Table1[[#This Row],[Formal Employment % of Employment]]+Table1[[#This Row],[Informal Employment (modern, type 2) % of Employment]]),".") -> 0.06850588637 | AA38: =IFERROR((1/(miu))*(1-((1-pi)*Table1[[#This Row],[Li/L2]])),".") -> 0.5299237453 | AB38: =IFERROR(Table1[[#This Row],[bA/W2]]*miu,".") -> 0.9580585895 | AC38: =IFERROR(Table1[[#This Row],[Capital (2010 US dollars, thousands)]]/((Table1[[#This Row],[Formal Employment % of Employment]]+Table1[[#This Row],[Informal Employment (modern, type 2) % of Employment]])*Table1[[#This Row],[Employment (thousands)]]),".") -> . | AD38: =IFERROR((((pi/psi)*Table1[[#This Row],[Li/L2]]+Table1[[#This Row],[Lf/L2]])/((1-capshare)^(1/(capshare))*Table1[[#This Row],[K/L2]]))^(capshare),".") -> . | AE38: =IFERROR(Table1[[#This Row],[GDP (2010 US dollars, thousands)]]*Table1[[#This Row],[A/W2]]/(Table1[[#This Row],[Employment (thousands)]]*((1/(1-capshare))*(Table1[[#This Row],[Formal Employment % of Employment]]+pi*Table1[[#This Row],[Informal Employment (modern, type 2) % of Employment]])+(Table1[[#This Row],[Informal Employment (rudimentary, type 1) % of Employment]]/miu)*(1-(1-pi)*Table1[[#This Row],[Li/L2]]))),".") -> . | AF38: =IFERROR(MAX(Table1[[#This Row],[A2]]/Table1[[#This Row],[A/W2]],0),".") -> . | AG38: =IFERROR(MAX((1/(miu*Table1[[#This Row],[A/W2]]))*(1-(1-pi)*Table1[[#This Row],[Li/L2]]),0.001),".") -> . | AH38: 0 | AI38: 0 | AJ38: 0 | AK38: 0 | AL38: 0 | AM38: =SUM(Table1[[#This Row],[OPEC members]]+Table1[[#This Row],[Questionable data]]+Table1[[#This Row],[Pension/GDP outliers]]+Table1[[#This Row],[K/GDP outliers]])+Table1[[#This Row],[GDP/TFP outlier]] -> 0 | AN38: 0 | AO38: 0 | AP38: =IFERROR(MAX(0,AVERAGEIFS('Historical Data'!R$2:R$5860,'Historical Data'!$C$2:$C$5860,">="&'Initial Conditions and Settings'!G$3,'Historical Data'!$C$2:$C$5860,"<="&'Initial Conditions and Settings'!G$4,'Historical Data'!$B$2:$B$5860,Table1[[Country Code]:[Country Code]])),".") -> . | AQ38: =IFERROR(MAX((((Table1[[#This Row],[A]]*((capshare)^(capshare))*((1-capshare)^(1-capshare)))^(1/(capshare)))*(Table1[[#This Row],[Minimum wage, W]]^(-(1-capshare)/(capshare))))-Table1[[#This Row],[Growth Rate of Capital]],0.01),".") -> . | AR38: =IFERROR(MAX((((Table1[[#This Row],[A2]]*((capshare)^(capshare))*((1-capshare)^(1-capshare)))^(1/(capshare)))*(Table1[[#This Row],[Minimum wage, W2]]^(-(1-capshare)/(capshare))))-Table1[[#This Row],[Growth Rate of Capital]],0.01),".") -> . | AS38: =IFERROR(AVERAGEIFS('Historical Data'!S$2:S$5860,'Historical Data'!$C$2:$C$5860,">="&'Initial Conditions and Settings'!H$3,'Historical Data'!$C$2:$C$5860,"<="&'Initial Conditions and Settings'!H$4,'Historical Data'!$B$2:$B$5860,Table1[[Country Code]:[Country Code]]),".") -> -0.00257126077
